Workbook

Sheet HAUPTMENÜ
B1: institut für banken und finanzplanung
B2: www.ibf-chur.ch; max.luescher@ibf-chur.ch
B3: Max Lüscher-Marty, Feldstrasse 41, 7205 Zizers; Telefon: 081 330'82'40
B5: Optionsrechner: Aktien-/Aktienindexoptionen | H5: Update: März 2020
B6: nach Black & Scholes (mit Berücksichtigung von Dividenden)
B8: Zum Rechner: | D8: Daten eingeben/rechnen!
B11: Tabellen und Diagramme
B13: Optionspreis | D13: Tabelle Optionspreis | F13: Diagramm Call-Optionspreis | H13: Diagramm Put-Optionspreis
B15: Delta/ | D15: Tabelle Delta/Gamma | F15: Diagramm Call-Delta | H15: Diagramm Put-Delta
B17: Gamma | F17: Diagramm Gamma
B19: Leverage | D19: Tabelle Call-Leverage | F19: Diagramm Call-Leverage
B21: (Omega) | D21: Tabelle Put-Leverage | F21: Diagramm Put-Leverage
B23: Theta | D23: Tabelle Theta | F23: Diagramm Call-Theta | H23: Diagramm Put-Theta
B25: Rho | D25: Tabelle Rho | F25: Diagramm Call-Rho | H25: Diagramm Put-Rho
B27: Vega | D27: Tabelle Vega (Call/Put) | F27: Diagramm Call-Vega | H27: Diagramm Put-Vega
D29: Hilfstabelle
B32: Die kommerzielle Weitergabe dieses Tools an Dritte ist untersagt!

Sheet EINGABESEITE
B2: institut für banken und finanzplanung | D2: = | E2: Eingabefelder | F2: Hauptmenü
B3: Optionsrechner: Black/Scholes, Hull | D3: = | E3: Ergebnisfelder Call
B4: Aktien-/Aktienindexoptionen | D4: = | E4: Ergebnisfelder Put
B5: © Max Lüscher-Marty, ibf chur
B6: Eingaben/Bestimmungsfaktoren | E6: Vorgaben/Eingaben für Steps
B7: Aktienkurs: CHF / Aktienindex: Punkte | C7: 100 | E7: Aktienkurs: CHF / Aktienindex: Punkte | F7: 0.01
B8: Ausübungspreis: CHF/Punkte | C8: 100
B9: Risikoloser Zinssatz: %/Jahr | C9: 4 | E9: Risikoloser Zinssatz: %/Jahr | F9: 1
B10: Restlaufzeit: Tage/360 | C10: 180 | E10: Restlaufzeit: Tage/360 | F10: 1
B11: Dividende pro Jahr: CHF/Punkte | C11: 2.625
B12: Volatilität: %/Jahr (0 = 0.000001) | C12: 20 | E12: Volatilität: %/Jahr | F12: 1
B14: Call-Preis und Call-Kennzahlen | E14: Put-Preis und Put-Kennzahlen
B15: Call-Preis Black-Scholes: CHF/Punkte | C15: ='T CAll-PUT-DELTA-GAMMA-LEVERAGE'!M24 -> 5.879669857 | E15: Put-Preis Black-Scholes: CHF/Punkte | F15: ='T CAll-PUT-DELTA-GAMMA-LEVERAGE'!N24 -> 5.224950145
B16: Innerer Wert | C16: =IF(C7<=C8,0,C7-C8) -> 0 | E16: Innerer Wert | F16: =IF(C7<C8,C8-C7,0) -> 0
B17: Zeitwert | C17: =IF(C7<=C8,C15,C15-(C7-C8)) -> 5.879669857 | E17: Zeitwert | F17: =IF(C7<C8,F15-(C8-C7),F15) -> 5.224950145
B18: Call-Delta | C18: ='T CAll-PUT-DELTA-GAMMA-LEVERAGE'!G24 -> 0.5468735721 | E18: Put-Delta | F18: ='T CAll-PUT-DELTA-GAMMA-LEVERAGE'!H24 -> -0.4531264279
B19: Call-Gamma | C19: ='T CAll-PUT-DELTA-GAMMA-LEVERAGE'!P24 -> 0.02837282236 | E19: Put-Gamma | F19: ='T CAll-PUT-DELTA-GAMMA-LEVERAGE'!Q24 -> 0.02837282236
B20: Call-Gearing | C20: ='T CAll-PUT-DELTA-GAMMA-LEVERAGE'!Y24 -> 17.00775765 | E20: Put-Gearing | F20: ='T CAll-PUT-DELTA-GAMMA-LEVERAGE'!Z24 -> 19.1389386
B21: Call-Leverage (Call-Omega) | C21: ='T CAll-PUT-DELTA-GAMMA-LEVERAGE'!AB24 -> 9.30109318 | E21: Put-Leverage (Put-Omega) | F21: ='T CAll-PUT-DELTA-GAMMA-LEVERAGE'!AC24 -> 8.67235888
B22: Call-Theta: CHF/Punkte pro Zeit-Step | C22: ='T THETA'!P22 -> -0.01674150756 | E22: Put-Theta: CHF/Punkte pro Zeit-Step | F22: ='T THETA'!Q22 -> -0.0131630629
B23: Call-Rho: +/- CHF/Punkte pro Zins-Step | C23: ='T RHO'!Q21 -> 0.2297130987 | E23: Put-Rho: -/+ CHF/Punkte pro Zins-Step | F23: ='T RHO'!R21 -> 0.2451471486
B24: Call-Vega: +/- CHF/Punkte pro Vola-Step | C24: ='T VEGA'!P22 -> 0.2765187567 | E24: Put-Vega: +/- CHF/Punkte pro Vola-Step | F24: ='T VEGA'!Q22 -> 0.2765187567
B26: Bestimmung der impliziten Call-Volatilität | E26: Bestimmung der impliziten Put-Volaltilität
B27: Call-Preis effektiv: CHF/Punkte | C27: 10.5 | E27: Put-Preis effektiv: CHF/Punkte | F27: 4.83
B29: Implizite Call-Volatilität | C29: =VLOOKUP(C27,'T IMPLIZITE VOLATILITÄT'!$S$30:$U$1031,3) -> 36.7 | E29: Implizite Put-Volatilität | F29: =VLOOKUP(F27,'T IMPLIZITE VOLATILITÄT'!$T$30:$U$1031,2) -> 18.5
B30: kann +/ - 0.10 Prozentpunkte abweichen | E30: kann +/ - 0.10 Prozentpunkte abweichen

Sheet T CAll-PUT-DELTA-GAMMA-LEVERAGE
B1: Daten eingeben/rechnen! | G1: Diagramm Call-Preis | M1: Diagramm Put-Preis | S1: Hauptmenü
G2: Diagramm Call-Delta | M2: Diagramm Put-Delta | P2: Diagramm Gamma
B4: Aktienkurs | E4: =EINGABESEITE!C7 -> 100 | F4: =E4 -> 100
B5: Berechnungsstep | E5: =EINGABESEITE!F7 -> 0.01 | F5: =E4/250 -> 0.4 | G5: Step
B6: Ausübungspreis | E6: =EINGABESEITE!C8 -> 100
B7: Dividende | E7: =EINGABESEITE!C11 -> 2.625 | F7: =LN(1+(E7/E4)) -> 0.02591138178 | G7: =EXP(-$F$7*$F$9) -> 0.9871278728
B8: Zinssatz | E8: =EINGABESEITE!C9 -> 4 | F8: =LN(1+(E8/100)) -> 0.03922071315 | G8: =EXP(-$F$8*$F$9) -> 0.9805806757
B9: Restlaufzeit (Tage/360) | E9: =EINGABESEITE!C10 -> 180 | F9: =E9/360 -> 0.5
B10: Volatilität Jahr | E10: =EINGABESEITE!C12 -> 20 | F10: =E10*SQRT(E$9/360) -> 14.14213562 | G10: =((E10/100)^2)/2 -> 0.02
B11: Volatilität Jahr (0.5) | F11: =F10/2 -> 7.071067812
B13: Tabelle Call-/Put-Preise, Call-/Put-Gamma, Call-/Put-Gearing, Call-/Put-Leverage
B15: Aktienkurs | M15: Options- | N15: Options- | P15: Gamma | Q15: Gamma
M16: preis | N16: preis
D17: d1 | E17: Dividende | F17: Dividende | G17: NV-Werte | J17: d2 | K17: NV-Werte
E18: % | F18: Faktor | G18: Verteilung | K18: Verteilung
G19: F(x) | K19: F(x)
G20: Call-Delta | H20: Put-Delta | M20: Call | N20: Put | P20: Call | Q20: Put | S20: Call-Delta | T20: Put-Delta | V20: Call-Gamma | W20: Put-Gamma | Y20: Call-Gearing | Z20: Put-Gearing | AB20: Call-Leverage | AC20: Put-Leverage
S21: approximativ | T21: approximativ
B22: =B23-$E$5 -> 99.98 | D22: =((LN(B22/$E$6))+(($F$8-E22+$G$10)*$F$9))/($F$10/100) -> 0.1163338251 | E22: =LN(1+($E$7/B22)) -> 0.02591649851 | F22: =EXP(-E22*$F$9) -> 0.9871253474 | G22: =NORMSDIST(D22) -> 0.5463060105 | H22: =1-G22 -> 0.4536939895 | J22: =D22-($F$10/100) -> -0.02508753115 | K22: =NORMSDIST(J22) -> 0.4899925729 | M22: =(B22*F22*G22)-($E$6*$G$8*K22) -> 5.868740767 | N22: =M22+($E$6*$G$8)-(B22*F22) -> 5.234016105 | Y22: =B22/M22 -> 17.03602254 | Z22: =B22/N22 -> 19.10196644 | AB22: =Y22*G22 -> 9.30688151 | AC22: =Z22*H22 -> 8.666447364
B23: =B24-$E$5 -> 99.99 | D23: =((LN(B23/$E$6))+(($F$8-E23+$G$10)*$F$9))/($F$10/100) -> 0.117050084 | E23: =LN(1+($E$7/B23)) -> 0.02591393989 | F23: =EXP(-E23*$F$9) -> 0.9871266102 | G23: =NORMSDIST(D23) -> 0.5465898175 | H23: =1-G23 -> 0.4534101825 | J23: =D23-($F$10/100) -> -0.02437127222 | K23: =NORMSDIST(J23) -> 0.4902782315 | M23: =(B23*F23*G23)-($E$6*$G$8*K23) -> 5.874203893 | N23: =M23+($E$6*$G$8)-(B23*F23) -> 5.229481707 | P23: =(G24-G22)/(B24-B22) -> 0.02837808095 | Q23: =-(H24--H22)/(B24-B22) -> -0.02837808095 | S23: =(M24-M22)/(B24-B22) -> 0.5464545171 | T23: =1-S23 -> 0.4535454829 | Y23: =B23/M23 -> 17.02188106 | Z23: =B23/N23 -> 19.12044168 | AB23: =Y23*G23 -> 9.303986864 | AC23: =Z23*H23 -> 8.669402952
B24: =F4 -> 100 | D24: =((LN(B24/$E$6))+(($F$8-E24+$G$10)*$F$9))/($F$10/100) -> 0.1177662704 | E24: =LN(1+($E$7/B24)) -> 0.02591138178 | F24: =EXP(-E24*$F$9) -> 0.9871278728 | G24: =NORMSDIST(D24) -> 0.5468735721 | H24: =-(1-G24) -> -0.4531264279 | J24: =D24-($F$10/100) -> -0.0236550858 | K24: =NORMSDIST(J24) -> 0.4905638662 | M24: =(B24*F24*G24)-($E$6*$G$8*K24) -> 5.879669857 | N24: =M24+($E$6*$G$8)-(B24*F24) -> 5.224950145 | P24: =(G25-G23)/(B25-B23) -> 0.02837282236 | Q24: =-(H25-H23)/(B25-B23) -> 0.02837282236 | S24: =(M25-M23)/(B25-B23) -> 0.5467382279 | T24: =1-S24 -> 0.4532617721 | V24: =(S25-S23)/(B25-B23) -> 0.02836844768 | W24: =-(T25-T23)/(B25-B23) -> 0.02836844768 | Y24: 17.00775765 | Z24: 19.1389386 | AB24: =Y24*G24 -> 9.30109318 | AC24: =-Z24*H24 -> 8.67235888
B25: =B24+$E$5 -> 100.01 | D25: 0.1184823844 | E25: =LN(1+($E$7/B25)) -> 0.02590882418 | F25: 0.9871291351 | G25: 0.547157274 | H25: =1-G25 -> 0.452842726 | J25: =D25-($F$10/100) -> -0.02293897188 | K25: =NORMSDIST(J25) -> 0.4908494768 | M25: =(B25*F25*G25)-($E$6*$G$8*K25) -> 5.885138658 | N25: =M25+($E$6*$G$8)-(B25*F25) -> 5.220421421 | P25: =(G26-G24)/(B26-B24) -> 0.02836755073 | Q25: =-(H26--H24)/(B26-B24) -> 0.02836755073 | S25: =(M26-M24)/(B26-B24) -> 0.5470218861 | T25: =1-S25 -> 0.4529781139 | Y25: 16.99365229 | Z25: 19.15745721 | AB25: 9.29820046 | AC25: 8.675315148
B26: =B25+$E$5 -> 100.02 | D26: 0.1191984258 | E26: =LN(1+($E$7/B26)) -> 0.02590626708 | F26: 0.9871303972 | G26: 0.5474409231 | H26: =1-G26 -> 0.4525590769 | J26: =D26-($F$10/100) -> -0.02222293043 | K26: =NORMSDIST(J26) -> 0.4911350631 | M26: =(B26*F26*G26)-($E$6*$G$8*K26) -> 5.890610295 | N26: =M26+($E$6*$G$8)-(B26*F26) -> 5.215895532
B29: =E4-(50*F5) -> 80 | D29: =((LN(B29/$E$6))+(($F$8-E29+$G$10)*$F$9))/($F$10/100) -> -1.482633402 | E29: =LN(1+($E$7/B29)) -> 0.0322856635 | F29: =EXP(-E29*$F$9) -> 0.9839867655 | G29: =NORMSDIST(D29) -> 0.06908591884 | H29: =(1-G29) -> 0.9309140812 | J29: =D29-($F$10/100) -> -1.624054758 | K29: =NORMSDIST(J29) -> 0.05218206122 | M29: =(B29*F29*G29)-($E$6*$G$8*K29) -> 0.3214982999 | N29: =M29+($E$6*$G$8)-(B29*F29) -> 19.66062463 | Y29: =B29/M29 -> 248.8349083 | Z29: =B29/N29 -> 4.069046711 | AB29: =Y29*G29 -> 17.19098828 | AC29: =Z29*H29 -> 3.78793288
B30: =B29+F$5 -> 80.4 | D30: =((LN(B30/$E$6))+(($F$8-E30+$G$10)*$F$9))/($F$10/100) -> -1.446807287 | E30: =LN(1+($E$7/B30)) -> 0.03212759108 | F30: =EXP(-E30*$F$9) -> 0.9840645391 | G30: =NORMSDIST(D30) -> 0.07397545262 | H30: =(1-G30) -> 0.9260245474 | J30: =D30-($F$10/100) -> -1.588228643 | K30: =NORMSDIST(J30) -> 0.05611732316 | M30: =(B30*F30*G30)-($E$6*$G$8*K30) -> 0.3500919575 | N30: =M30+($E$6*$G$8)-(B30*F30) -> 19.28937058 | P30: =(G31-G29)/(B31-B29) -> 0.01251569973 | Q30: =-(H31-H29)/(B31-B29) -> 0.01251569973 | S30: =(M31-M29)/(B31-B29) -> 0.07398633298 | T30: =1-S30 -> 0.926013667 | Y30: =B30/M30 -> 229.6539474 | Z30: =B30/N30 -> 4.168098677 | AB30: =Y30*G30 -> 16.98875471 | AC30: =Z30*H30 -> 3.859761691
B31: =B30+F$5 -> 80.8 | D31: -1.411161643 | E31: 0.03197105911 | F31: 0.9841415609 | G31: 0.07909847862 | H31: 0.9209015214 | J31: -1.552582999 | K31: 0.06026139488 | M31: 0.3806873663 | N31: 18.92011681 | P31: 0.01310330006 | Q31: =-(H32-H30)/(B32-B30) -> 0.01310330006 | S31: =(M32-M30)/(B32-B30) -> 0.07910822238 | T31: =1-S31 -> 0.9208917776 | V31: =(S32-S30)/(B32-B30) -> 0.01310029319 | W31: =-(T32-T30)/(B32-B30) -> 0.01310029319 | Y31: 212.2476529 | Z31: 4.270586741 | AB31: 16.78846644 | AC31: 3.932789827
B32: 81.2 | D32: -1.375694662 | E32: 0.03181604518 | F32: 0.9842178417 | G32: 0.08445809268 | H32: 0.9155419073 | J32: -1.517116018 | K32: 0.06461869738 | M32: 0.4133785354 | N32: 18.55295736 | P32: 0.01369806004 | Q32: 0.01369806004 | S32: 0.08446656753 | T32: 0.9155334325 | V32: =(S33-S31)/(B33-B31) -> 0.0136947193 | W32: 0.0136947193 | Y32: 196.4301313 | Z32: 4.376660736 | AB32: 16.59011424 | AC32: 4.007016318
B33: 81.6 | D33: -1.340404562 | E33: 0.03166252732 | F33: 0.9842933921 | G33: 0.09005692665 | H33: 0.9099430734 | J33: -1.481825919 | K33: 0.06919331039 | M33: 0.4482606204 | N33: 18.18798739 | P33: 0.01429879501 | Q33: =-(H34-H32)/(B34-B32) -> 0.01429879501 | S33: 0.09006399782 | T33: 0.9099360022 | V33: 0.01429511491 | W33: 0.01429511491 | Y33: 182.0369586 | Z33: 4.486477708 | AB33: 16.39368903 | AC33: 4.082439314
B34: 82 | D34: -1.30528959 | E34: 0.03151048397 | F34: 0.9843682226 | G34: 0.09589712869 | H34: 0.9041028713 | J34: -1.446710946 | K34: 0.07398894867 | M34: 0.4854297337 | N34: 17.82530305 | P34: 0.01490427366 | Q34: 0.01490427366 | S34: 0.09590265946 | T34: 0.9040973405 | V34: 0.01490024993 | W34: 0.01490024993 | Y34: 168.9224914 | Z34: 4.600202295 | AB34: 16.19918189 | AC34: 4.159056103
B35: 82.4 | D35: -1.270348017 | E35: 0.03135989398 | F35: 0.9844423434 | G35: 0.1019803456 | H35: 0.8980196544 | J35: -1.411769373 | K35: 0.07900893953 | M35: 0.5249827479 | N35: 17.46500122 | P35: 0.01551322312 | Q35: 0.01551322312 | S35: 0.1019841978 | T35: 0.8980158022 | V35: 0.01550885282 | W35: 0.01550885282 | Y35: 156.9575388 | Z35: 4.718007113 | AB35: 16.00658404 | AC35: 4.236863117
B36: 82.8 | D36: -1.23557814 | E36: 0.03121073661 | F36: 0.9845157645 | G36: 0.1083077072 | H36: 0.8916922928 | J36: -1.376999496 | K36: 0.08425620176 | M36: 0.5670170919 | N36: 17.10717936 | P36: 0.01612433446 | Q36: 0.01612433446 | S36: 0.1083097417 | T36: 0.8916902583 | V36: 0.01611961597 | W36: 0.01611961597 | Y36: 146.0273441 | Z36: 4.84007318 | AB36: 15.81588683 | AC36: 4.315855951
B37: 83.2 | D37: -1.200978281 | E37: 0.03106299152 | F37: 0.9845884959 | G37: 0.1148798131 | H37: 0.8851201869 | J37: -1.342399637 | K37: 0.08973322611 | M37: 0.6116305413 | N37: 16.75193525 | P37: 0.01673626836 | Q37: 0.01673626836 | S37: 0.1148798905 | T37: 0.8851201095 | V37: 0.01673120141 | W37: 0.01673120141 | Y37: 136.0298324 | Z37: 4.966590352 | AB37: 15.62708172 | AC37: 4.396029381
B38: 83.6 | D38: -1.166546787 | E38: 0.03091663873 | F38: 0.9846605472 | G38: 0.1216967219 | H38: 0.8783032781 | J38: -1.307968143 | K38: 0.0954420574 | M38: 0.6589210043 | N38: 16.39936683 | P38: 0.01734766096 | Q38: 0.01734766096 | S38: 0.1216947028 | T38: 0.8783052972 | V38: 0.01734224666 | W38: 0.01734224666 | Y38: 126.8740857 | Z38: 5.09775779 | AB38: 15.44016032 | AC38: 4.477377378
B39: 84 | D39: -1.132282027 | E39: 0.03077165867 | F39: 0.9847319278 | G39: 0.1287579419 | H39: 0.8712420581 | J39: -1.273703383 | K39: 0.1013842785 | M39: 0.7089863036 | N39: 16.04957193 | P39: 0.01795712991 | Q39: 0.01795712991 | S39: 0.1287536879 | T39: 0.8712463121 | V39: 0.01795137074 | W39: 0.01795137074 | Y39: 118.4790166 | Z39: 5.233784449 | AB39: 15.25511433 | AC39: 4.559893135
B40: 84.4 | D40: -1.098182396 | E40: 0.0306280321 | F40: 0.9848026472 | G40: 0.1360624258 | H40: 0.8639375742 | J40: -1.239603752 | K40: 0.107560996 | M40: 0.7619239546 | N40: 15.7026481 | P40: 0.01856328047 | Q40: 0.01856328047 | S40: 0.1360557994 | T40: 0.8639442006 | V40: 0.01855718028 | W40: 0.01855718028 | Y40: 110.7722096 | Z40: 5.374889602 | AB40: 15.07193555 | AC40: 4.643569085
B41: 84.8 | D41: -1.064246311 | E41: 0.03048574015 | F41: 0.9848727144 | G41: 0.1436085663 | H41: 0.8563914337 | J41: -1.205667667 | K41: 0.1139728283 | M41: 0.8178309431 | N41: 15.35869233 | P41: 0.01916471172 | Q41: 0.01916471172 | S41: 0.1435994321 | T41: 0.8564005679 | V41: 0.01915827574 | W41: 0.01915827574 | Y41: 103.6889112 | Z41: 5.521303389 | AB41: 14.89061587 | AC41: 4.728396925
B42: 85.2 | D42: -1.030472212 | E42: 0.03034476432 | F42: 0.9849421385 | G42: 0.1513941952 | H42: 0.8486058048 | J42: -1.171893568 | K42: 0.1206198949 | M42: 0.8768035003 | N42: 15.01780087 | P42: 0.01976002278 | Q42: 0.01976002278 | S42: 0.15138242 | T42: 0.84861758 | V42: 0.01975325756 | W42: 0.01975325756 | Y42: 97.17114493 | Z42: 5.673267394 | AB42: 14.71114728 | AC42: 4.814367643
B43: 85.6 | D43: -0.9968585596 | E43: 0.03020508641 | F43: 0.9850109282 | G43: 0.1594165845 | H43: 0.8405834155 | J43: -1.138279916 | K43: 0.1275018089 | M43: 0.9389368791 | N43: 14.68006899 | P43: 0.02034781898 | Q43: 0.02034781898 | S43: 0.1594020381 | T43: 0.8405979619 | V43: 0.02034073239 | W43: 0.02034073239 | Y43: 91.16693774 | Z43: 5.831035267 | AB43: 14.53352183 | AC43: 4.90147154
B44: 86 | D44: -0.9634038386 | E44: 0.0300666886 | F44: 0.9850790923 | G44: 0.1676724504 | H44: 0.8323275496 | J44: -1.104825195 | K44: 0.1346176706 | M44: 1.004325131 | N44: 14.34559076 | P44: 0.02092671801 | Q44: 0.02092671801 | S44: 0.1676550059 | T44: 0.8323449941 | V44: 0.0209193192 | W44: 0.0209193192 | Y44: 85.6296406 | Z44: 5.994873367 | AB44: 14.35773166 | AC44: 4.98969826
B45: 86.4 | D45: -0.9301065538 | E45: 0.02992955335 | F45: 0.9851466391 | G45: 0.1761579589 | H45: 0.8238420411 | J45: -1.07152791 | K45: 0.1419660641 | M45: 1.073060884 | N45: 14.01445883 | P45: 0.02149535595 | Q45: 0.02149535595 | S45: 0.1761374935 | T45: 0.8238625065 | V45: 0.0214876553 | W45: 0.0214876553 | Y45: 80.51733252 | Z45: 6.165061458 | AB45: 14.18376895 | AC45: 5.079036815
B46: 86.8 | D46: -0.8969652311 | E46: 0.02979366348 | F46: 0.9852135771 | G46: 0.1848687351 | H46: 0.8151312649 | J46: -1.038386587 | K46: 0.1495450557 | M46: 1.145235126 | N46: 13.6867642 | P46: 0.02205239315 | Q46: 0.02205239315 | S46: 0.1848451302 | T46: 0.8151548698 | V46: 0.02204440222 | W46: 0.02204440222 | Y46: 75.79229632 | Z46: 6.341893433 | AB46: 14.01162595 | AC46: 5.169475616
B47: 87.2 | D47: -0.8639784173 | E47: 0.02965900208 | F47: 0.9852799145 | G47: 0.1937998734 | H47: 0.8062001266 | J47: -1.005399774 | K47: 0.1573521944 | M47: 1.220936988 | N47: 13.36259601 | P47: 0.02259651996 | Q47: 0.02259651996 | S47: 0.1937730153 | T47: 0.8062269847 | V47: 0.02258825144 | W47: 0.02258825144 | Y47: 71.42055721 | Z47: 6.525678087 | AB47: 13.84129495 | AC47: 5.2610025
B48: 87.6 | D48: -0.8311446792 | E48: 0.02952555259 | F48: 0.9853456592 | G48: 0.2029459511 | H48: 0.7970540489 | J48: -0.9725660354 | K48: 0.165384515 | M48: 1.300253538 | N48: 13.04204136 | P48: 0.02312646221 | Q48: 0.02312646221 | S48: 0.2029157313 | T48: 0.7970842687 | V48: 0.02311792985 | W48: 0.02311792985 | Y48: 67.37147598 | Z48: 6.716739933 | AB48: 13.67276827 | AC48: 5.353604759
B49: 88 | D49: -0.7984626034 | E49: 0.0293932987 | F49: 0.9854108193 | G49: 0.2123010432 | H49: 0.7876989568 | J49: -0.9398839597 | K49: 0.173638543 | M49: 1.383269573 | N49: 12.72518505 | P49: 0.02364098651 | Q49: 0.02364098651 | S49: 0.2122673592 | T49: 0.7877326408 | V49: 0.02363220503 | W49: 0.02363220503 | Y49: 63.61739007 | Z49: 6.915420066 | AB49: 13.50603828 | AC49: 5.447269171
B50: 88.4 | D50: -0.7659307962 | E50: 0.02926222442 | F50: 0.9854754024 | G50: 0.2218587403 | H50: 0.7781412597 | J50: -0.9073521524 | K50: 0.1821103017 | M50: 1.470067425 | N50: 12.41210942 | P50: 0.02413890518 | Q50: 0.02413890518 | S50: 0.2218214954 | T50: 0.7781785046 | V50: 0.02412989024 | W50: 0.02412989024 | Y50: 60.13329626 | Z50: 7.122077078 | AB50: 13.34109736 | AC50: 5.541982029
B51: 88.8 | D51: -0.7335478827 | E51: 0.02913231404 | F51: 0.9855394162 | G51: 0.2316121674 | H51: 0.7683878326 | J51: -0.8749692389 | K51: 0.1907953217 | M51: 1.560726769 | N51: 12.10289418 | P51: 0.02461908099 | Q51: 0.02461908099 | S51: 0.2315712714 | T51: 0.7684287286 | V51: 0.02460984908 | W51: 0.02460984908 | Y51: 56.89657007 | Z51: 7.33708803 | AB51: 13.17793791 | AC51: 5.637729169
B52: 89.2 | D52: -0.701312507 | E52: 0.02900355212 | F52: 0.9856028682 | G52: 0.2415540051 | H52: 0.7584459949 | J52: -0.8427338632 | K52: 0.1996886519 | M52: 1.655324442 | N52: 11.79761616 | P52: 0.0250804315 | Q52: 0.0250804315 | S52: 0.2415093746 | T52: 0.7584906254 | V52: 0.02507099986 | W52: 0.02507099986 | Y52: 53.88671714 | Z52: 7.560849477 | AB52: 13.01655235 | AC52: 5.734496004
B53: 89.6 | D53: -0.6692233316 | E53: 0.0288759235 | F53: 0.9856657658 | G53: 0.2516765126 | H53: 0.7483234874 | J53: -0.8106446878 | K53: 0.208784873 | M53: 1.753934269 | N53: 11.49634922 | P53: 0.02552193308 | Q53: 0.02552193308 | S53: 0.2516280712 | T53: 0.7483719288 | V53: 0.02551231964 | W53: 0.02551231964 | Y53: 51.08515272 | Z53: 7.793778553 | AB53: 12.85693308 | AC53: 5.832267547
B54: 90 | D54: -0.6372790371 | E54: 0.02874941329 | F54: 0.9857281162 | G54: 0.2619715515 | H54: 0.7380284485 | J54: -0.7787003933 | K54: 0.2180781122 | M54: 1.856626899 | N54: 11.19916401 | P54: 0.02594262458 | Q54: 0.02594262458 | S54: 0.2619192303 | T54: 0.7380807697 | V54: 0.02593284785 | W54: 0.02593284785 | Y54: 48.47500596 | Z54: 8.03631413 | AB54: 12.69907252 | AC54: 5.931028449
B55: 90.4 | D55: -0.6054783217 | E55: 0.02862400683 | F55: 0.9857899265 | G55: 0.2724306122 | H55: 0.7275693878 | J55: -0.746899678 | K55: 0.2275620602 | M55: 1.963469653 | N55: 10.90612787 | P55: 0.02634161061 | Q55: 0.02634161061 | S55: 0.2723743495 | T55: 0.7276256505 | V55: 0.02633168959 | W55: 0.02633168959 | Y55: 46.04094586 | Z55: 8.288918035 | AB55: 12.54296307 | AC55: 6.03076302
B56: 90.8 | D56: -0.5738199014 | E56: 0.02849968976 | F56: 0.9858512036 | G56: 0.28304484 | H56: 0.71695516 | J56: -0.7152412576 | K56: 0.2372299897 | M56: 2.074526379 | N56: 10.61730466 | P56: 0.02671806444 | Q56: 0.02671806444 | S56: 0.282984582 | T56: 0.717015418 | V56: 0.02670801855 | W56: 0.02670801855 | Y56: 43.76902647 | Z56: 8.552076342 | AB56: 12.3885971 | AC56: 6.131455262
B57: 91.2 | D57: -0.5423025089 | E57: 0.02837644794 | F57: 0.9859119545 | G57: 0.2938050638 | H57: 0.7061949362 | J57: -0.6837238652 | K57: 0.2470747753 | M57: 2.189857319 | N57: 10.33275463 | P57: 0.0270712305 | Q57: 0.0270712305 | S57: 0.2937407644 | T57: 0.7062592356 | V57: 0.02706107945 | W57: 0.02706107945 | Y57: 41.64654894 | Z57: 8.826300752 | AB57: 12.23596697 | AC57: 6.233088897
B58: 91.6 | D58: -0.5109248942 | E58: 0.02825426747 | F58: 0.985972186 | G58: 0.3047018244 | H58: 0.6952981756 | J58: -0.6523462504 | K58: 0.257088915 | M58: 2.30951899 | N58: 10.05253432 | P58: 0.02740042645 | Q58: 0.02740042645 | S58: 0.3046334456 | T58: 0.6953665544 | V58: 0.02739019021 | W58: 0.02739019021 | Y58: 39.66193843 | Z58: 9.11213004 | AB58: 12.085065 | AC58: 6.335647392
B59: 92 | D59: -0.4796858234 | E59: 0.02813313471 | F59: 0.9860319045 | G59: 0.3157254049 | H59: 0.6842745951 | J59: -0.6211071797 | K59: 0.2672645528 | M59: 2.433564075 | N59: 9.776696426 | P59: 0.02770504494 | Q59: 0.02770504494 | S59: 0.3156529165 | T59: 0.6843470835 | V59: 0.02769474359 | W59: 0.02769474359 | Y59: 37.80463434 | Z59: 9.410131601 | AB59: 11.93588348 | AC59: 6.439113991
B60: 92.4 | D60: -0.4485840793 | E60: 0.02801303623 | F60: 0.9860911168 | G60: 0.3268658604 | H60: 0.6731341396 | J60: -0.5900054355 | K60: 0.2775935027 | M60: 2.562041324 | N60: 9.505289702 | P60: 0.02798455483 | Q60: 0.02798455483 | S60: 0.3267892404 | T60: 0.6732107596 | V60: 0.02797420852 | W60: 0.02797420852 | Y60: 36.06499206 | Z60: 9.720903087 | AB60: 11.78841466 | AC60: 6.543471736
B61: 92.8 | D61: -0.4176184603 | E61: 0.02789395884 | F61: 0.9861498291 | G61: 0.3381130488 | H61: 0.6618869512 | J61: -0.5590398165 | K61: 0.2880672734 | M61: 2.694995468 | N61: 9.238358895 | P61: 0.02823850214 | Q61: 0.02823850214 | S61: 0.3380322833 | T61: 0.6619677167 | V61: 0.02822813097 | W61: 0.02822813097 | Y61: 34.4341952 | Z61: 10.04507414 | AB61: 11.64265072 | AC61: 6.648703495
B62: 93.2 | D62: -0.3867877806 | E62: 0.02777588958 | F62: 0.9862080478 | G62: 0.3494566621 | H62: 0.6505433379 | J62: -0.5282091368 | K62: 0.2986770942 | M62: 2.83246715 | N62: 8.975944662 | P62: 0.02846651053 | Q62: 0.02846651053 | S62: 0.3493717452 | T62: 0.6506282548 | V62: 0.02845613447 | W62: 0.02845613447 | Y62: 32.90417684 | Z62: 10.38330822 | AB62: 11.49858381 | AC62: 6.754791988
B63: 93.6 | D63: -0.3560908699 | E63: 0.02765881569 | F63: 0.9862657791 | G63: 0.3608862572 | H63: 0.6391137428 | J63: -0.4975122262 | K63: 0.3094139417 | M63: 2.974492864 | N63: 8.718083507 | P63: 0.02866828138 | Q63: 0.02866828138 | S63: 0.3607971909 | T63: 0.6392028091 | V63: 0.02865792024 | W63: 0.02865792024 | Y63: 31.46754902 | Z63: 10.73630459 | AB63: 11.35620599 | AC63: 6.861719812
B64: 94 | D64: -0.3255265731 | E64: 0.02754272464 | F64: 0.9863230291 | G64: 0.3723912872 | H64: 0.6276087128 | J64: -0.4669479293 | K64: 0.3202685664 | M64: 3.121104903 | N64: 8.464807737 | P64: 0.0288435936 | Q64: 0.0288435936 | S64: 0.3722980814 | T64: 0.6277019186 | V64: 0.02883326687 | W64: 0.02883326687 | Y64: 30.11753944 | Z64: 11.10480036 | AB64: 11.21550928 | AC64: 6.969469459
B65: 94.4 | D65: -0.2950937498 | E65: 0.0274276041 | F65: 0.9863798037 | G65: 0.3839611321 | H65: 0.6160388679 | J65: -0.436515106 | K65: 0.3312315208 | M65: 3.272331329 | N65: 8.216145424 | P65: 0.02899230296 | Q65: 0.02899230296 | S65: 0.3838638044 | T65: 0.6161361956 | V65: 0.02898202979 | W65: 0.02898202979 | Y65: 28.84793455 | Z65: 11.48957268 | AB65: 11.07648561 | AC65: 7.078023346
B66: 94.8 | D66: -0.2647912743 | E66: 0.02731344196 | F66: 0.986436109 | G66: 0.3955851296 | H66: 0.6044148704 | J66: -0.4062126305 | K66: 0.3422931872 | M66: 3.428195947 | N66: 7.972120386 | P66: 0.02911434114 | Q66: 0.02911434114 | S66: 0.3954837052 | T66: 0.6045162948 | V66: 0.02910414026 | W66: 0.02910414026 | Y66: 27.65302844 | Z66: 11.8914411 | AB66: 10.93912684 | AC66: 7.187363831
B67: 95.2 | D67: -0.2346180354 | E67: 0.0272002263 | F67: 0.9864919506 | G67: 0.407252605 | H67: 0.592747395 | J67: -0.3760393916 | K67: 0.3534438056 | M67: 3.588718293 | N67: 7.732752169 | P67: 0.02920971441 | Q67: 0.02920971441 | S67: 0.4071471166 | T67: 0.5928528834 | V67: 0.02919960406 | W67: 0.02919960406 | Y67: 26.52757676 | Z67: 12.31127003 | AB67: 10.80342474 | AC67: 7.297473237
B68: 95.6 | D68: -0.2045729359 | E68: 0.02708794539 | F68: 0.9865473342 | G68: 0.4189529011 | H68: 0.5810470989 | J68: -0.3459942922 | K68: 0.3646735022 | M68: 3.75391364 | N68: 7.498056057 | P68: 0.02927850207 | Q68: 0.02927850207 | S68: 0.4188433885 | T68: 0.5811566115 | V68: 0.02926849995 | W68: 0.02926849995 | Y68: 25.46675528 | Z68: 12.74997136 | AB68: 10.66937101 | AC68: 7.408333871
B69: 96 | D69: -0.1746548927 | E69: 0.0269765877 | F69: 0.9866022656 | G69: 0.4306754067 | H69: 0.5693245933 | J69: -0.3160762489 | K69: 0.375972317 | M69: 3.923793004 | N69: 7.268043079 | P69: 0.02932085451 | Q69: 0.02932085451 | S69: 0.4305619166 | T69: 0.5694380834 | V69: 0.0293109777 | W69: 0.0293109777 | Y69: 24.46612242 | Z69: 13.20850729 | AB69: 10.53695722 | AC69: 7.519928042
B70: 96.4 | D70: -0.144862836 | E70: 0.02686614189 | F70: 0.9866567501 | G70: 0.4424095847 | H70: 0.5575904153 | J70: -0.2862841923 | K70: 0.3873302322 | M70: 4.098363173 | N70: 7.042720031 | P70: 0.02933699105 | Q70: 0.02933699105 | S70: 0.4422921706 | T70: 0.5577078294 | V70: 0.02932725597 | W70: 0.02932725597 | Y70: 23.52158555 | Z70: 13.68789325 | AB70: 10.4061749 | AC70: 7.632238083
B71: 96.8 | D71: -0.11519571 | E71: 0.02675659681 | F71: 0.9867107933 | G71: 0.4541449995 | H71: 0.5458550005 | J71: -0.2566170662 | K71: 0.3987371996 | M71: 4.27762674 | N71: 6.822089519 | P71: 0.02932719753 | Q71: 0.02932719753 | S71: 0.4540237214 | T71: 0.5459762786 | V71: 0.0293176199 | W71: 0.0293176199 | Y71: 22.62937041 | Z71: 14.18920108 | AB71: 10.27701542 | AC71: 7.745246365
B72: 97.2 | D72: -0.08565247151 | E72: 0.02664794148 | F72: 0.9867644004 | G72: 0.4658713427 | H72: 0.5341286573 | J72: -0.2270738278 | K72: 0.4101831675 | M72: 4.46158215 | N72: 6.606149997 | P72: 0.02929182364 | Q72: 0.02929182364 | S72: 0.4657462666 | T72: 0.5342537334 | V72: 0.02928241844 | W72: 0.02928241844 | Y72: 21.78599356 | Z72: 14.71356237 | AB72: 10.14947007 | AC72: 7.858935312
B73: 97.6 | D73: -0.05623209082 | E73: 0.02654016511 | F73: 0.9868175768 | G73: 0.4775784584 | H73: 0.5224215416 | J73: -0.1976534471 | K73: 0.4216581075 | M73: 4.650223754 | N73: 6.394895826 | P73: 0.02923128009 | Q73: 0.02923128009 | S73: 0.4774496561 | T73: 0.5225503439 | V73: 0.0292220615 | W73: 0.0292220615 | Y73: 20.98823738 | Z73: 15.262172 | AB73: 10.02353005 | AC73: 7.973287423
B74: 98 | D74: -0.02693355075 | E74: 0.02643325707 | F74: 0.9868703276 | G74: 0.4892563668 | H74: 0.5107436332 | J74: -0.168354907 | K74: 0.4331520404 | M74: 4.843541875 | N74: 6.18831734 | P74: 0.02914603555 | Q74: 0.02914603555 | S74: 0.4891239158 | T74: 0.5108760842 | V74: 0.02913701695 | W74: 0.02913701695 | Y74: 20.23312744 | Z74: 15.83629194 | AB74: 9.899186418 | AC74: 8.08828528
B75: 98.4 | D75: 0.002244153231 | E75: 0.02632720691 | F75: 0.9869226579 | G75: 0.5008952869 | H75: 0.4991047131 | J75: -0.139177203 | K75: 0.4446550613 | M75: 5.041522886 | N75: 5.986400922 | P75: 0.02903661349 | Q75: 0.02903661349 | S75: 0.5007592697 | T75: 0.4992407303 | V75: 0.0290278074 | W75: 0.0290278074 | Y75: 19.51791199 | Z75: 16.43725525 | AB75: 9.776430126 | AC75: 8.203911567
B76: 98.8 | D76: 0.03130201329 | E76: 0.02622200434 | F76: 0.9869745726 | G76: 0.5124856576 | H76: 0.4875143424 | J76: -0.1101193429 | K76: 0.456157364 | M76: 5.244149291 | N76: 5.789129085 | P76: 0.02890358881 | Q76: 0.02890358881 | S76: 0.5123461617 | T76: 0.4876538383 | V76: 0.02889500689 | W76: 0.02889500689 | Y76: 18.84004336 | Z76: 17.06647037 | AB76: 9.655252008 | AC76: 8.32014908
B77: 99.2 | D77: 0.06024100945 | E77: 0.02611763924 | F77: 0.9870260768 | G77: 0.5240181579 | H77: 0.4759818421 | J77: -0.08118034679 | K77: 0.4676492645 | M77: 5.451399816 | N77: 5.596480565 | P77: 0.02874758443 | Q77: 0.02874758443 | S77: 0.5238752752 | T77: 0.4761247248 | V77: 0.02873923747 | W77: 0.02873923747 | Y77: 18.19716098 | Z77: 17.72542562 | AB77: 9.535642775 | AC77: 8.43698074
B78: 99.6 | D78: 0.08906210974 | E78: 0.02601410166 | F78: 0.9870771753 | G78: 0.5354837251 | H78: 0.4645162749 | J78: -0.0523592465 | K78: 0.4791212231 | M78: 5.663249511 | N78: 5.408430422 | P78: 0.02856926773 | Q78: 0.02856926773 | S78: 0.5353375516 | T78: 0.4646624484 | V78: 0.02856116561 | W78: 0.02856116561 | Y78: 17.58707608 | Z78: 18.41569406 | AB78: 9.417593013 | AC78: 8.554389604
B79: =B78+F$5 -> 100 | D79: 0.1177662704 | E79: 0.02591138178 | F79: 0.9871278728 | G79: 0.5468735721 | H79: 0.4531264279 | J79: -0.0236550858 | K79: 0.4905638662 | M79: 5.879669857 | N79: 5.224950145 | P79: 0.02836934699 | Q79: 0.02836934699 | S79: 0.5467242077 | T79: 0.4532757923 | V79: 0.02836149871 | W79: 0.02836149871 | Y79: 17.00775765 | Z79: 19.1389386 | AB79: 9.30109318 | AC79: 8.67235888
B80: 100.4 | D80: 0.1463544362 | E80: 0.02580946997 | F80: 0.9871781741 | G80: 0.5581792027 | H80: 0.4418207973 | J80: 0.00493307999 | K80: 0.5019680062 | M80: 6.100628877 | N80: 5.046007768 | P80: 0.0281485677 | Q80: 0.0281485677 | S80: 0.5580267506 | T80: 0.4419732494 | V80: 0.02814098134 | W80: 0.02814098134 | Y80: 16.45731973 | Z80: 19.89691745 | AB80: 9.186133607 | AC80: 8.79087193
B81: 100.8 | D81: 0.1748275404 | E81: 0.02570835671 | F81: 0.9872280837 | G81: 0.5693924263 | H81: 0.4306075737 | J81: 0.03340618416 | K81: 0.5133246609 | M81: 6.326091257 | N81: 4.871567985 | P81: 0.02790770893 | Q81: 0.02790770893 | S81: 0.5692369927 | T81: 0.4307630073 | V81: 0.02790039166 | W81: 0.02790039166 | Y81: 15.93400979 | Z81: 20.69148995 | AB81: 9.072704492 | AC81: 8.909912285
B82: 101.2 | D82: 0.203186505 | E82: 0.02560803266 | F82: 0.9872776063 | G82: 0.5805053699 | H82: 0.4194946301 | J82: 0.06176514879 | K82: 0.5246250711 | M82: 6.556018471 | N82: 4.701592278 | P82: 0.0276475796 | Q82: 0.0276475796 | S82: 0.5803470639 | T82: 0.4196529361 | V82: 0.02764053772 | W82: 0.02764053772 | Y82: 15.43619812 | Z82: 21.52462273 | AB82: 8.960795899 | AC82: 9.02946365
B83: 101.6 | D83: 0.2314322412 | E83: 0.02550848862 | F83: 0.9873267464 | G83: 0.5915104899 | H83: 0.4084895101 | J83: 0.09001088492 | K83: 0.5358607175 | M83: 6.790368909 | N83: 4.536039046 | P83: 0.02736901489 | Q83: 0.02736901489 | S83: 0.5913494229 | T83: 0.4086505771 | V83: 0.02736225379 | W83: 0.02736225379 | Y83: 14.96236823 | Z83: 22.39839626 | AB83: 8.85039776 | AC83: 9.149509914
B84: 102 | D84: 0.259565649 | E84: 0.02540971553 | F84: 0.9873755082 | G84: 0.6024005818 | H84: 0.3975994182 | J84: 0.1181442927 | K84: 0.5470233357 | M84: 7.02909801 | N84: 4.374863739 | P84: 0.02707287252 | Q84: 0.02707287252 | S84: 0.602236867 | T84: 0.397763133 | V84: 0.02706639673 | W84: 0.02706639673 | Y84: 14.51110795 | Z84: 23.31501187 | AB84: 8.741499871 | AC84: 9.270035156
B85: 102.4 | D85: 0.287587618 | E85: 0.02531170445 | F85: 0.9874238963 | G85: 0.613168788 | H85: 0.386831212 | J85: 0.1461662617 | K85: 0.5581049306 | M85: 7.272158402 | N85: 4.218018991 | P85: 0.02676002925 | Q85: 0.02676002925 | S85: 0.6130025403 | T85: 0.3869974597 | V85: 0.02675384243 | W85: 0.02675384243 | Y85: 14.08110142 | Z85: 24.27679918 | AB85: 8.634091891 | AC85: 9.391023652
B86: 102.8 | D86: 0.3154990271 | E86: 0.02521444661 | F86: 0.9874719148 | G86: 0.6238086052 | H86: 0.3761913948 | J86: 0.1740776709 | K86: 0.5690977893 | M86: 7.519500042 | N86: 4.065454768 | P86: 0.0264313773 | Q86: 0.0264313773 | S86: 0.6236399409 | T86: 0.3763600591 | V86: 0.02642548228 | W86: 0.02642548228 | Y86: 13.67112167 | Z86: 25.28622402 | AB86: 8.528163343 | AC86: 9.512459883
B87: 103.2 | D87: 0.343300745 | E87: 0.02511793336 | F87: 0.987519568 | G87: 0.6343138898 | H87: 0.3656861102 | J87: 0.2018793888 | K87: 0.5799944922 | M87: 7.771070355 | N87: 3.917118504 | P87: 0.02608782094 | Q87: 0.02608782094 | S87: 0.6341429261 | T87: 0.3658570739 | V87: 0.02608221971 | W87: 0.02608221971 | Y87: 13.28002389 | Z87: 26.34589684 | AB87: 8.423703613 | AC87: 9.634328534
B88: 103.6 | D88: 0.3709936301 | E88: 0.02502215618 | F88: 0.9875668601 | G88: 0.6446788619 | H88: 0.3553211381 | J88: 0.2295722739 | K88: 0.5907879231 | M88: 8.026814383 | N88: 3.772955247 | P88: 0.0257302731 | Q88: 0.0257302731 | S88: 0.6445057167 | T88: 0.3554942833 | V88: 0.02572496689 | W88: 0.02572496689 | Y88: 12.90673922 | Z88: 27.45858172 | AB88: 8.320701951 | AC88: 9.756614508
B89: 104 | D89: 0.3985785308 | E89: 0.02492710667 | F89: 0.9876137951 | G89: 0.6548981083 | H89: 0.3451018917 | J89: 0.2571571746 | K89: 0.6014712789 | M89: 8.286674928 | N89: 3.63290781 | P89: 0.02535965218 | Q89: 0.02535965218 | S89: 0.6547228996 | T89: 0.3452771004 | V89: 0.02535464144 | W89: 0.02535464144 | Y89: 12.55026906 | Z89: 28.62720593 | AB89: 8.219147469 | AC89: 9.87930292
B90: 104.4 | D90: 0.4260562856 | E90: 0.02483277658 | F90: 0.987660377 | G90: 0.6649665837 | H90: 0.3350334163 | J90: 0.2846349294 | K90: 0.6120380761 | M90: 8.550592703 | N90: 3.496916911 | P90: 0.02497687888 | Q90: 0.02497687888 | S90: 0.6647894298 | T90: 0.3352105702 | V90: 0.02497216332 | W90: 0.02497216332 | Y90: 12.20967992 | Z90: 29.85487006 | AB90: 8.119029142 | AC90: 10.00237911
B91: 104.8 | D91: 0.4534277233 | E91: 0.02473915777 | F91: 0.9877066099 | G91: 0.6748796114 | H91: 0.3251203886 | J91: 0.3120063671 | K91: 0.6224821578 | M91: 8.818506472 | N91: 3.364921325 | P91: 0.02458287319 | Q91: 0.02458287319 | S91: 0.6747006303 | T91: 0.3252993697 | V91: 0.02457845183 | W91: 0.02457845183 | Y91: 11.88409855 | Z91: 31.14485894 | AB91: 8.020335813 | AC91: 10.12582864
B92: 105.2 | D92: 0.4806936631 | E92: 0.02464624223 | F92: 0.9877524976 | G92: 0.6846328822 | H92: 0.3153671178 | J92: 0.3392723069 | K92: 0.6327976987 | M92: 9.090353207 | N92: 3.236858028 | P92: 0.02417855154 | Q92: 0.02417855154 | S92: 0.6844521913 | T92: 0.3155478087 | V92: 0.02417442272 | W92: 0.02417442272 | Y92: 11.57270764 | Z92: 32.50065313 | AB92: 7.923056186 | AC92: 10.2496373
B93: 105.6 | D93: 0.5078549149 | E93: 0.02455402206 | F93: 0.987798044 | G93: 0.6942224526 | H93: 0.3057775474 | J93: 0.3664335586 | K93: 0.6429792089 | M93: 9.366068225 | N93: 3.112662347 | P93: 0.02376482405 | Q93: 0.02376482405 | S93: 0.6940401685 | T93: 0.3059598315 | V93: 0.02376098546 | W93: 0.02376098546 | Y93: 11.2747417 | Z93: 33.92594128 | AB93: 7.827178837 | AC93: 10.37379112
B94: =B93+F$5 -> 106 | D94: =((LN(B94/$E$6))+(($F$8-E94+$G$10)*$F$9))/($F$10/100) -> 0.534912279 | E94: =LN(1+($E$7/B94)) -> 0.02446248947 | F94: =EXP(-E94*$F$9) -> 0.9878432529 | G94: =NORMSDIST(D94) -> 0.7036447415 | H94: =(1-G94) -> 0.2963552585 | J94: =D94-($F$10/100) -> 0.3934909228 | K94: =NORMSDIST(J94) -> 0.6530215365 | M94: =(B94*F94*G94)-($E$6*$G$8*K94) -> 9.645585342 | N94: =M94+($E$6*$G$8)-(B94*F94) -> 2.992268104 | P94: =(G95-G93)/(B95-B93) -> 0.02334259193 | Q94: =-(H95-H93)/(B95-B93) -> 0.02334259193 | S94: =(M95-M93)/(B95-B93) -> 0.7034609797 | T94: 0.2965390203 | V94: 0.02333904066 | W94: 0.02333904066 | Y94: =B94/M94 -> 10.9894834 | Z94: =B94/N94 -> 35.4246332 | AB94: =Y94*G94 -> 7.732692206 | AC94: =Z94*H94 -> 10.49827633
B95: 106.4 | D95: 0.5618665469 | E95: 0.02437163682 | F95: 0.987888128 | G95: 0.7128965262 | H95: 0.2871034738 | J95: 0.4204451907 | K95: 0.6629198695 | M95: 9.928837009 | N95: 2.875607758 | P95: 0.02291274506 | Q95: 0.02291274506 | S95: 0.712711401 | T95: =1-S95 -> 0.287288599 | V95: =(S96-S94)/(B96-B94) -> 0.02290947765 | W95: =-(T96-T94)/(B96-B94) -> 0.02290947765 | Y95: 10.71626011 | Z95: 37.00087388 | AB95: 7.639584607 | AC95: 10.62307943
B96: 106.8 | D96: 0.5887185009 | E96: 0.02428145655 | F96: 0.987932673 | G96: 0.7219749375 | H96: 0.2780250625 | J96: 0.4472971447 | K96: 0.6726697358 | M96: 10.21575446 | N96: 2.762612553 | P96: 0.0224761597 | Q96: 0.0224761597 | S96: 0.7217885618 | T96: 0.2782114382 | V96: 0.02247317214 | W96: 0.02247317214 | Y96: 10.45444078 | Z96: 38.65905839 | AB96: 7.547844225 | AC96: 10.74818712
B97: 107.2 | D97: 0.6154689145 | E97: 0.02419194123 | F97: 0.9879768916 | G97: 0.7308774539 | H97: 0.2691225461 | J97: 0.4740475583 | K97: 0.6822670032 | M97: 10.50626786 | N97: 2.653212652 | P97: 0.02203369636 | Q97: 0.02203369636 | S97: 0.7306899387 | T97: 0.2693100613 | V97: 0.02203098417 | W97: 0.02203098417 | Y97: 10.20343298 | Z97: 40.40384774 | AB97: 7.45745912 | AC97: 10.87358638
B98: 107.6 | D98: 0.6421185525 | E98: 0.02410308352 | F98: 0.9880207872 | G98: 0.7396018946 | H98: 0.2603981054 | J98: 0.5006971963 | K98: 0.6917078771 | M98: 10.80030641 | N98: 2.547337277 | P98: 0.02158619786 | Q98: 0.02158619786 | S98: 0.7394133491 | T98: 0.2605866509 | V98: 0.02158375606 | W98: 0.02158375606 | Y98: 9.962680306 | Z98: 42.24018584 | AB98: 7.368417229 | AC98: 10.99926436
B99: 108 | D99: 0.668668171 | E99: 0.0240148762 | F99: 0.9880643635 | G99: 0.7481464122 | H99: 0.2518535878 | J99: 0.5272468147 | K99: 0.7009888987 | M99: 11.09779854 | N99: 2.444914848 | P99: 0.02113448746 | Q99: 0.02113448746 | S99: 0.7479569436 | T99: 0.2520430564 | V99: 0.02113231069 | W99: 0.02113231069 | Y99: 9.731659809 | Z99: 44.17331757 | AB99: 7.280706371 | AC99: 11.12520852
B100: 108.4 | D100: 0.6951185176 | E100: 0.02392731217 | F100: 0.9881076239 | G100: 0.7565094846 | H100: 0.2434905154 | J100: 0.5536971614 | K100: 0.7101069409 | M100: 11.39867197 | N100: 2.345873106 | P100: 0.0206793673 | Q100: 0.0206793673 | S100: 0.7563191977 | T100: 0.2436808023 | V100: 0.02067744979 | W100: 0.02067744979 | Y100: 9.509879774 | Z100: 46.20880803 | AB100: 7.194314246 | AC100: 11.25140648
B101: 108.8 | D101: 0.7214703318 | E101: 0.02384038441 | F101: 0.9881505718 | G101: 0.764689906 | H101: 0.235310094 | J101: 0.5800489755 | K101: 0.7190592044 | M101: 11.7028539 | N101: 2.250139249 | P101: 0.02022161683 | Q101: 0.02022161683 | S101: 0.7644989034 | T101: 0.2355010966 | V101: 0.02021995247 | W101: 0.02021995247 | Y101: 9.296877579 | Z101: 48.35256308 | AB101: 7.109228443 | AC101: 11.37784616
B102: 109.2 | D102: 0.7477243445 | E102: 0.02375408601 | F102: 0.9881932107 | G102: 0.772686778 | H102: 0.227313222 | J102: 0.6063029883 | K102: 0.7278432127 | M102: 12.01027109 | N102: 2.157640056 | P102: 0.01976199153 | Q102: 0.01976199153 | S102: 0.7724951597 | T102: 0.2275048403 | V102: 0.01976057391 | W102: 0.01976057391 | Y102: 9.09221775 | Z102: 50.61085129 | AB102: 7.025436439 | AC102: 11.50451567
B103: 109.6 | D103: 0.7738812789 | E103: 0.02366841015 | F103: 0.9882355437 | G103: 0.7804994993 | H103: 0.2195005007 | J103: 0.6324599226 | K103: 0.7364568057 | M103: 12.32085002 | N103: 2.068302001 | P103: 0.01930122172 | Q103: 0.01930122172 | S103: 0.7803073625 | T103: 0.2196926375 | V103: 0.01930004413 | W103: 0.01930004413 | Y103: 8.895490148 | Z103: 52.9903273 | AB103: 6.942925606 | AC103: 11.63140338
B104: 110 | D104: 0.7999418498 | E104: 0.02358335014 | F104: 0.9882775743 | G104: 0.7881277554 | H104: 0.2118722446 | J104: 0.6585204936 | K104: 0.7448981336 | M104: 12.63451698 | N104: 1.98205138 | P104: 0.01884001152 | Q104: 0.01884001152 | S104: 0.787935195 | T104: 0.212064805 | V104: 0.01883906702 | W104: 0.01883906702 | Y104: 8.706308295 | Z104: 55.49805678 | AB104: 6.861683215 | AC104: 11.75849786
B105: 110.4 | D105: 0.8259067645 | E105: 0.02349889934 | F105: 0.9883193056 | G105: 0.7955715085 | H105: 0.2044284915 | J105: 0.6844854083 | K105: 0.7531656498 | M105: 12.95119818 | N105: 1.898814413 | P105: 0.018379038 | Q105: 0.018379038 | S105: 0.7953786161 | T105: 0.2046213839 | V105: 0.01837831944 | W105: 0.01837831944 | Y105: 8.524307826 | Z105: 58.14154307 | AB105: 6.781696436 | AC105: 11.88578794
B106: 110.8 | D106: 0.8517767223 | E106: 0.02341505124 | F106: 0.9883607408 | G106: 0.8028309858 | H106: 0.1971690142 | J106: 0.7103553661 | K106: 0.7612581029 | M106: 13.27081987 | N106: 1.818517363 | P106: 0.01791895042 | Q106: 0.01791895042 | S106: 0.8026378505 | T106: 0.1973621495 | V106: 0.01791845047 | W106: 0.01791845047 | Y106: 8.349145046 | Z106: 60.92875561 | AB106: 6.702952348 | AC106: 12.01326268
B107: 111.2 | D107: 0.877552415 | E107: 0.0233317994 | F107: 0.9884018831 | G107: 0.8099066688 | H107: 0.1900933312 | J107: 0.7361310588 | K107: 0.7691745286 | M107: 13.59330846 | N107: 1.741086632 | P107: 0.01746036965 | Q107: 0.01746036965 | S107: 0.8097133765 | T107: 0.1902866235 | V107: 0.01746008083 | W107: 0.01746008083 | Y107: 8.180495597 | Z107: 63.86816024 | AB107: 6.625437938 | AC107: 12.14091134
B108: 111.6 | D108: 0.9032345268 | E108: 0.0232491375 | F108: 0.9884427355 | G108: 0.8167992815 | H108: 0.1832007185 | J108: 0.7618131706 | K108: 0.7769142407 | M108: 13.91859057 | N108: 1.666448862 | P108: 0.01700388768 | Q108: 0.01700388768 | S108: 0.8166059152 | T108: 0.1833940848 | V108: 0.01700380241 | W108: 0.01700380241 | Y108: 8.018053222 | Z108: 66.96875166 | AB108: 6.549140111 | AC108: 12.26872342
B109: 112 | D109: 0.9288237345 | E109: 0.02316705928 | F109: 0.9884833011 | G109: 0.823509779 | H109: 0.176490221 | J109: 0.7874023783 | K109: 0.7844768225 | M109: 14.24659319 | N109: 1.594531033 | P109: 0.01655006732 | Q109: 0.01655006732 | S109: 0.8233164184 | T109: 0.1766835816 | V109: 0.01655017792 | W109: 0.01655017792 | Y109: 7.861528612 | Z109: 70.24008795 | AB109: 6.474045689 | AC109: 12.39668865
B110: 112.4 | D110: 0.9543207076 | E110: 0.02308555858 | F110: 0.988523583 | G110: 0.8300393354 | H110: 0.1699606646 | J110: 0.8128993514 | K110: 0.7918621168 | M110: 14.57724371 | N110: 1.525260549 | P110: 0.01609944199 | Q110: 0.01609944199 | S110: 0.8298460575 | T110: 0.1701539425 | V110: 0.01609974071 | W110: 0.01609974071 | Y110: 7.710648339 | Z110: 73.69232756 | AB110: 6.400141423 | AC110: 12.52479697
B111: 112.8 | D111: 0.9797261084 | E111: 0.02300462933 | F111: 0.9885635841 | G111: 0.8363893325 | H111: 0.1636106675 | J111: 0.8383047521 | K111: 0.7990702162 | M111: 14.91047004 | N111: 1.458565326 | P111: 0.01565251555 | Q111: 0.01565251555 | S111: 0.836196211 | T111: 0.163803789 | V111: 0.01565299463 | W111: 0.01565299463 | Y111: 7.565153863 | Z111: 77.33626872 | AB111: 6.32741399 | AC111: 12.65303854
B112: 113.2 | D112: 1.005040592 | E112: 0.02292426553 | F112: 0.9886033072 | G112: 0.8425613478 | H112: 0.1574386522 | J112: 0.8636192357 | K112: 0.8061014532 | M112: 15.24620068 | N112: 1.394373871 | P112: 0.01520976242 | Q112: 0.01520976242 | S112: 0.8423684532 | T112: 0.1576315468 | V112: 0.01521041407 | W112: 0.01521041407 | Y112: 7.424800604 | Z112: 81.18339158 | AB112: 6.255850004 | AC112: 12.78140375
B113: 113.6 | D113: 1.030264807 | E113: 0.02284446129 | F113: 0.9886427554 | G113: 0.8485571425 | H113: 0.1514428575 | J113: 0.8888434503 | K113: 0.8129563897 | M113: 15.5843648 | N113: 1.33261536 | P113: 0.0147716276 | Q113: 0.0147716276 | S113: 0.8483645423 | T113: 0.1516354577 | V113: 0.01477244407 | W113: 0.01477244407 | Y113: 7.289357087 | Z113: 85.24590322 | AB113: 6.18543602 | AC113: 12.90988318
B114: 114 | D114: 1.055399393 | E114: 0.02276521077 | F114: 0.9886819314 | G114: 0.8543786499 | H114: 0.1456213501 | J114: 0.9139780372 | K114: 0.8196358069 | M114: 15.92489231 | N114: 1.273219705 | P114: 0.01433852694 | Q114: 0.01433852694 | S114: 0.8541864085 | T114: 0.1458135915 | V114: 0.01433950048 | W114: 0.01433950048 | Y114: 7.158604138 | Z114: 89.53678577 | AB114: 6.116158538 | AC114: 13.03846763
B115: 114.4 | D115: 1.080444987 | E115: 0.02268650824 | F115: 0.988720838 | G115: 0.860027964 | H115: 0.139972036 | J115: 0.9390236309 | K115: 0.8261406941 | M115: 16.26771393 | N115: 1.216117627 | P115: 0.0139108474 | Q115: 0.0139108474 | S115: 0.8598361427 | T115: 0.1401638573 | V115: 0.01391197035 | W115: 0.01391197035 | Y115: 7.032334138 | Z115: 94.06984774 | AB115: 6.048004011 | AC115: 13.16714811
B116: 114.8 | D116: 1.105402215 | E116: 0.02260834803 | F116: 0.9887594781 | G116: 0.8655073278 | H116: 0.1344926722 | J116: 0.963980859 | K116: 0.8324722388 | M116: 16.61276123 | N116: 1.161240711 | P116: 0.01348894746 | Q116: 0.01348894746 | S116: 0.8653159847 | T116: 0.1346840153 | V116: 0.01349021223 | W116: 0.01349021223 | Y116: 6.910350329 | Z116: 98.85977897 | AB116: 5.980958847 | AC116: 13.29591584
B117: 115.2 | D117: 1.130271699 | E117: 0.02253072455 | F117: 0.9887978543 | G117: 0.870819122 | H117: 0.129180878 | J117: 0.9888503427 | K117: 0.8386318154 | M117: 16.95996672 | N117: 1.108521468 | P117: 0.01307315759 | Q117: 0.01307315759 | S117: 0.8706283124 | T117: 0.1293716876 | V117: 0.01307455666 | W117: 0.01307455666 | Y117: 6.792466161 | Z117: 103.9222093 | AB117: 5.915009418 | AC117: 13.42476224
B118: 115.6 | D118: 1.155054053 | E118: 0.02245363229 | F118: 0.9888359694 | G118: 0.8759658539 | H118: 0.1240341461 | J118: 1.013632697 | K118: 0.8446209751 | M118: 17.30926388 | N118: 1.057893386 | P118: 0.01266378073 | Q118: 0.01266378073 | S118: 0.8757756301 | T118: 0.1242243699 | V118: 0.01266530672 | W118: 0.01266530672 | Y118: 6.678504691 | Z118: 109.2737714 | AB118: 5.850142065 | AC118: 13.55367893
B119: 116 | D119: 1.179749885 | E119: 0.02237706582 | F119: 0.9888738259 | G119: 0.8809501466 | H119: 0.1190498534 | J119: 1.038328529 | K119: 0.8504414345 | M119: 17.66058722 | N119: 1.00929098 | P119: 0.01226109294 | Q119: 0.01226109294 | S119: 0.8807605578 | T119: 0.1192394422 | V119: 0.01226273857 | W119: 0.01226273857 | Y119: 6.568298016 | Z119: 114.9321676 | AB119: 5.7863431 | AC119: 13.6826577
B120: 116.4 | D120: 1.204359798 | E120: 0.02230101978 | F120: 0.9889114266 | G120: 0.8857747283 | H120: 0.1142252717 | J120: 1.062938442 | K120: 0.8560950657 | M120: 18.01387232 | N120: 0.962649833 | P120: 0.01186534401 | Q120: 0.01186534401 | S120: 0.8855858209 | T120: 0.1144141791 | V120: 0.01186710216 | W120: 0.01186710216 | Y120: 6.461686744 | Z120: 120.9162418 | AB120: 5.72359882 | AC120: 13.81169058
B121: 116.8 | D121: 1.228884386 | E121: 0.02222548888 | F121: 0.988948774 | G121: 0.8904424218 | H121: 0.1095575782 | J121: 1.08746303 | K121: 0.8615838857 | M121: 18.36905588 | N121: 0.9179066403 | P121: 0.0114767582 | Q121: 0.0114767582 | S121: 0.8902542395 | T121: 0.1097457605 | V121: 0.01147862189 | W121: 0.01147862189 | Y121: 6.358519501 | Z121: 127.2460563 | AB121: 5.661895503 | AC121: 13.94076976
B122: 117.2 | D122: 1.25332424 | E122: 0.0221504679 | F122: 0.9889858707 | G122: 0.8949561348 | H122: 0.1050438652 | J122: 1.111902883 | K122: 0.8669100456 | M122: 18.72607571 | N122: 0.8749992419 | P122: 0.01109553494 | Q122: 0.01109553494 | S122: 0.8947687184 | T122: 0.1052312816 | V122: 0.01109749735 | W122: 0.01109749735 | Y122: 6.258652469 | Z122: 133.9429732 | AB122: 5.601219423 | AC122: 14.06988762
B123: 117.6 | D123: 1.277679942 | E123: 0.0220759517 | F123: 0.9890227191 | G123: 0.8993188498 | H123: 0.1006811502 | J123: 1.136258586 | K123: 0.872075821 | M123: 19.08487085 | N123: 0.8338666555 | P123: 0.01072184966 | Q123: 0.01072184966 | S123: 0.8991322374 | T123: 0.1008677626 | V123: 0.01072390413 | W123: 0.01072390413 | Y123: 6.161948955 | Z123: 141.0297429 | AB123: 5.541556847 | AC123: 14.19903673
B124: 118 | D124: 1.30195207 | E124: 0.02200193519 | F124: 0.9890593218 | G124: 0.9035336145 | H124: 0.09646638546 | J124: 1.160530713 | K124: 0.8770836018 | M124: 19.4453815 | N124: 0.7944491051 | P124: 0.01035585458 | Q124: 0.01035585458 | S124: 0.9033478417 | T124: 0.09665215825 | V124: 0.01035799465 | W124: 0.01035799465 | Y124: 6.068278988 | Z124: 148.5305972 | AB124: 5.482894048 | AC124: 14.32820984
B125: 118.4 | D125: 1.326141195 | E125: 0.02192841338 | F125: 0.9890956812 | G125: 0.9076035334 | H125: 0.09239646658 | J125: 1.184719839 | K125: 0.881935882 | M125: 19.80754912 | N125: 0.7566880448 | P125: 0.009997679577 | Q125: 0.009997679577 | S125: 0.9074186331 | T125: 0.09258136686 | V125: 0.00999989896 | W125: 0.00999989896 | Y125: 5.977518938 | Z125: 156.4713501 | AB125: 5.425217309 | AC125: 14.45739987
B126: 118.8 | D126: 1.350247883 | E126: 0.0218553813 | F126: 0.9891317997 | G126: 0.9115317582 | H126: 0.08846824179 | J126: 1.208826527 | K126: 0.8866352509 | M126: 20.17131641 | N126: 0.7205261796 | P126: 0.009647433041 | Q126: 0.009647433041 | S126: 0.9113477609 | T126: 0.08865223908 | V126: 0.009649725646 | W126: 0.009649725646 | Y126: 5.889551162 | Z126: 164.8795052 | AB126: 5.368512925 | AC126: 14.58659994
B127: 119.2 | D127: 1.374272694 | E127: 0.0217828341 | F127: 0.9891676797 | G127: 0.9153214799 | H127: 0.08467852014 | J127: 1.232851337 | K127: 0.8911843831 | M127: 20.53662733 | N127: 0.6859074829 | P127: 0.00930520278 | Q127: 0.00930520278 | S127: 0.9151384137 | T127: 0.08486158635 | V127: 0.009307562712 | W127: 0.009307562712 | Y127: 5.804263673 | Z127: 173.7843703 | AB127: 5.312767215 | AC127: 14.7158033
B128: 119.6 | D128: 1.398216181 | E128: 0.02171076695 | F128: 0.9892033236 | G128: 0.9189759204 | H128: 0.08102407957 | J128: 1.256794825 | K128: 0.8955860297 | M128: 20.90342714 | N128: 0.6527772106 | P128: 0.008971056909 | Q128: 0.008971056909 | S128: 0.9187938111 | T128: 0.08120618892 | V128: 0.008973478474 | W128: 0.008973478474 | Y128: 5.72154983 | Z128: 183.2171805 | AB128: 5.257966521 | AC128: 14.84500341
B129: 120 | D129: 1.422078894 | E129: 0.0216391751 | F129: 0.9892387337 | G129: 0.9224983254 | H129: 0.07750167462 | J129: 1.280657537 | K129: 0.8998430097 | M129: 21.27166238 | N129: 0.6210819117 | P129: 0.008645044772 | Q129: 0.008645044772 | S129: 0.9223171964 | T129: 0.07768280357 | V129: 0.00864752248 | W129: 0.00864752248 | Y129: 5.641308039 | Z129: 193.2112298 | AB129: 5.204097219 | AC129: 14.97419387
B130: 120.4 | D130: 1.445861375 | E130: 0.02156805388 | F130: 0.9892739122 | G130: 0.9258919562 | H130: 0.07410804375 | J130: 1.304440018 | K130: 0.9039582009 | M130: 21.6412809 | N130: 0.5907694366 | P130: 0.008327197854 | Q130: 0.008327197854 | S130: 0.9257118291 | T130: 0.07428817093 | V130: 0.008329726421 | W130: 0.008329726421 | Y130: 5.563441488 | Z130: 203.8020123 | AB130: 5.151145723 | AC130: 15.10336845
B131: 120.8 | D131: 1.469564161 | E131: 0.02149739864 | F131: 0.9893088615 | G131: 0.9291600837 | H131: 0.07083991633 | J131: 1.328142805 | K131: 0.9079345326 | M131: 22.01223184 | N131: 0.5617889416 | P131: 0.0080175307 | Q131: 0.0080175307 | S131: 0.9289809776 | T131: 0.07101902243 | V131: 0.008020105052 | W131: 0.008020105052 | Y131: 5.487857881 | Z131: 215.0273725 | AB131: 5.099098487 | AC131: 15.23252108
B132: 121.2 | D132: 1.493187786 | E132: 0.02142720484 | F132: 0.9893435838 | G132: 0.9323059808 | H132: 0.06769401919 | J132: 1.35176643 | K132: 0.9117749768 | M132: 22.38446568 | N132: 0.5340908918 | P132: 0.007716041835 | Q132: 0.007716041835 | S132: 0.9321279131 | T132: 0.06787208689 | V132: 0.007718657103 | W132: 0.007718657103 | Y132: 5.414469201 | Z132: 226.9276669 | AB132: 5.047942019 | AC132: 15.36164584
B133: 121.6 | D133: 1.516732775 | E133: 0.02135746796 | F133: 0.9893780813 | G133: 0.9353329171 | H133: 0.06466708287 | J133: 1.375311419 | K133: 0.9154825411 | M133: 22.75793418 | N133: 0.5076270605 | P133: 0.00742271467 | Q133: 0.00742271467 | S133: 0.9351559033 | T133: 0.06484409675 | V133: 0.007425366193 | W133: 0.007425366193 | Y133: 5.34319148 | Z133: 239.5459373 | AB133: 4.997662874 | AC133: 15.49073698
B134: 122 | D134: 1.540199651 | E134: 0.02128818355 | F134: 0.9894123561 | G134: 0.9382441525 | H134: 0.06175584746 | J134: 1.398778295 | K134: 0.9190602615 | M134: 23.1325904 | N134: 0.4823505266 | P134: 0.007137518404 | Q134: 0.007137518404 | S134: 0.9380682061 | T134: 0.06193179394 | V134: 0.007140201731 | W134: 0.007140201731 | Y134: 5.27394459 | Z134: 252.9280954 | AB134: 4.948247672 | AC134: 15.61978887
B135: 122.4 | D135: 1.56358893 | E135: 0.02121934723 | F135: 0.9894464105 | G135: 0.9410429319 | H135: 0.05895706814 | J135: 1.422167574 | K135: 0.9225111951 | M135: 23.50838874 | N135: 0.4582156699 | P135: 0.006860408918 | Q135: 0.006860408918 | S135: 0.9408680646 | T135: 0.05913193536 | V135: 0.0068631198 | W135: 0.0068631198 | Y135: 5.206652032 | Z135: 267.1231214 | AB135: 4.899683093 | AC135: 15.74879607
B136: 122.8 | D136: 1.586901123 | E136: 0.02115095466 | F136: 0.9894802464 | G136: 0.9437324797 | H136: 0.05626752032 | J136: 1.445479766 | K136: 0.9258384138 | M136: 23.88528486 | N136: 0.4351781634 | P136: 0.006591329647 | Q136: 0.006591329647 | S136: 0.9435587019 | T136: 0.0564412981 | V136: 0.00659406404 | W136: 0.00659406404 | Y136: 5.141240757 | Z136: 282.1832764 | AB136: 4.851955889 | AC136: 15.87775324
B137: 123.2 | D137: 1.610136736 | E137: 0.02108300156 | F137: 0.9895138661 | G137: 0.9463159956 | H137: 0.05368400443 | J137: 1.46871538 | K137: 0.9290449979 | M137: 24.2632357 | N137: 0.4131949653 | P137: 0.006330212441 | Q137: 0.006330212441 | S137: 0.9461433159 | T137: 0.05385668413 | V137: 0.006332966501 | W137: 0.006332966501 | Y137: 5.077640984 | Z137: 298.16433 | AB137: 4.805052883 | AC137: 16.00665521
B138: 123.6 | D138: 1.633296271 | E138: 0.02101548372 | F138: 0.9895472716 | G138: 0.9487966496 | H138: 0.05120335037 | J138: 1.491874915 | K138: 0.93213403 | M138: 24.64219951 | N138: 0.3922243071 | P138: 0.006076978406 | Q138: 0.006076978406 | S138: 0.9486250751 | T138: 0.05137492489 | V138: 0.006079748487 | W138: 0.006079748487 | Y138: 5.015786028 | Z138: 315.1258037 | AB138: 4.758960979 | AC138: 16.13549694
B139: 124 | D139: 1.656380224 | E139: 0.02094839696 | F139: 0.9895804649 | G139: 0.9511775783 | H139: 0.0488224217 | J139: 1.514958868 | K139: 0.9351085895 | M139: 25.02213576 | N139: 0.3722256813 | P139: 0.005831538724 | Q139: 0.005831538724 | S139: 0.9510071147 | T139: 0.04899288534 | V139: 0.005834321373 | W139: 0.005834321373 | Y139: 4.95561215 | Z139: 333.1312325 | AB139: 4.713667164 | AC139: 16.26427352
B140: 124.4 | D140: 1.679389087 | E140: 0.02088173717 | F140: 0.9896134481 | G140: 0.9534618806 | H140: 0.04653811939 | J140: 1.537967731 | K140: 0.9379717475 | M140: 25.4030052 | N140: 0.3531598277 | P140: 0.005593795453 | Q140: 0.005593795453 | S140: 0.9532925322 | T140: 0.0467074678 | V140: 0.005596587407 | W140: 0.005596587407 | Y140: 4.8970584 | Z140: 352.2484446 | AB140: 4.669158512 | AC140: 16.39298017
B141: 124.8 | D141: 1.702323346 | E141: 0.02081550029 | F141: 0.9896462231 | G141: 0.9556526147 | H141: 0.04434738534 | J141: 1.56090199 | K141: 0.9407265611 | M141: 25.78476979 | N141: 0.3349887167 | P141: 0.005363642299 | Q141: 0.005363642299 | S141: 0.9554843846 | T141: 0.04451561542 | V141: 0.005366440482 | W141: 0.005366440482 | Y141: 4.840066482 | Z141: 372.5498614 | AB141: 4.625422189 | AC141: 16.52161226
B142: 125.2 | D142: 1.725183484 | E142: 0.0207496823 | F142: 0.9896787919 | G142: 0.9577527944 | H142: 0.04224720555 | J142: 1.583762128 | K142: 0.9433760697 | M142: 26.16739271 | N142: 0.3176755335 | P142: 0.005140965372 | Q142: 0.005140965372 | S142: 0.9575856846 | T142: 0.04241431541 | V142: 0.005143766887 | W142: 0.005143766887 | Y142: 4.784580619 | Z142: 394.1128189 | AB142: 4.582445458 | AC142: 16.65016527
B143: 125.6 | D143: 1.747969978 | E143: 0.02068427924 | F143: 0.9897111564 | G143: 0.959765387 | H143: 0.04023461304 | J143: 1.606548622 | K143: 0.9459232896 | M143: 26.55083834 | N143: 0.3011846587 | P143: 0.004925643905 | Q143: 0.004925643905 | S143: 0.9595993981 | T143: 0.04040060191 | V143: 0.004928446032 | W143: 0.004928446032 | Y143: 4.730547428 | Z143: 417.0199125 | AB143: 4.540215683 | AC143: 16.77863481
B144: 126 | D144: 1.770683301 | E144: 0.0206192872 | F144: 0.9897433186 | G144: 0.9616933096 | H144: 0.03830669043 | J144: 1.629261945 | K144: 0.9483712108 | M144: 26.93507223 | N144: 0.2854816499 | P144: 0.004717550955 | Q144: 0.004717550955 | S144: 0.9615284414 | T144: 0.03847155858 | V144: 0.004720351147 | W144: 0.004720351147 | Y144: 4.677915802 | Z144: 441.359366 | AB144: 4.49872033 | AC144: 16.9070166
B145: 126.4 | D145: 1.793323921 | E145: 0.02055470232 | F145: 0.9897752804 | G145: 0.9635394277 | H145: 0.03646057228 | J145: 1.651902565 | K145: 0.9507227925 | M145: 27.32006109 | N145: 0.2705332209 | P145: 0.004516554078 | Q145: 0.004516554078 | S145: 0.963375679 | T145: 0.03662432099 | V145: 0.004519349951 | W145: 0.004519349951 | Y145: 4.6266368 | Z145: 467.2254284 | AB145: 4.457946974 | AC145: 17.0353065
B146: 126.8 | D146: 1.815892302 | E146: 0.02049052078 | F146: 0.9898070435 | G146: 0.9653065528 | H146: 0.03469344716 | J146: 1.674470946 | K146: 0.9529809601 | M146: 27.70577277 | N146: 0.2563072206 | P146: 0.004322515965 | Q146: 0.004322515965 | S146: 0.9651439214 | T146: 0.03485607862 | V146: 0.004325305297 | W146: 0.004325305297 | Y146: 4.576663537 | Z146: 494.7187977 | AB146: 4.417883303 | AC146: 17.16350047
B147: 127.2 | D147: 1.838388904 | E147: 0.02042673882 | F147: 0.9898386099 | G147: 0.9669974405 | H147: 0.0330025595 | J147: 1.696967548 | K147: 0.9551486019 | M147: 28.09217623 | N147: 0.2427726112 | P147: 0.004135295065 | Q147: 0.004135295065 | S147: 0.9668359232 | T147: 0.03316407675 | V147: 0.004138075788 | W147: 0.004138075788 | Y147: 4.527951091 | Z147: 523.947077 | AB147: 4.378517116 | AC147: 17.29159459
B148: 127.6 | D148: 1.860814181 | E148: 0.02036335272 | F148: 0.9898699814 | G148: 0.9686147889 | H148: 0.03138521111 | J148: 1.719392824 | K148: 0.957228566 | M148: 28.47924151 | N148: 0.2298994453 | P148: 0.003954746167 | Q148: 0.003954746167 | S148: 0.968454382 | T148: 0.03154561799 | V148: 0.003957516364 | W148: 0.003957516364 | Y148: 4.480456404 | Z148: 555.0252626 | AB148: 4.339836334 | AC148: 17.41958504
B149: 128 | D149: 1.883168584 | E149: 0.0203003588 | F149: 0.9899011598 | G149: 0.9701612374 | H149: 0.02983876257 | J149: 1.741747227 | K149: 0.9592236577 | M149: 28.86693973 | N149: 0.2176588429 | P149: 0.003780720966 | Q149: 0.003780720966 | S149: 0.9700019363 | T149: 0.02999806366 | V149: 0.003783478861 | W149: 0.003783478861 | Y149: 4.434138194 | Z149: 588.0762679 | AB149: 4.301828997 | AC149: 17.54746813
B150: 128.4 | D150: 1.905452559 | E150: 0.02023775343 | F150: 0.9899321469 | G150: 0.9716393657 | H150: 0.02836063434 | J150: 1.764031203 | K150: 0.961136637 | M150: 29.25524306 | N150: 0.2060229674 | P150: 0.003613068585 | Q150: 0.003613068585 | S150: 0.9714811651 | T150: 0.02851883491 | V150: 0.003615812543 | W150: 0.003615812543 | Y150: 4.38895687 | Z150: 623.2314853 | AB150: 4.264483269 | AC150: 17.67524027
B151: 128.8 | D151: 1.927666549 | E151: 0.02017553304 | F151: 0.9899629443 | G151: 0.9730516923 | H151: 0.0269483077 | J151: 1.786245193 | K151: 0.9629702167 | M151: 29.64412466 | N151: 0.1949650019 | P151: 0.003451636088 | Q151: 0.003451636088 | S151: 0.9728945864 | T151: 0.02710541363 | V151: 0.003454364604 | W151: 0.003454364604 | Y151: 4.344874455 | Z151: 660.631389 | AB151: 4.227787442 | AC151: 17.80289795
B152: 129.2 | D152: 1.949810992 | E152: 0.02011369407 | F152: 0.989993554 | G152: 0.9744006745 | H152: 0.02559932547 | J152: 1.808389636 | K152: 0.9647270601 | M152: 30.03355873 | N152: 0.1844591242 | P152: 0.003296268948 | Q152: 0.003296268948 | S152: 0.9742446568 | T152: 0.02575534322 | V152: 0.003298980645 | W152: 0.003298980645 | Y152: 4.301854508 | Z152: 700.4261816 | AB152: 4.191729934 | AC152: 17.93043779
B153: 129.6 | D153: 1.971886322 | E153: 0.02005223303 | F153: 0.9900239774 | G153: 0.9756887075 | H153: 0.02431129254 | J153: 1.830464966 | K153: 0.9664097795 | M153: 30.42352039 | N153: 0.1744804824 | P153: 0.003146811499 | Q153: 0.003146811499 | S153: 0.9755337709 | T153: 0.02446622911 | V153: 0.003149505119 | W153: 0.003149505119 | Y153: 4.259862052 | Z153: 742.7764883 | AB153: 4.1562993 | AC153: 18.0578565
B154: 130 | D154: 1.993892969 | E154: 0.01999114648 | F154: 0.9900542165 | G154: 0.9769181237 | H154: 0.02308187627 | J154: 1.852471612 | K154: 0.9680209349 | M154: 30.81398574 | N154: 0.1650051701 | P154: 0.003003107354 | Q154: 0.003003107354 | S154: 0.9767642609 | T154: 0.02323573913 | V154: 0.003005781757 | W154: 0.003005781757 | Y154: 4.218863508 | Z154: 787.8541014 | AB154: 4.121484223 | AC154: 18.18515089
B155: 130.4 | D155: 2.015831358 | E155: 0.01993043099 | F155: 0.9900842727 | G155: 0.9780911933 | H155: 0.02190880666 | J155: 1.874410002 | K155: 0.969563032 | M155: 31.2049318 | N155: 0.156010201 | P155: 0.002864999802 | Q155: 0.002864999802 | S155: 0.9779383963 | T155: 0.02206160371 | V155: 0.002867653955 | W155: 0.002867653955 | Y155: 4.178826631 | Z155: 835.8427793 | AB155: 4.087273526 | AC155: 18.31231785
B156: 130.8 | D156: 2.037701912 | E156: 0.0198700832 | F156: 0.9901141479 | G156: 0.9792101236 | H156: 0.02078987643 | J156: 1.896280556 | K156: 0.971038522 | M156: 31.59633646 | N156: 0.1474734842 | P156: 0.002732332178 | Q156: 0.002732332178 | S156: 0.979058384 | T156: 0.02094161596 | V156: 0.002734965153 | W156: 0.002734965153 | Y156: 4.139720444 | Z156: 886.9391045 | AB156: 4.053656168 | AC156: 18.43935438
B157: 131.2 | D157: 2.059505049 | E157: 0.01981009977 | F157: 0.9901438436 | G157: 0.9802770591 | H157: 0.01972294092 | J157: 1.918083693 | K157: 0.9724498001 | M157: 31.9881785 | N157: 0.1393737989 | P157: 0.002604948199 | Q157: 0.002604948199 | S157: 0.9801263684 | T157: 0.01987363158 | V157: 0.002607559168 | W157: 0.002607559168 | Y157: 4.101515189 | Z157: 941.3534038 | AB157: 4.020621247 | AC157: 18.56625757
B158: =B157+F$5 -> 131.6 | D158: =((LN(B158/$E$6))+(($F$8-E158+$G$10)*$F$9))/($F$10/100) -> 2.081241183 | E158: =LN(1+($E$7/B158)) -> 0.01975047742 | F158: =EXP(-E158*$F$9) -> 0.9901733614 | G158: =NORMSDIST(D158) -> 0.9812940821 | H158: =(1-G158) -> 0.01870591787 | J158: =D158-($F$10/100) -> 1.939819827 | K158: =NORMSDIST(J158) -> 0.9737992049 | M158: =(B158*F158*G158)-($E$6*$G$8*K158) -> 32.38043755 | N158: =M158+($E$6*$G$8)-(B158*F158) -> 0.1316907696 | P158: =(G159-G157)/(B159-B157) -> 0.002482692294 | Q158: =-(H159-H157)/(B159-B157) -> 0.002482692294 | S158: =(M159-M157)/(B159-B157) -> 0.9811444314 | T158: 0.01885556863 | V158: 0.002485280521 | W158: 0.002485280521 | Y158: =B158/M158 -> 4.064182264 | Z158: =B158/N158 -> 999.3107371 | AB158: =Y158*G158 -> 3.988158004 | AC158: =Z158*H158 -> 18.69302457
B159: 132 | D159: 2.102910725 | E159: 0.01969121289 | F159: 0.9902027029 | G159: 0.9822632129 | H159: 0.01773678708 | J159: 1.961489368 | K159: 0.975089018 | M159: 32.77309405 | N159: 0.1244048409 | P159: 0.002365409888 | Q159: 0.002365409888 | S159: 0.9821145928 | T159: =1-S159 -> 0.01788540717 | V159: =(S160-S158)/(B160-B158) -> 0.002367974727 | W159: =-(T160-T158)/(B160-B158) -> 0.002367974727 | Y159: 4.027694175 | Z159: 1061.051958 | AB159: 3.956255821 | AC159: 18.81965266
B160: 132.4 | D160: 2.12451408 | E160: 0.01963230298 | F160: 0.9902318697 | G160: 0.98318641 | H160: 0.01681358996 | J160: 1.983092724 | K160: 0.9763214634 | M160: 33.16612923 | N160: 0.1174972531 | P160: 0.00225294768 | Q160: 0.00225294768 | S160: 0.9830388112 | T160: 0.01696118885 | V160: 0.002255488568 | W160: 0.002255488568 | Y160: 3.992024486 | Z160: 1126.834853 | AB160: 3.924904224 | AC160: 18.94613918
B161: 132.8 | D161: 2.146051653 | E161: 0.0195737445 | F161: 0.9902608633 | G161: 0.9840655711 | H161: 0.01593442894 | J161: 2.004630297 | K161: 0.9774987074 | M161: 33.5595251 | N161: 0.1109500176 | P161: 0.002145153894 | Q161: 0.002145153894 | S161: 0.9839189837 | T161: 0.01608101631 | V161: 0.002147670345 | W161: 0.002147670345 | Y161: 3.957147773 | Z161: 1196.935366 | AB161: 3.894092883 | AC161: 19.07248154
B162: 133.2 | D162: 2.167523843 | E162: 0.01951553433 | F162: 0.9902896854 | G162: 0.9849025332 | H162: 0.01509746684 | J162: 2.026102487 | K162: 0.9786228583 | M162: 33.95326442 | N162: 0.1047458925 | P162: 0.002041878501 | Q162: 0.002041878501 | S162: 0.9847569474 | T162: 0.01524305257 | V162: 0.002044370105 | W162: 0.002044370105 | Y162: 3.923039575 | Z162: 1271.64891 | AB162: 3.863811615 | AC162: 19.19867725
B163: 133.6 | D163: 2.188931044 | E163: 0.01945766937 | F163: 0.9903183373 | G163: 0.9856990739 | H163: 0.01430092614 | J163: 2.047509688 | K163: 0.9796959667 | M163: 34.34733066 | N163: 0.09886835858 | P163: 0.001942973433 | Q163: 0.001942973433 | S163: 0.9855544798 | T163: 0.01444552023 | V163: 0.001945439848 | W163: 0.001945439848 | Y163: 3.889676358 | Z163: 1351.291777 | AB163: 3.834050383 | AC163: 19.3247239
B164: 134 | D164: 2.21027365 | E164: 0.01940014655 | F164: 0.9903468207 | G164: 0.9864569119 | H164: 0.0135430881 | J164: 2.068852294 | K164: 0.9807200253 | M164: 34.741708 | N164: 0.0933015958 | P164: 0.001848292765 | Q164: 0.001848292765 | S164: 0.9863132993 | T164: 0.01368670069 | V164: 0.001850733714 | W164: 0.001850733714 | Y164: 3.857035469 | Z164: 1436.202659 | AB164: 3.804799298 | AC164: 19.45061914
B165: 134.4 | D165: 2.231552049 | E165: 0.01934296284 | F165: 0.9903751369 | G165: 0.9871777081 | H165: 0.01282229193 | J165: 2.090130693 | K165: 0.9816969694 | M165: 35.1363813 | N165: 0.08803045982 | P165: 0.001757692889 | Q165: 0.001757692889 | S165: 0.9870350667 | T165: 0.01296493326 | V165: 0.001760108156 | W165: 0.001760108156 | Y165: 3.825095102 | Z165: 1526.744269 | AB165: 3.776048616 | AC165: 19.57636071
B166: 134.8 | D166: 2.252766625 | E166: 0.01928611527 | F166: 0.9904032876 | G166: 0.9878630662 | H166: 0.01213693379 | J166: 2.111345269 | K166: 0.9826286772 | M166: 35.53133605 | N166: 0.08304045908 | P166: 0.001671032662 | Q166: 0.001671032662 | S166: 0.9877213858 | T166: 0.01227861417 | V166: 0.001673422086 | W166: 0.001673422086 | Y166: 3.793834259 | Z166: 1623.305091 | AB166: 3.747788744 | AC166: 19.70194641
B167: 135.2 | D167: 2.273917761 | E167: 0.01922960087 | F167: 0.990431274 | G167: 0.9885145342 | H167: 0.0114854658 | J167: 2.132496405 | K167: 0.9835169701 | M167: 35.9265584 | N167: 0.07831773217 | P167: 0.001588173539 | Q167: 0.001588173539 | S167: 0.9883738044 | T167: 0.01162619559 | V167: 0.001590537014 | W167: 0.001590537014 | Y167: 3.763232717 | Z167: 1726.301264 | AB167: 3.720010236 | AC167: 19.82737412
B168: 135.6 | D168: 2.295005835 | E168: 0.01917341672 | F168: 0.9904590976 | G168: 0.989133605 | H168: 0.01086639496 | J168: 2.153584479 | K168: 0.9843636137 | M168: 36.3220351 | N168: 0.07384902571 | P168: 0.001508979693 | Q168: 0.001508979693 | S168: 0.9889938154 | T168: 0.01100618456 | V168: 0.00151131716 | W168: 0.00151131716 | Y168: 3.733270992 | Z168: 1836.178591 | AB168: 3.692703795 | AC168: 19.95264178
B169: 136 | D169: 2.316031221 | E169: 0.01911755993 | F169: 0.99048676 | G169: 0.989721718 | H169: 0.01027828204 | J169: 2.174609865 | K169: 0.9851703178 | M169: 36.71775346 | N169: 0.06962167262 | P169: 0.001433318115 | Q169: 0.001433318115 | S169: 0.9895828581 | T169: 0.01041714186 | V169: 0.00143562956 | W169: 0.00143562956 | Y169: 3.703930312 | Z169: 1953.414718 | AB169: 3.665860271 | AC169: 20.07774742
B170: 136.4 | D170: 2.336994291 | E170: 0.01906202766 | F170: 0.9905142623 | G170: 0.9902802595 | H170: 0.009719740464 | J170: 2.195572935 | K170: 0.9859387374 | M170: 37.11370138 | N170: 0.06562357083 | P170: 0.001361058702 | Q170: 0.001361058702 | S170: 0.9901423191 | T170: 0.009857680908 | V170: 0.001363344152 | W170: 0.001363344152 | Y170: 3.675192582 | Z170: 2078.521456 | AB170: 3.639470664 | AC170: 20.2026891
B171: 136.8 | D171: 2.357895413 | E171: 0.01900681709 | F171: 0.9905416061 | G171: 0.9908105649 | H171: 0.009189435081 | J171: 2.216474057 | K171: 0.9866704737 | M171: 37.50986731 | N171: 0.06184316245 | P171: 0.001292074328 | Q171: 0.001292074328 | S171: 0.9906735335 | T171: 0.00932646654 | V171: 0.001294333849 | W171: 0.001294333849 | Y171: 3.64704036 | Z171: 2212.047292 | AB171: 3.61352612 | AC171: 20.32746498
B172: 137.2 | D172: 2.378734953 | E172: 0.01895192542 | F172: 0.9905687927 | G172: 0.991313919 | H172: 0.008686081001 | J172: 2.237313597 | K172: 0.9873670744 | M172: 37.90624021 | N172: 0.05826941347 | P172: 0.00122624091 | Q172: 0.00122624091 | S172: 0.9911777862 | T172: 0.008822213829 | V172: 0.001228474604 | W172: 0.001228474604 | Y172: 3.619456829 | Z172: 2354.580076 | AB172: 3.588017934 | AC172: 20.45207326
B173: 137.6 | D173: 2.399513271 | E173: 0.0188973499 | F173: 0.9905958235 | G173: 0.9917915576 | H173: 0.008208442353 | J173: 2.258091915 | K173: 0.9880300352 | M173: 38.30280954 | N173: 0.05489179391 | P173: 0.001163437449 | Q173: 0.001163437449 | S173: 0.9916563131 | T173: 0.008343686857 | V173: 0.001165645449 | W173: 0.001165645449 | Y173: 3.592425768 | Z173: 2506.74992 | AB173: 3.562937549 | AC173: 20.57651221
B174: 138 | D174: 2.420230727 | E174: 0.0188430878 | F174: 0.9906226998 | G174: 0.992244669 | H174: 0.007755331042 | J174: 2.278809371 | K174: 0.9886608002 | M174: 38.69956526 | N174: 0.05170025842 | P174: 0.001103546074 | Q174: 0.001103546074 | S174: 0.9921103025 | T174: 0.00788969747 | V174: 0.001105728542 | W174: 0.001105728542 | Y174: 3.565931531 | Z174: 2669.232306 | AB174: 3.538276552 | AC174: 20.70078016
B175: 138.4 | D175: 2.440887676 | E175: 0.01878913644 | F175: 0.9906494229 | G175: 0.9926743945 | H175: 0.007325605494 | J175: 2.29946632 | K175: 0.9892607631 | M175: 39.09649778 | N175: 0.04868522747 | P175: 0.001046452064 | Q175: 0.001046452064 | S175: 0.992540896 | T175: 0.007459104023 | V175: 0.001048609188 | W175: 0.001048609188 | Y175: 3.539959021 | Z175: 2842.75143 | AB175: 3.514026677 | AC175: 20.82487549
B176: 138.8 | D176: 2.46148447 | E176: 0.01873549316 | F176: 0.9906759941 | G176: 0.9930818306 | H176: 0.006918169391 | J176: 2.320063114 | K176: 0.9898312683 | M176: 39.49359798 | N176: 0.04583756898 | P176: 0.0009920438635 | Q176: 0.0009920438635 | S176: 0.9929491899 | T176: 0.007050810119 | V176: 0.0009941758579 | W176: 0.0009941758579 | Y176: 3.514493668 | Z176: 3028.083799 | AB176: 3.490179805 | AC176: 20.94879665
B177: 139.2 | D177: 2.482021458 | E177: 0.01868215531 | F177: 0.9907024147 | G177: 0.9934680296 | H177: 0.006531970403 | J177: 2.340600102 | K177: 0.9903736118 | M177: 39.89085714 | N177: 0.04314858048 | P177: 0.0009402130943 | Q177: 0.0009402130943 | S177: 0.9933362367 | T177: 0.006663763337 | V177: 0.0009423201926 | W177: 0.0009423201926 | Y177: 3.489521409 | Z177: 3226.062097 | AB177: 3.466727959 | AC177: 21.07254213
B178: 139.6 | D178: 2.502498987 | E178: 0.01862912031 | F178: 0.990728686 | G178: 0.9938340011 | H178: 0.006165998916 | J178: 2.361077631 | K178: 0.9908890422 | M178: 40.28826697 | N178: 0.04060997176 | P178: 0.0008908545494 | Q178: 0.0008908545494 | S178: 0.993703046 | T178: 0.006296953965 | V178: 0.0008929370051 | W178: 0.0008929370051 | Y178: 3.465028667 | Z178: 3437.579342 | AB178: 3.443663304 | AC178: 21.1961105
B179: 140 | D179: 2.5229174 | E179: 0.01857638557 | F179: 0.9907548092 | G179: 0.9941807132 | H179: 0.005819286764 | J179: 2.381496044 | K179: 0.991378762 | M179: 40.68581957 | N179: 0.03821384806 | P179: 0.000843866186 | Q179: 0.000843866186 | S179: 0.9940505863 | T179: 0.005949413733 | V179: 0.0008459242698 | W179: 0.0008459242698 | Y179: 3.441002331 | Z179: 3663.593359 | AB179: 3.420978152 | AC179: 21.31950034
B180: 140.4 | D180: 2.543277037 | E180: 0.01852394856 | F180: 0.9907807857 | G180: 0.994509094 | H180: 0.005490905967 | J180: 2.401855681 | K180: 0.9918439288 | M180: 41.08350744 | N180: 0.03595269375 | P180: 0.0007991491086 | Q180: 0.0007991491086 | S180: 0.9943797855 | T180: 0.005620214549 | V180: 0.0008011831064 | W180: 0.0008011831064 | Y180: 3.417429737 | Z180: 3905.131586 | AB180: 3.398664951 | AC180: 21.44271033
B181: 140.8 | D181: 2.563578236 | E181: 0.01847180676 | F181: 0.9908066166 | G181: 0.9948200325 | H181: 0.005179967477 | J181: 2.42215688 | K181: 0.9922856558 | M181: 41.4813234 | N181: 0.03381935649 | P181: 0.0007566075461 | Q181: 0.0007566075461 | S181: 0.9946915328 | T181: 0.005308467248 | V181: 0.0007586177565 | W181: 0.0007586177565 | Y181: 3.39429865 | Z181: 4163.296249 | AB181: 3.376716293 | AC181: 21.56573916
B182: 141.2 | D182: 2.58382133 | E182: 0.01841995769 | F182: 0.9908323031 | G182: 0.9951143801 | H182: 0.00488561993 | J182: 2.442399974 | K182: 0.992705014 | M182: 41.87926066 | N182: 0.0318070319 | P182: 0.0007161488221 | Q182: 0.0007161488221 | S182: 0.9949866797 | T182: 0.005013320344 | V182: 0.0007181355556 | W182: 0.0007181355556 | Y182: 3.371597248 | Z182: 4439.269921 | AB182: 3.355124905 | AC182: 21.6885856
B183: 141.6 | D183: 2.604006652 | E183: 0.01836839888 | F183: 0.9908578465 | G183: 0.9953929516 | H183: 0.004607048419 | J183: 2.462585296 | K183: 0.9931030321 | M183: 42.27731274 | N183: 0.02990924879 | P183: 0.0006776833211 | Q183: 0.0006776833211 | S183: 0.9952660412 | T183: 0.004733958803 | V183: 0.0006796468977 | W183: 0.0006796468977 | Y183: 3.349314107 | Z183: 4734.321514 | AB183: 3.333883655 | AC183: 21.81124844
B184: 142 | D184: 2.62413453 | E184: 0.01831712791 | F184: 0.9908832479 | G184: 0.9956565267 | H184: 0.004343473273 | J184: 2.482713174 | K184: 0.9934806987 | M184: 42.67547349 | N184: 0.02811985476 | P184: 0.0006411244482 | Q184: 0.0006411244482 | S184: 0.9955303972 | T184: 0.004469602826 | V184: 0.0006430651964 | W184: 0.0006430651964 | Y184: 3.327438183 | Z184: 5049.812711 | AB184: 3.312985545 | AC184: 21.93372654
B185: 142.4 | D185: 2.644205291 | E185: 0.01826614237 | F185: 0.9909085086 | G185: 0.9959058511 | H185: 0.00409414886 | J185: 2.502783934 | K185: 0.9938389628 | M185: 43.07373706 | N185: 0.0264330024 | P185: 0.0006063885856 | Q185: 0.0006063885856 | S185: 0.9957804934 | T185: 0.004219506646 | V185: 0.0006083068407 | W185: 0.0006083068407 | Y185: 3.305958798 | Z185: 5387.204898 | AB185: 3.29242371 | AC185: 22.05601879
B186: 142.8 | D186: 2.664219256 | E186: 0.01821543989 | F186: 0.9909336297 | G186: 0.9961416376 | H186: 0.003858362405 | J186: 2.5227979 | K186: 0.9941787355 | M186: 43.47209789 | N186: 0.02484313588 | P186: 0.0005733950444 | Q186: 0.0005733950444 | S186: 0.9960170426 | T186: 0.003982957353 | V186: 0.000575291147 | W186: 0.000575291147 | Y186: 3.284865625 | Z186: 5748.066617 | AB186: 3.272191423 | AC186: 22.17812414
B187: 143.2 | D187: 2.684176748 | E187: 0.01816501811 | F187: 0.9909586123 | G187: 0.9963645672 | H187: 0.003635432825 | J187: 2.542755392 | K187: 0.9945008903 | M187: 43.8705507 | N187: 0.02334497805 | P187: 0.0005420660133 | Q187: 0.0005420660133 | S187: 0.9962407263 | T187: 0.003759273729 | V187: 0.0005439403082 | W187: 0.0005439403082 | Y187: 3.264148677 | Z187: 6134.081586 | AB187: 3.252282083 | AC187: 22.30004155
B188: 143.6 | D188: 2.704078083 | E188: 0.01811487471 | F188: 0.9909834577 | G188: 0.9965752904 | H188: 0.003424709594 | J188: 2.562656727 | K188: 0.9948062653 | M188: 44.26909047 | N188: 0.02193351802 | P188: 0.0005123265038 | Q188: 0.0005123265038 | S188: 0.9964521949 | T188: 0.003547805107 | V188: 0.0005141793392 | W188: 0.0005141793392 | Y188: 3.243798291 | Z188: 6547.057333 | AB188: 3.232689224 | AC188: 22.42177006
B189: 144 | D189: 2.723923576 | E189: 0.0180650074 | F189: 0.9910081668 | G189: 0.9967744284 | H189: 0.003225571622 | J189: 2.58250222 | K189: 0.9950956634 | M189: 44.66771245 | N189: 0.02060399913 | P189: 0.0004841042932 | Q189: 0.0004841042932 | S189: 0.9966520697 | T189: 0.003347930257 | V189: 0.0004859360192 | W189: 0.0004859360192 | Y189: 3.223805118 | Z189: 6988.934483 | AB189: 3.213406503 | AC189: 22.54330873
B190: 144.4 | D190: 2.743713541 | E190: 0.01801541389 | F190: 0.9910327409 | G190: 0.9969625738 | H190: 0.00303742616 | J190: 2.602292185 | K190: 0.995369854 | M190: 45.06641213 | N190: 0.01935190741 | P190: 0.0004573298648 | Q190: 0.0004573298648 | S190: 0.9968409437 | T190: 0.003159056291 | V190: 0.0004591408327 | W190: 0.0004591408327 | Y190: 3.204160109 | Z190: 7461.796759 | AB190: 3.19442771 | AC190: 22.66465667
B191: 144.8 | D191: 2.763448287 | E191: 0.01796609193 | F191: 0.991057181 | G191: 0.9971402923 | H191: 0.00285970773 | J191: 2.62202693 | K191: 0.9956295738 | M191: 45.46518521 | N191: 0.01817296047 | P191: 0.0004319363465 | Q191: 0.0004319363465 | S191: 0.9970193824 | T191: 0.002980617591 | V191: 0.0004337269078 | W191: 0.0004337269078 | Y191: 3.184854507 | Z191: 7967.881747 | AB191: 3.175746754 | AC191: 22.78581302
B192: 145.2 | D192: 2.78312812 | E192: 0.01791703932 | F192: 0.9910814883 | G192: 0.9973081229 | H192: 0.002691877082 | J192: 2.641706764 | K192: 0.995875528 | M192: 45.86402763 | N192: 0.01706309678 | P192: 0.0004078594478 | Q192: 0.0004078594478 | S192: 0.9971879252 | T192: 0.002812074765 | V192: 0.0004096299534 | W192: 0.0004096299534 | Y192: 3.16587983 | Z192: 8509.592477 | AB192: 3.157357671 | AC192: 22.90677697
B193: 145.6 | D193: 2.802753346 | E193: 0.01786825383 | F193: 0.9911056638 | G193: 0.9974665798 | H193: 0.002533420172 | J193: 2.66133199 | K193: 0.9961083913 | M193: 46.26293555 | N193: 0.01601846543 | P193: 0.0003850373949 | Q193: 0.0003850373949 | S193: 0.9973470864 | T193: 0.002652913628 | V193: 0.0003867881947 | W193: 0.0003867881947 | Y193: 3.147227868 | Z193: 9089.509896 | AB193: 3.139254617 | AC193: 23.02754772
B194: 146 | D194: 2.822324267 | E194: 0.0178197333 | F194: 0.9911297086 | G194: 0.9976161528 | H194: 0.002383847166 | J194: 2.680902911 | K194: 0.9963288092 | M194: 46.6619053 | N194: 0.01503541618 | P194: 0.0003634108657 | Q194: 0.0003634108657 | S194: 0.9974973558 | T194: 0.002502644209 | V194: 0.0003651423072 | W194: 0.0003651423072 | Y194: 3.128890667 | Z194: 9710.406299 | AB194: 3.12143187 | AC194: 23.14812454
B195: 146.4 | D195: 2.841841183 | E195: 0.01777147558 | F195: 0.9911536237 | G195: 0.9977573085 | H195: 0.002242691479 | J195: 2.700419827 | K195: 0.9965373987 | M195: 47.06093343 | N195: 0.01411049005 | P195: 0.0003429229232 | Q195: 0.0003429229232 | S195: 0.9976392002 | T195: 0.002360799783 | V195: 0.0003446353515 | W195: 0.0003446353515 | Y195: 3.110860523 | Z195: 10375.25978 | AB195: 3.103883823 | AC195: 23.26850671
B196: 146.8 | D196: 2.86130439 | E196: 0.01772347853 | F196: 0.9911774102 | G196: 0.9978904912 | H196: 0.002109508828 | J196: 2.719883034 | K196: 0.9967347494 | M196: 47.46001666 | N196: 0.01324041016 | P196: 0.0003235189489 | Q196: 0.0003235189489 | S196: 0.9977730641 | T196: 0.002226935928 | V196: 0.000325212706 | W196: 0.000325212706 | Y196: 3.093129972 | Z196: 11087.26982 | AB196: 3.086604987 | AC196: 23.38869356
B197: 147.2 | D197: 2.880714184 | E197: 0.01767574005 | F197: 0.9912010692 | G197: 0.9980161237 | H197: 0.00198387632 | J197: 2.739292828 | K197: 0.9969214247 | M197: 47.85915188 | N197: 0.012422073 | P197: 0.0003051465755 | Q197: 0.0003051465755 | S197: 0.9978993704 | T197: 0.002100629618 | V197: 0.000306822 | W197: 0.000306822 | Y197: 3.075691779 | Z197: 11849.87401 | AB197: 3.069589987 | AC197: 23.50868445
B198: 147.6 | D198: 2.900070857 | E198: 0.01762825805 | F198: 0.9912246015 | G198: 0.9981346084 | H198: 0.001865391567 | J198: 2.7586495 | K198: 0.9970979625 | M198: 48.25833616 | N198: 0.01165254006 | P198: 0.0002877556203 | Q198: 0.0002877556203 | S198: 0.9980185217 | T198: 0.001981478328 | V198: 0.0002894130465 | W198: 0.0002894130465 | Y198: 3.058538933 | Z198: 12666.76615 | AB198: 3.052833561 | AC198: 23.62847876
B199: 148 | D199: 2.919374698 | E199: 0.01758103048 | F199: 0.9912480084 | G199: 0.9982463282 | H199: 0.001753671824 | J199: 2.777953341 | K199: 0.9972648764 | M199: 48.6575667 | N199: 0.01092902983 | P199: 0.0002712980174 | Q199: 0.0002712980174 | S199: 0.9981309008 | T199: 0.001869099181 | V199: 0.0002729377755 | W199: 0.0002729377755 | Y199: 3.041664638 | Z199: 13541.91565 | AB199: 3.036330556 | AC199: 23.74807591
B200: 148.4 | D200: 2.938625995 | E200: 0.01753405529 | F200: 0.9912712907 | G200: 0.9983516468 | H200: 0.001648353153 | J200: 2.797204639 | K200: 0.9974226563 | M200: 49.05684088 | N200: 0.01024891005 | P200: 0.0002557277517 | Q200: 0.0002557277517 | S200: 0.9982368719 | T200: 0.001763128108 | V200: 0.0002573501669 | W200: 0.0002573501669 | Y200: 3.025062302 | Z200: 14479.5885 | AB200: 3.020075931 | AC200: 23.86747536
B201: 148.8 | D201: 2.957825034 | E201: 0.01748733047 | F201: 0.9912944494 | G201: 0.9984509104 | H201: 0.001549089623 | J201: 2.816403677 | K201: 0.9975717698 | M201: 49.4561562 | N201: 0.009609690405 | P201: 0.0002410007922 | Q201: 0.0002410007922 | S201: 0.998336781 | T201: 0.001663219047 | V201: 0.0002426061849 | W201: 0.0002426061849 | Y201: 3.008725535 | Z201: 15484.36981 | AB201: 3.004064749 | AC201: 23.98667658
B202: 149.2 | D202: 2.976972096 | E202: 0.01744085401 | F202: 0.9913174856 | G202: 0.9985444475 | H202: 0.00145555252 | J202: 2.83555074 | K202: 0.9977126626 | M202: 49.8555103 | N202: 0.009009015471 | P202: 0.0002270750263 | Q202: 0.0002270750263 | S202: 0.9984309568 | T202: 0.00156904316 | V202: 0.0002286637116 | W202: 0.0002286637116 | Y202: 2.992648136 | Z202: 16561.18812 | AB202: 2.98829218 | AC202: 24.1056791
B203: 149.6 | D203: 2.996067464 | E203: 0.01739462395 | F203: 0.9913404002 | G203: 0.9986325704 | H203: 0.001367429602 | J203: 2.854646108 | K203: 0.9978457596 | M203: 50.25490096 | N203: 0.008444657958 | P203: 0.0002139101951 | Q203: 0.0002139101951 | S203: 0.9985197119 | T203: 0.001480288078 | V203: 0.0002154824825 | W203: 0.0002154824825 | Y203: 2.976824093 | Z203: 17715.34155 | AB203: 2.972753496 | AC203: 24.22448244
B204: 150 | D204: 3.015111415 | E204: 0.01734863833 | F204: 0.9913631942 | G204: 0.9987155756 | H204: 0.001284424364 | J204: 2.873690059 | K204: 0.9979714655 | M204: 50.65432607 | N204: 0.007914512285 | P204: 0.0002014678291 | Q204: 0.0002014678291 | S204: 0.9986033428 | T204: 0.001396657174 | V204: 0.0002030240224 | W204: 0.0002030240224 | Y204: 2.96124757 | Z204: 18952.52602 | AB204: 2.957444072 | AC204: 24.34308617
B205: 150.4 | D205: 3.034104225 | E205: 0.01730289522 | F205: 0.9913858685 | G205: 0.9987937447 | H205: 0.001206255338 | J205: 2.892682869 | K205: 0.9980901662 | M205: 51.05378364 | N205: 0.00741658843 | P205: 0.0001897111851 | Q205: 0.0001897111851 | S205: 0.9986821311 | T205: 0.00131786886 | V205: 0.0001912515826 | W205: 0.0001912515826 | Y205: 2.945912904 | Z205: 20278.8656 | AB205: 2.942359381 | AC205: 24.46148989
... 825 more rows

Sheet D CALL-PREIS
B1: Daten eingeben/rechnen! | E1: Tabelle Optionspreis | H1: Diagramm Put-Preis | K1: Hauptmenü

Sheet D PUT-PREIS
B1: Daten eingeben/rechnen! | E1: Tabelle Optionspreis | H1: Diagramm Call-Optionspreis | K1: Hauptmenü

Sheet D CALL-DELTA
B1: Daten eingeben/rechnen! | E1: Tabelle Delta/Gamma | H1: Diagramm Put-Delta | K1: Hauptmenü

Sheet D PUT-DELTA
B1: Daten eingeben/rechnen! | E1: Tabelle Delta/Gamma | H1: Diagramm Call-Delta | K1: Hauptmenü
P32: 125

Sheet D GAMMA
B1: Daten eingeben/rechnen! | F1: Tabelle Delta/Gamma | K1: Hauptmenü

Sheet D CALL-LEVERAGE
B1: Daten eingeben/rechnen! | E1: Tabelle Call-Leverage | H1: Diagramm Put-Leverage | K1: Hauptmenü

Sheet D PUT-LEVERAGE
B1: Daten eingeben/rechnen! | E1: Tabelle Put-Leverage | H1: Diagramm Call-Leverage | K1: Hauptmenü
D10: Putl-Leverage, Tabelle 2.2'!A1

Sheet T THETA
B1: Daten eingeben/berechnen! | J1: Diagramm Call-Theta | M1: Diagramm Put-Theta | Q1: Hauptmenü
B4: Aktienkurs | E4: =EINGABESEITE!C7 -> 100
B5: Ausübungspreis | E5: =EINGABESEITE!C8 -> 100
B6: Dividende | E6: =EINGABESEITE!C11 -> 2.625 | F6: =LN(1+(E6/E4)) -> 0.02591138178 | G6: =EXP(-$F$6*$F$8) -> 0.9871278728
B7: Zinssatz | E7: =EINGABESEITE!C9 -> 4 | F7: =LN(1+(E7/100)) -> 0.03922071315 | G7: =EXP(-$F$7*$F$8) -> 0.9805806757
B8: Restlaufzeit (Tage/360) | E8: =EINGABESEITE!C10 -> 180 | F8: =E8/360 -> 0.5
B9: Step Tage | E9: =EINGABESEITE!F10 -> 1
B10: Volatilität Jahr | E10: =EINGABESEITE!C12 -> 20 | F10: =E10*SQRT(E$8/360) -> 14.14213562 | G10: =((E10/100)^2)/2 -> 0.02
B11: Volatilität Jahr (0.5) | F11: =F10/2 -> 7.071067812
B13: Tabelle Call-/Put-Theta
M15: Options- | N15: Options- | P15: Theta | Q15: Theta
M16: preis | N16: preis | P16: bei minus | Q16: bei minus
B17: RLZ | D17: Dividende | E17: Volatilität | F17: d1 | G17: NV-Werte | I17: Zins | J17: d2 | K17: NV-Werte | P17: =E9 -> 1 | Q17: =E9 -> 1
D18: Faktor | G18: Verteilung | I18: Faktor | K18: Verteilung | P18: Tag/en | Q18: Tag/en
G19: F(x) | K19: F(x)
G20: Call-Delta | H20: Put-Delta | M20: Call | N20: Put | P20: Call | Q20: Put
B22: =E8 -> 180 | D22: =EXP(-$F$6*B22/360) -> 0.9871278728 | E22: =$E$10*SQRT(B22/360) -> 14.14213562 | F22: =((LN($E$4/$E$5))+(($F$7-$F$6+$G$10)*(B22/360)))/(E22/100) -> 0.1177662704 | G22: =NORMSDIST(F22) -> 0.5468735721 | H22: =1-G22 -> 0.4531264279 | I22: =EXP(-$F$7*(B22/360)) -> 0.9805806757 | J22: =F22-(E22/100) -> -0.0236550858 | K22: =NORMSDIST(J22) -> 0.4905638662 | M22: =($E$4*D22*G22)-($E$5*I22*K22) -> 5.879669857 | N22: =M22+($E$5*I22)-($E$4*D22) -> 5.224950145 | P22: =M23-M22 -> -0.01674150756 | Q22: =N23-N22 -> -0.0131630629
B23: =B22-E$9 -> 179 | D23: =EXP(-$F$6*B23/360) -> 0.9871989249 | E23: =$E$10*SQRT(B23/360) -> 14.1027972 | F23: =((LN($E$4/$E$5))+(($F$7-$F$6+$G$10)*(B23/360)))/(E23/100) -> 0.1174386863 | G23: =NORMSDIST(F23) -> 0.5467437855 | H23: =1-G23 -> 0.4532562145 | I23: =EXP(-$F$7*(B23/360)) -> 0.9806875123 | J23: =F23-(E23/100) -> -0.02358928571 | K23: =NORMSDIST(J23) -> 0.4905901093 | M23: =($E$4*D23*G23)-($E$5*I23*K23) -> 5.862928349 | N23: =M23+($E$5*I23)-($E$4*D23) -> 5.211787083 | P23: =M24-M23 -> -0.01678774497 | Q23: =N24-N23 -> -0.01320864773
B24: =B23-E$9 -> 178 | D24: =EXP(-$F$6*B24/360) -> 0.9872699822 | E24: =$E$10*SQRT(B24/360) -> 14.06334874 | F24: =((LN($E$4/$E$5))+(($F$7-$F$6+$G$10)*(B24/360)))/(E24/100) -> 0.1171101858 | G24: =NORMSDIST(F24) -> 0.5466136309 | H24: =1-G24 -> 0.4533863691 | I24: =EXP(-$F$7*(B24/360)) -> 0.9807943605 | J24: =F24-(E24/100) -> -0.02352330157 | K24: 0.4906164258 | M24: =($E$4*D24*G24)-($E$5*I24*K24) -> 5.846140604 | N24: =M24+($E$5*I24)-($E$4*D24) -> 5.198578435
B26: Restlauf-
B27: zeit
B30: 360 | D30: =EXP(-$F$6*B30/360) -> 0.9744214373 | E30: =$E$10*SQRT(B30/360) -> 20 | F30: =((LN($E$4/$E$5))+(($F$7-$F$6+$G$10)*(B30/360)))/(E30/100) -> 0.1665466568 | G30: =NORMSDIST(F30) -> 0.5661366155 | H30: =1-G30 -> 0.4338633845 | I30: =EXP(-$F$7*(B30/360)) -> 0.9615384615 | J30: =F30-(E30/100) -> -0.03345334316 | K30: =NORMSDIST(J30) -> 0.4866565359 | M30: =($E$4*D30*G30)-($E$5*I30*K30) -> 8.371667777 | N30: =M30+($E$5*I30)-($E$4*D30) -> 7.083370204 | P30: =M31-M30 -> -0.01178552266 | Q30: =N31-N30 -> -0.008323088212
B31: 359 | D31: =EXP(-$F$6*B31/360) -> 0.9744915748 | E31: =$E$10*SQRT(B31/360) -> 19.97220291 | F31: =((LN($E$4/$E$5))+(($F$7-$F$6+$G$10)*(B31/360)))/(E31/100) -> 0.1663151812 | G31: =NORMSDIST(F31) -> 0.5660455402 | H31: =1-G31 -> 0.4339544598 | I31: =EXP(-$F$7*(B31/360)) -> 0.9616432234 | J31: =F31-(E31/100) -> -0.03340684787 | K31: =NORMSDIST(J31) -> 0.4866750745 | M31: =($E$4*D31*G31)-($E$5*I31*K31) -> 8.359882254 | N31: =M31+($E$5*I31)-($E$4*D31) -> 7.075047116 | P31: =M32-M31 -> -0.01180265913 | Q31: =N32-N31 -> -0.008339588112
B32: 358 | D32: 0.9745617174 | E32: 19.94436707 | F32: 0.1660833829 | G32: 0.5659543345 | H32: 0.4340456655 | I32: 0.9617479967 | J32: -0.03336028778 | K32: 0.4866936389 | M32: 8.348079595 | N32: 7.066707527 | P32: -0.01181986266 | Q32: -0.008356154994
B33: 357 | D33: 0.974631865 | E33: 19.91649233 | F33: 0.1658512607 | G33: 0.5658629977 | H33: 0.4341370023 | I33: 0.9618527814 | J33: -0.03331366262 | K33: 0.4867122293 | M33: 8.336259733 | N33: 7.058351372 | P33: -0.01183713373 | Q33: -0.008372789321
B34: 356 | D34: 0.9747020177 | E34: 19.88857852 | F34: 0.1656188131 | G34: 0.5657715295 | H34: 0.4342284705 | I34: 0.9619575776 | J34: -0.03326697211 | K34: 0.4867308458 | M34: 8.324422599 | N34: 7.049978583 | P34: -0.0118544728 | Q34: -0.008389491561
B35: 355 | D35: 0.9747721755 | E35: 19.86062548 | F35: 0.1653860388 | G35: 0.5656799291 | H35: 0.4343200709 | I35: 0.9620623851 | J35: -0.03322021597 | K35: 0.4867494885 | M35: 8.312568126 | N35: 7.041589092 | P35: -0.01187188034 | Q35: -0.008406262186
B36: 354 | D36: 0.9748423382 | E36: 19.83263304 | F36: 0.1651529365 | G36: 0.5655881961 | H36: 0.4344118039 | I36: 0.9621672041 | J36: -0.03317339394 | K36: 0.4867681575 | M36: 8.300696246 | N36: 7.033182829 | P36: -0.01188935683 | Q36: -0.008423101672
B37: 353 | D37: 0.9749125061 | E37: 19.80460104 | F37: 0.1649195046 | G37: 0.5654963299 | H37: 0.4345036701 | I37: 0.9622720345 | J37: -0.03312650573 | K37: 0.4867868529 | M37: 8.288806889 | N37: 7.024759728 | P37: -0.01190690275 | Q37: -0.008440010501
B38: 352 | D38: 0.974982679 | E38: 19.7765293 | F38: 0.1646857419 | G38: 0.56540433 | H38: 0.43459567 | I38: 0.9623768763 | J38: -0.03307955105 | K38: 0.4868055749 | M38: 8.276899986 | N38: 7.016319717 | P38: -0.01192451859 | Q38: -0.00845698916
B39: 351 | D39: 0.9750528569 | E39: 19.74841766 | F39: 0.1644516469 | G39: 0.5653121957 | H39: 0.4346878043 | I39: 0.9624817295 | J39: -0.03303252964 | K39: 0.4868243234 | M39: 8.264975468 | N39: 7.007862728 | P39: -0.01194220484 | Q39: -0.00847403814
B40: 350 | D40: 0.9751230399 | E40: 19.72026594 | F40: 0.1642172182 | G40: 0.5652199265 | H40: 0.4347800735 | I40: 0.9625865942 | J40: -0.03298544119 | K40: 0.4868430988 | M40: 8.253033263 | N40: 6.99938869 | P40: -0.011959962 | Q40: -0.008491157936
B41: 349 | D41: 0.9751932279 | E41: 19.69207398 | F41: 0.1639824544 | G41: 0.5651275219 | H41: 0.4348724781 | I41: 0.9626914703 | J41: -0.03293828542 | K41: 0.486861901 | M41: 8.241073301 | N41: 6.990897532 | P41: -0.01197779056 | Q41: -0.008508349049
B42: 348 | D42: 0.975263421 | E42: 19.66384161 | F42: 0.163747354 | G42: 0.5650349812 | H42: 0.4349650188 | I42: 0.9627963578 | J42: -0.03289106205 | K42: 0.4868807302 | M42: 8.22909551 | N42: 6.982389183 | P42: -0.01199569103 | Q42: -0.008525611986
B43: 347 | D43: 0.9753336192 | E43: 19.63556863 | F43: 0.1635119156 | G43: 0.5649423039 | H43: 0.4350576961 | I43: 0.9629012567 | J43: -0.03284377078 | K43: 0.4868995865 | M43: 8.217099819 | N43: 6.973863571 | P43: -0.01201366392 | Q43: -0.008542947258
B44: 346 | D44: 0.9754038224 | E44: 19.60725489 | F44: 0.1632761376 | G44: 0.5648494894 | H44: 0.4351505106 | I44: 0.9630061671 | J44: -0.03279641131 | K44: 0.48691847 | M44: 8.205086155 | N44: 6.965320624 | P44: -0.01203170975 | Q44: -0.00856035538
B45: 345 | D45: 0.9754740306 | E45: 19.57890021 | F45: 0.1630400187 | G45: 0.5647565371 | H45: 0.4352434629 | I45: 0.9631110889 | J45: -0.03274898336 | K45: 0.4869373809 | M45: 8.193054445 | N45: 6.956760268 | P45: -0.01204982904 | Q45: -0.008577836874
B46: 344 | D46: 0.9755442439 | E46: 19.5505044 | F46: 0.1628035574 | G46: 0.5646634464 | H46: 0.4353365536 | I46: 0.9632160221 | J46: -0.03270148663 | K46: 0.4869563192 | M46: 8.181004616 | N46: 6.948182431 | P46: -0.01206802232 | Q46: -0.008595392267
B47: 343 | D47: 0.9756144623 | E47: 19.52206729 | F47: 0.1625667521 | G47: 0.5645702166 | H47: 0.4354297834 | I47: 0.9633209667 | J47: -0.0326539208 | K47: 0.4869752851 | M47: 8.168936594 | N47: 6.939587039 | P47: -0.01208629012 | Q47: -0.00861302209
B48: 342 | D48: 0.9756846857 | E48: 19.49358869 | F48: 0.1623296013 | G48: 0.5644768473 | H48: 0.4355231527 | I48: 0.9634259228 | J48: -0.03260628559 | K48: 0.4869942787 | M48: 8.156850304 | N48: 6.930974017 | P48: -0.01210463298 | Q48: -0.008630726882
B49: 341 | D49: 0.9757549142 | E49: 19.46506843 | F49: 0.1620921036 | G49: 0.5643833378 | H49: 0.4356166622 | I49: 0.9635308904 | J49: -0.03255858068 | K49: 0.4870133001 | M49: 8.144745671 | N49: 6.92234329 | P49: -0.01212305143 | Q49: -0.008648507185
B50: 340 | D50: 0.9758251477 | E50: 19.43650632 | F50: 0.1618542574 | G50: 0.5642896875 | H50: 0.4357103125 | I50: 0.9636358693 | J50: -0.03251080578 | K50: 0.4870323494 | M50: 8.13262262 | N50: 6.913694783 | P50: -0.01214154603 | Q50: -0.008666363548
B51: 339 | D51: 0.9758953863 | E51: 19.40790217 | F51: 0.1616160611 | G51: 0.5641958957 | H51: 0.4358041043 | I51: 0.9637408597 | J51: -0.03246296056 | K51: 0.4870514268 | M51: 8.120481074 | N51: 6.905028419 | P51: -0.01216011734 | Q51: -0.008684296524
B52: 338 | D52: 0.9759656299 | E52: 19.3792558 | F52: 0.1613775133 | G52: 0.5641019618 | H52: 0.4358980382 | I52: 0.9638458616 | J52: -0.03241504473 | K52: 0.4870705324 | M52: 8.108320956 | N52: 6.896344123 | P52: -0.0121787659 | Q52: -0.008702306674
B53: 337 | D53: 0.9760358786 | E53: 19.35056703 | F53: 0.1611386124 | G53: 0.5640078853 | H53: 0.4359921147 | I53: 0.9639508749 | J53: -0.03236705796 | K53: 0.4870896663 | M53: 8.09614219 | N53: 6.887641816 | P53: -0.01219749229 | Q53: -0.008720394563
B54: 336 | D54: 0.9761061323 | E54: 19.32183566 | F54: 0.1608993567 | G54: 0.5639136655 | H54: 0.4360863345 | I54: 0.9640558996 | J54: -0.03231899994 | K54: 0.4871088287 | M54: 8.083944698 | N54: 6.878921422 | P54: -0.01221629709 | Q54: -0.008738560763
B55: 335 | D55: 0.9761763911 | E55: 19.2930615 | F55: 0.1606597447 | G55: 0.5638193017 | H55: 0.4361806983 | I55: 0.9641609357 | J55: -0.03227087035 | K55: 0.4871280196 | M55: 8.071728401 | N55: 6.870182861 | P55: -0.01223518085 | Q55: -0.008756805851
B56: 334 | D56: 0.976246655 | E56: 19.26424437 | F56: 0.1604197748 | G56: 0.5637247934 | H56: 0.4362752066 | I56: 0.9642659833 | J56: -0.03222266888 | K56: 0.4871472392 | M56: 8.05949322 | N56: 6.861426055 | P56: -0.01225414418 | Q56: -0.008775130411
B57: 333 | D57: 0.9763169239 | E57: 19.23538406 | F57: 0.1601794454 | G57: 0.5636301398 | H57: 0.4363698602 | I57: 0.9643710424 | J57: -0.03217439519 | K57: 0.4871664876 | M57: 8.047239076 | N57: 6.852650925 | P57: -0.01227318766 | Q57: -0.008793535032
B58: 332 | D58: 0.9763871979 | E58: 19.20648039 | F58: 0.1599387549 | G58: 0.5635353403 | H58: 0.4364646597 | I58: 0.9644761129 | J58: -0.03212604896 | K58: 0.487185765 | M58: 8.034965888 | N58: 6.84385739 | P58: -0.01229231188 | Q58: -0.00881202031
B59: 331 | D59: 0.9764574769 | E59: 19.17753315 | F59: 0.1596977016 | G59: 0.5634403943 | H59: 0.4365596057 | I59: 0.9645811949 | J59: -0.03207762987 | K59: 0.4872050715 | M59: 8.022673576 | N59: 6.835045369 | P59: -0.01231151745 | Q59: -0.008830586846
B60: 330 | D60: 0.976527761 | E60: 19.14854216 | F60: 0.159456284 | G60: 0.563345301 | H60: 0.436654699 | I60: 0.9646862883 | J60: -0.03202913758 | K60: 0.4872244072 | M60: 8.010362059 | N60: 6.826214782 | P60: -0.01233080498 | Q60: -0.008849235251
B61: 329 | D61: 0.9765980502 | E61: 19.1195072 | F61: 0.1592145002 | G61: 0.56325006 | H61: 0.43674994 | I61: 0.9647913931 | J61: -0.03198057177 | K61: 0.4872437722 | M61: 7.998031254 | N61: 6.817365547 | P61: -0.01235017508 | Q61: -0.008867966137
B62: 328 | D62: 0.9766683444 | E62: 19.09042808 | F62: 0.1589723488 | G62: 0.5631546704 | H62: 0.4368453296 | I62: 0.9648965094 | J62: -0.03193193209 | K62: 0.4872631667 | M62: 7.985681079 | N62: 6.808497581 | P62: -0.01236962837 | Q62: -0.008886780127
B63: 327 | D63: 0.9767386436 | E63: 19.06130461 | F63: 0.1587298279 | G63: 0.5630591316 | H63: 0.4369408684 | I63: 0.9650016372 | J63: -0.0318832182 | K63: 0.4872825909 | M63: 7.97331145 | N63: 6.799610801 | P63: -0.01238916547 | Q63: -0.008905677848
B64: 326 | D64: 0.976808948 | E64: 19.03213656 | F64: 0.1584869359 | G64: 0.5629634429 | H64: 0.4370365571 | I64: 0.9651067764 | J64: -0.03183442977 | K64: 0.4873020448 | M64: 7.960922285 | N64: 6.790705123 | P64: -0.01240878704 | Q64: -0.008924659935
B65: 325 | D65: 0.9768792574 | E65: 19.00292375 | F65: 0.1582436711 | G65: 0.5628676036 | H65: 0.4371323964 | I65: 0.965211927 | J65: -0.03178556646 | K65: 0.4873215286 | M65: 7.948513498 | N65: 6.781780463 | P65: -0.0124284937 | Q65: -0.00894372703
B66: 324 | D66: 0.9769495718 | E66: 18.97366596 | F66: 0.1580000317 | G66: 0.5627716131 | H66: 0.4372283869 | I66: 0.9653170891 | J66: -0.03173662792 | K66: 0.4873410424 | M66: 7.936085004 | N66: 6.772836736 | P66: -0.0124482861 | Q66: -0.008962879782
B67: 323 | D67: 0.9770198913 | E67: 18.94436298 | F67: 0.1577560161 | G67: 0.5626754707 | H67: 0.4373245293 | I67: 0.9654222627 | J67: -0.03168761379 | K67: 0.4873605863 | M67: 7.923636718 | N67: 6.763873856 | P67: -0.0124681649 | Q67: -0.008982118844
B68: 322 | D68: 0.9770902159 | E68: 18.91501461 | F68: 0.1575116224 | G68: 0.5625791756 | H68: 0.4374208244 | I68: 0.9655274477 | J68: -0.03163852373 | K68: 0.4873801606 | M68: 7.911168553 | N68: 6.754891737 | P68: -0.01248813077 | Q68: -0.009001444881
B69: 321 | D69: 0.9771605455 | E69: 18.88562063 | F69: 0.1572668489 | G69: 0.5624827271 | H69: 0.4375172729 | I69: 0.9656326442 | J69: -0.03158935739 | K69: 0.4873997654 | M69: 7.898680422 | N69: 6.745890293 | P69: -0.01250818437 | Q69: -0.009020858561
B70: 320 | D70: 0.9772308802 | E70: 18.85618083 | F70: 0.1570216939 | G70: 0.5623861245 | H70: 0.4376138755 | I70: 0.9657378522 | J70: -0.0315401144 | K70: 0.4874194007 | M70: 7.886172238 | N70: 6.736869434 | P70: -0.01252832637 | Q70: -0.009040360562
B71: 319 | D71: 0.97730122 | E71: 18.826695 | F71: 0.1567761555 | G71: 0.5622893672 | H71: 0.4377106328 | I71: 0.9658430716 | J71: -0.03149079441 | K71: 0.4874390668 | M71: 7.873643912 | N71: 6.727829073 | P71: -0.01254855747 | Q71: -0.009059951567
B72: 318 | D72: 0.9773715648 | E72: 18.79716291 | F72: 0.156530232 | G72: 0.5621924544 | H72: 0.4378075456 | I72: 0.9659483025 | J72: -0.03144139705 | K72: 0.4874587637 | M72: 7.861095354 | N72: 6.718769122 | P72: -0.01256887836 | Q72: -0.00907963227
B73: 317 | D73: 0.9774419147 | E73: 18.76758435 | F73: 0.1562839215 | G73: 0.5620953853 | H73: 0.4379046147 | I73: 0.9660535448 | J73: -0.03139192197 | K73: 0.4874784917 | M73: 7.848526476 | N73: 6.70968949 | P73: -0.01258928973 | Q73: -0.009099403369
B74: 316 | D74: 0.9775122697 | E74: 18.7379591 | F74: 0.1560372222 | G74: 0.5619981593 | H74: 0.4380018407 | I74: 0.9661587987 | J74: -0.03134236879 | K74: 0.4874982508 | M74: 7.835937186 | N74: 6.700590086 | P74: -0.01260979229 | Q74: -0.009119265571
B75: 315 | D75: 0.9775826297 | E75: 18.70828693 | F75: 0.1557901322 | G75: 0.5619007755 | H75: 0.4380992245 | I75: 0.9662640639 | J75: -0.03129273713 | K75: 0.4875180413 | M75: 7.823327394 | N75: 6.691470821 | P75: -0.01263038676 | Q75: -0.009139219591
B76: 314 | D76: 0.9776529948 | E76: 18.67856763 | F76: 0.1555426497 | G76: 0.5618032333 | H76: 0.4381967667 | I76: 0.9663693407 | J76: -0.03124302664 | K76: 0.4875378632 | M76: 7.810697007 | N76: 6.682331601 | P76: -0.01265107386 | Q76: -0.009159266153
B77: 313 | D77: 0.9777233649 | E77: 18.64880097 | F77: 0.1552947728 | G77: 0.5617055318 | H77: 0.4382944682 | I77: 0.9664746289 | J77: -0.03119323692 | K77: 0.4875577167 | M77: 7.798045933 | N77: 6.673172335 | P77: -0.01267185432 | Q77: -0.009179405988
B78: 312 | D78: 0.9777937401 | E78: 18.61898673 | F78: 0.1550464996 | G78: 0.5616076704 | H78: 0.4383923296 | I78: 0.9665799286 | J78: -0.03114336761 | K78: 0.487577602 | M78: 7.785374079 | N78: 6.663992929 | P78: -0.01269272888 | Q78: -0.009199639834
B79: 311 | D79: 0.9778641204 | E79: 18.58912466 | F79: 0.1547978283 | G79: 0.5615096483 | H79: 0.4384903517 | I79: 0.9666852398 | J79: -0.03109341831 | K79: 0.4875975193 | M79: 7.77268135 | N79: 6.654793289 | P79: -0.01271369828 | Q79: -0.009219968439
B80: 310 | D80: 0.9779345057 | E80: 18.55921454 | F80: 0.1545487568 | G80: 0.5614114647 | H80: 0.4385885353 | I80: 0.9667905624 | J80: -0.03104338864 | K80: 0.4876174686 | M80: 7.759967652 | N80: 6.645573321 | P80: -0.01273476329 | Q80: -0.009240392558
B81: 309 | D81: 0.9780048961 | E81: 18.52925615 | F81: 0.1542992832 | G81: 0.5613131188 | H81: 0.4386868812 | I81: 0.9668958965 | J81: -0.03099327821 | K81: 0.4876374502 | M81: 7.747232889 | N81: 6.636332928 | P81: -0.01275592467 | Q81: -0.009260912957
B82: 308 | D82: 0.9780752916 | E82: 18.49924923 | F82: 0.1540494057 | G82: 0.5612146098 | H82: 0.4387853902 | I82: 0.9670012421 | J82: -0.03094308664 | K82: 0.4876574641 | M82: 7.734476964 | N82: 6.627072015 | P82: -0.01277718319 | Q82: -0.009281530408
B83: 307 | D83: 0.9781456921 | E83: 18.46919357 | F83: 0.1537991222 | G83: 0.561115937 | H83: 0.438884063 | I83: 0.9671065992 | J83: -0.03089281352 | K83: 0.4876775106 | M83: 7.721699781 | N83: 6.617790485 | P83: -0.01279853963 | Q83: -0.009302245694
B84: 306 | D84: 0.9782160977 | E84: 18.43908891 | F84: 0.1535484307 | G84: 0.5610170995 | H84: 0.4389829005 | I84: 0.9672119677 | J84: -0.03084245845 | K84: 0.4876975898 | M84: 7.708901241 | N84: 6.608488239 | P84: -0.01281999479 | Q84: -0.009323059604
B85: 305 | D85: 0.9782865084 | E85: 18.40893503 | F85: 0.1532973293 | G85: 0.5609180966 | H85: 0.4390819034 | I85: 0.9673173478 | J85: -0.03079202103 | K85: 0.4877177018 | M85: 7.696081246 | N85: 6.599165179 | P85: -0.01284154946 | Q85: -0.009343972938
B86: 304 | D86: 0.9783569242 | E86: 18.37873167 | F86: 0.1530458158 | G86: 0.5608189275 | H86: 0.4391810725 | I86: 0.9674227393 | J86: -0.03074150087 | K86: 0.4877378469 | M86: 7.683239697 | N86: 6.589821207 | P86: -0.01286320445 | Q86: -0.009364986506
B87: 303 | D87: 0.978427345 | E87: 18.34847859 | F87: 0.1527938884 | G87: 0.5607195912 | H87: 0.4392804088 | I87: 0.9675281423 | J87: -0.03069089754 | K87: 0.4877580252 | M87: 7.670376492 | N87: 6.58045622 | P87: -0.01288496058 | Q87: -0.009386101125
B88: 302 | D88: 0.9784977709 | E88: 18.31817555 | F88: 0.1525415449 | G88: 0.5606200871 | H88: 0.4393799129 | I88: 0.9676335567 | J88: -0.03064021064 | K88: 0.4877782369 | M88: 7.657491532 | N88: 6.571070119 | P88: -0.01290681867 | Q88: -0.009407317624
B89: 301 | D89: 0.9785682018 | E89: 18.2878223 | F89: 0.1522887832 | G89: 0.5605204143 | H89: 0.4394795857 | I89: 0.9677389827 | J89: -0.03058943975 | K89: 0.487798482 | M89: 7.644584713 | N89: 6.561662801 | P89: -0.01292877958 | Q89: -0.009428636839
B90: 300 | D90: 0.9786386378 | E90: 18.25741858 | F90: 0.1520356014 | G90: 0.5604205719 | H90: 0.4395794281 | I90: 0.9678444201 | J90: -0.03053858445 | K90: 0.4878187609 | M90: 7.631655934 | N90: 6.552234164 | P90: -0.01295084413 | Q90: -0.009450059618
B91: 299 | D91: 0.9787090789 | E91: 18.22696415 | F91: 0.1517819972 | G91: 0.5603205591 | H91: 0.4396794409 | I91: 0.9679498691 | J91: -0.03048764432 | K91: 0.4878390736 | M91: 7.618705089 | N91: 6.542784105 | P91: -0.0129730132 | Q91: -0.009471586817
B92: 298 | D92: 0.9787795251 | E92: 18.19645875 | F92: 0.1515279686 | G92: 0.5602203751 | H92: 0.4397796249 | I92: 0.9680553295 | J92: -0.03043661894 | K92: 0.4878594203 | M92: 7.605732076 | N92: 6.533312518 | P92: -0.01299528764 | Q92: -0.009493219303
B93: 297 | D93: 0.9788499763 | E93: 18.16590212 | F93: 0.1512735134 | G93: 0.560120019 | H93: 0.439879981 | I93: 0.9681608014 | J93: -0.03038550788 | K93: 0.4878798013 | M93: 7.592736789 | N93: 6.523819299 | P93: -0.01301766833 | Q93: -0.009514957954
B94: 296 | D94: 0.9789204326 | E94: 18.13529401 | F94: 0.1510186294 | G94: 0.5600194899 | H94: 0.4399805101 | I94: 0.9682662848 | J94: -0.03033431069 | K94: 0.4879002166 | M94: =($E$4*D94*G94)-($E$5*I94*K94) -> 7.57971912 | N94: =M94+($E$5*I94)-($E$4*D94) -> 6.514304341 | P94: -0.01304015617 | Q94: -0.009536803656
B95: 295 | D95: =EXP(-$F$6*B95/360) -> 0.978990894 | E95: =$E$10*SQRT(B95/360) -> 18.10463415 | F95: =((LN($E$4/$E$5))+(($F$7-$F$6+$G$10)*(B95/360)))/(E95/100) -> 0.1507633146 | G95: =NORMSDIST(F95) -> 0.5599187869 | H95: =1-G95 -> 0.4400812131 | I95: =EXP(-$F$7*(B95/360)) -> 0.9683717797 | J95: =F95-(E95/100) -> -0.03028302695 | K95: =NORMSDIST(J95) -> 0.4879206664 | M95: 7.566678964 | N95: 6.504767537 | P95: =M96-M95 -> -0.01306275204 | Q95: =N96-N95 -> -0.009558757308
B96: 294 | D96: 0.9790613604 | E96: 18.07392228 | F96: 0.1505075666 | G96: 0.5598179093 | H96: 0.4401820907 | I96: 0.9684772861 | J96: -0.03023165621 | K96: 0.487941151 | M96: 7.553616212 | N96: 6.49520878 | P96: -0.01308545686 | Q96: -0.009580819818
B97: 293 | D97: 0.9791318319 | E97: 18.04315814 | F97: 0.1502513833 | G97: 0.559716856 | H97: 0.440283144 | I97: 0.968582804 | J97: -0.03018019804 | K97: 0.4879616705 | M97: 7.540530755 | N97: 6.48562796 | P97: -0.01310827154 | Q97: -0.009602992105
B98: 292 | D98: 0.9792023085 | E98: 18.01234145 | F98: 0.1499947625 | G98: 0.5596156263 | H98: 0.4403843737 | I98: 0.9686883334 | J98: -0.03012865198 | K98: 0.4879822251 | M98: 7.527422484 | N98: 6.476024968 | P98: -0.01313119702 | Q98: -0.009625275101
B99: 291 | D99: 0.9792727902 | E99: 17.98147195 | F99: 0.1497377019 | G99: 0.5595142192 | H99: 0.4404857808 | I99: 0.9687938742 | J99: -0.03007701757 | K99: 0.4880028149 | M99: 7.514291287 | N99: 6.466399693 | P99: -0.01315423424 | Q99: -0.009647669745
B100: 290 | D100: 0.9793432769 | E100: 17.95054936 | F100: 0.1494801992 | G100: 0.5594126337 | H100: 0.4405873663 | I100: 0.9688994266 | J100: -0.03002529437 | K100: 0.4880234401 | M100: 7.501137052 | N100: 6.456752023 | P100: -0.01317738415 | Q100: -0.009670176991
B101: 289 | D101: 0.9794137687 | E101: 17.91957341 | F101: 0.1492222522 | G101: 0.5593108691 | H101: 0.4406891309 | I101: 0.9690049905 | J101: -0.02997348192 | K101: 0.488044101 | M101: 7.487959668 | N101: 6.447081846 | P101: -0.01320064772 | Q101: -0.009692797804
B102: 288 | D102: 0.9794842656 | E102: 17.88854382 | F102: 0.1489638585 | G102: 0.5592089243 | H102: 0.4407910757 | I102: 0.9691105659 | J102: -0.02992157975 | K102: 0.4880647977 | M102: 7.47475902 | N102: 6.437389048 | P102: -0.01322402592 | Q102: -0.009715533159
B103: 287 | D103: 0.9795547676 | E103: 17.85746031 | F103: 0.1487050158 | G103: 0.5591067984 | H103: 0.4408932016 | I103: 0.9692161528 | J103: -0.02986958739 | K103: 0.4880855304 | M103: 7.461534995 | N103: 6.427673515 | P103: -0.01324751973 | Q103: -0.009738384044
B104: 286 | D104: 0.9796252746 | E104: 17.82632261 | F104: 0.1484457217 | G104: 0.5590044905 | H104: 0.4409955095 | I104: 0.9693217512 | J104: -0.02981750437 | K104: 0.4881062993 | M104: 7.448287475 | N104: 6.417935131 | P104: -0.01327113017 | Q104: -0.009761351459
B105: 285 | D105: 0.9796957867 | E105: 17.79513042 | F105: 0.148185974 | G105: 0.5589019996 | H105: 0.4410980004 | I105: 0.969427361 | J105: -0.02976533022 | K105: 0.4881271045 | M105: 7.435016345 | N105: 6.40817378 | P105: -0.01329485823 | Q105: -0.009784436415
B106: 284 | D106: 0.9797663039 | E106: 17.76388346 | F106: 0.1479257701 | G106: 0.5587993248 | H106: 0.4412006752 | I106: 0.9695329824 | J106: -0.02971306446 | K106: 0.4881479463 | M106: 7.421721486 | N106: 6.398389343 | P106: -0.01331870495 | Q106: -0.009807639939
B107: 283 | D107: 0.9798368261 | E107: 17.73258144 | F107: 0.1476651078 | G107: 0.5586964652 | H107: 0.4413035348 | I107: 0.9696386154 | J107: -0.02966070659 | K107: 0.4881688249 | M107: 7.408402781 | N107: 6.388581703 | P107: -0.01334267136 | Q107: -0.009830963066
B108: 282 | D108: 0.9799073535 | E108: 17.70122406 | F108: 0.1474039845 | G108: 0.5585934196 | H108: 0.4414065804 | I108: 0.9697442598 | J108: -0.02960825614 | K108: 0.4881897404 | M108: 7.39506011 | N108: 6.37875074 | P108: -0.01336675852 | Q108: -0.009854406846
B109: 281 | D109: 0.9799778859 | E109: 17.66981104 | F109: 0.1471423978 | G109: 0.5584901873 | H109: 0.4415098127 | I109: 0.9698499157 | J109: -0.02955571261 | K109: 0.488210693 | M109: 7.381693352 | N109: 6.368896333 | P109: -0.01339096748 | Q109: -0.009877972343
B110: 280 | D110: 0.9800484234 | E110: 17.63834207 | F110: 0.1468803452 | G110: 0.5583867671 | H110: 0.4416132329 | I110: 0.9699555831 | J110: -0.0295030755 | K110: 0.4882316831 | M110: 7.368302384 | N110: 6.359018361 | P110: -0.01341529932 | Q110: -0.009901660633
B111: 279 | D111: 0.9801189659 | E111: 17.60681686 | F111: 0.1466178243 | G111: 0.558283158 | H111: 0.441716842 | I111: 0.9700612621 | J111: -0.02945034432 | K111: 0.4882527106 | M111: 7.354887085 | N111: 6.3491167 | P111: -0.01343975514 | Q111: -0.009925472806
B112: 278 | D112: 0.9801895136 | E112: 17.5752351 | F112: 0.1463548325 | G112: 0.5581793591 | H112: 0.4418206409 | I112: 0.9701669525 | J112: -0.02939751855 | K112: 0.4882737759 | M112: 7.34144733 | N112: 6.339191228 | P112: -0.01346433602 | Q112: -0.009949409964
B113: 277 | D113: 0.9802600663 | E113: 17.54359649 | F113: 0.1460913672 | G113: 0.5580753694 | H113: 0.4419246306 | I113: 0.9702726545 | J113: -0.02934459768 | K113: 0.4882948792 | M113: 7.327982994 | N113: 6.329241818 | P113: -0.01348904311 | Q113: -0.009973473226
B114: 276 | D114: 0.9803306241 | E114: 17.51190072 | F114: 0.145827426 | G114: 0.5579711877 | H114: 0.4420288123 | I114: 0.970378368 | J114: -0.0292915812 | K114: 0.4883160206 | M114: 7.314493951 | N114: 6.319268344 | P114: -0.01351387751 | Q114: -0.009997663722
B115: 275 | D115: 0.980401187 | E115: 17.48014747 | F115: 0.1455630061 | G115: 0.5578668131 | H115: 0.4421331869 | I115: 0.970484093 | J115: -0.02923846859 | K115: 0.4883372004 | M115: 7.300980073 | N115: 6.309270681 | P115: -0.01353884038 | Q115: -0.0100219826
B116: 274 | D116: 0.9804717549 | E116: 17.44833644 | F116: 0.1452981051 | G116: 0.5577622446 | H116: 0.4422377554 | I116: 0.9705898296 | J116: -0.02918525932 | K116: 0.4883584188 | M116: 7.287441233 | N116: 6.299248698 | P116: -0.01356393289 | Q116: -0.01004643102
B117: 273 | D117: 0.9805423279 | E117: 17.4164673 | F117: 0.1450327202 | G117: 0.557657481 | H117: 0.442342519 | I117: 0.9706955776 | J117: -0.02913195286 | K117: 0.488379676 | M117: 7.2738773 | N117: 6.289202267 | P117: -0.01358915619 | Q117: -0.01007101015
B118: 272 | D118: 0.9806129061 | E118: 17.38453975 | F118: 0.1447668488 | G118: 0.5575525214 | H118: 0.4424474786 | I118: 0.9708013372 | J118: -0.02907854869 | K118: 0.4884009721 | M118: 7.260288144 | N118: 6.279131257 | P118: -0.01361451149 | Q118: -0.01009572119
B119: 271 | D119: 0.9806834893 | E119: 17.35255345 | F119: 0.1445004882 | G119: 0.5574473645 | H119: 0.4425526355 | I119: 0.9709071083 | J119: -0.02902504625 | K119: 0.4884223075 | M119: 7.246673632 | N119: 6.269035536 | P119: -0.01364 | Q119: -0.01012056534
B120: 270 | D120: 0.9807540775 | E120: 17.32050808 | F120: 0.1442336357 | G120: 0.5573420094 | H120: 0.4426579906 | I120: 0.9710128909 | J120: -0.02897144501 | K120: 0.4884436823 | M120: 7.233033632 | N120: 6.25891497 | P120: -0.01366562292 | Q120: -0.01014554382
B121: 269 | D121: 0.9808246709 | E121: 17.28840331 | F121: 0.1439662886 | G121: 0.557236455 | H121: 0.442763545 | I121: 0.9711186851 | J121: -0.02891774442 | K121: 0.4884650968 | M121: 7.219368009 | N121: 6.248769427 | P121: -0.0136913815 | Q121: -0.01017065787
B122: 268 | D122: 0.9808952693 | E122: 17.25623881 | F122: 0.1436984442 | G122: 0.5571307001 | H122: 0.4428692999 | I122: 0.9712244907 | J122: -0.02886394392 | K122: 0.4884865511 | M122: 7.205676628 | N122: 6.238598769 | P122: -0.013717277 | Q122: -0.01019590875
B123: 267 | D123: 0.9809658728 | E123: 17.22401424 | F123: 0.1434300995 | G123: 0.5570247436 | H123: 0.4429752564 | I123: 0.9713303079 | J123: -0.02881004295 | K123: 0.4885080455 | M123: 7.191959351 | N123: 6.22840286 | P123: -0.01374331067 | Q123: -0.01022129771
B124: 266 | D124: 0.9810364814 | E124: 17.19172928 | F124: 0.1431612518 | G124: 0.5569185844 | H124: 0.4430814156 | I124: 0.9714361367 | J124: -0.02875604095 | K124: 0.4885295803 | M124: 7.17821604 | N124: 6.218181562 | P124: -0.01376948382 | Q124: -0.01024682606
B125: 265 | D125: 0.9811070951 | E125: 17.15938357 | F125: 0.1428918983 | G125: 0.5568122214 | H125: 0.4431877786 | I125: 0.9715419769 | J125: -0.02870193734 | K125: 0.4885511556 | M125: 7.164446556 | N125: 6.207934736 | P125: -0.01379579773 | Q125: -0.01027249508
B126: 264 | D126: 0.9811777139 | E126: 17.12697677 | F126: 0.1426220362 | G126: 0.5567056535 | H126: 0.4432943465 | I126: 0.9716478287 | J126: -0.02864773156 | K126: 0.4885727717 | M126: 7.150650758 | N126: 6.197662241 | P126: -0.01382225373 | Q126: -0.01029830611
B127: 263 | D127: 0.9812483377 | E127: 17.09450854 | F127: 0.1423516624 | G127: 0.5565988794 | H127: 0.4434011206 | I127: 0.971753692 | J127: -0.02859342301 | K127: 0.4885944288 | M127: 7.136828505 | N127: 6.187363935 | P127: -0.01384885316 | Q127: -0.01032426047
B128: 262 | D128: 0.9813189667 | E128: 17.06197852 | F128: 0.1420807741 | G128: 0.5564918979 | H128: 0.4435081021 | I128: 0.9718595669 | J128: -0.02853901112 | K128: 0.4886161272 | M128: 7.122979652 | N128: 6.177039674 | P128: -0.01387559737 | Q128: -0.01035035953
B129: 261 | D129: 0.9813896007 | E129: 17.02938637 | F129: 0.1418093684 | G129: 0.556384708 | H129: 0.443615292 | I129: 0.9719654533 | J129: -0.02848449529 | K129: 0.488637867 | M129: 7.109104054 | N129: 6.166689315 | P129: -0.01390248775 | Q129: -0.01037660466
B130: 260 | D130: 0.9814602398 | E130: 16.99673171 | F130: 0.1415374422 | G130: 0.5562773084 | H130: 0.4437226916 | I130: 0.9720713512 | J130: -0.02842987492 | K130: 0.4886596485 | M130: 7.095201566 | N130: 6.15631271 | P130: -0.01392952567 | Q130: -0.01040299725
B131: 259 | D131: 0.981530884 | E131: 16.9640142 | F131: 0.1412649926 | G131: 0.5561696979 | H131: 0.4438303021 | I131: 0.9721772607 | J131: -0.02837514942 | K131: 0.4886814721 | M131: 7.081272041 | N131: 6.145909713 | P131: -0.01395671255 | Q131: -0.01042953871
B132: 258 | D132: 0.9816015332 | E132: 16.93123347 | F132: 0.1409920165 | G132: 0.5560618754 | H132: 0.4439381246 | I132: 0.9722831817 | J132: -0.02832031816 | K132: 0.4887033378 | M132: 7.067315328 | N132: 6.135480174 | P132: -0.01398404982 | Q132: -0.01045623047
B133: 257 | D133: 0.9816721876 | E133: 16.89838914 | F133: 0.1407185109 | G133: 0.5559538395 | H133: 0.4440461605 | I133: 0.9723891142 | J133: -0.02826538054 | K133: 0.4887252459 | M133: 7.053331278 | N133: 6.125023944 | P133: -0.01401153893 | Q133: -0.01048307398
B134: 256 | D134: 0.981742847 | E134: 16.86548085 | F134: 0.1404444726 | G134: 0.555845589 | H134: 0.444154411 | I134: 0.9724950583 | J134: -0.02821033593 | K134: 0.4887471968 | M134: 7.039319739 | N134: 6.11454087 | P134: -0.01403918134 | Q134: -0.01051007071
B135: 255 | D135: 0.9818135116 | E135: 16.83250823 | F135: 0.1401698986 | G135: 0.5557371227 | H135: 0.4442628773 | I135: 0.972601014 | J135: -0.0281551837 | K135: 0.4887691906 | M135: 7.025280558 | N135: 6.104030799 | P135: -0.01406697856 | Q135: -0.01053722214
B136: 254 | D136: 0.9818841812 | E136: 16.79947089 | F136: 0.1398947857 | G136: 0.5556284394 | H136: 0.4443715606 | I136: 0.9727069811 | J136: -0.02809992323 | K136: 0.4887912277 | M136: 7.01121358 | N136: 6.093493577 | P136: -0.01409493208 | Q136: -0.0105645298
B137: 253 | D137: 0.9819548559 | E137: 16.76636845 | F137: 0.1396191307 | G137: 0.5555195377 | H137: 0.4444804623 | I137: 0.9728129599 | J137: -0.02804455387 | K137: 0.4888133081 | M137: 6.997118647 | N137: 6.082929047 | P137: -0.01412304344 | Q137: -0.0105919952
B138: 252 | D138: 0.9820255356 | E138: 16.73320053 | F138: 0.1393429303 | G138: 0.5554104164 | H138: 0.4445895836 | I138: 0.9729189501 | J138: -0.02798907497 | K138: 0.4888354323 | M138: 6.982995604 | N138: 6.072337052 | P138: -0.01415131419 | Q138: -0.01061961991
B139: 251 | D139: 0.9820962205 | E139: 16.69996673 | F139: 0.1390661814 | G139: 0.5553010741 | H139: 0.4446989259 | I139: 0.9730249519 | J139: -0.02793348589 | K139: 0.4888576005 | M139: 6.96884429 | N139: 6.061717432 | P139: -0.01417974591 | Q139: -0.01064740549
B140: 250 | D140: 0.9821669105 | E140: 16.66666667 | F140: 0.1387888807 | G140: 0.5551915096 | H140: 0.4448084904 | I140: 0.9731309653 | J140: -0.02787778596 | K140: 0.4888798129 | M140: 6.954664544 | N140: 6.051070027 | P140: -0.01420834018 | Q140: -0.01067535353
B141: 249 | D141: 0.9822376055 | E141: 16.63329993 | F141: 0.1385110248 | G141: 0.5550817215 | H141: 0.4449182785 | I141: 0.9732369902 | J141: -0.02782197452 | K141: 0.4889020698 | M141: 6.940456204 | N141: 6.040394673 | P141: -0.01423709862 | Q141: -0.01070346567
B142: 248 | D142: 0.9823083057 | E142: 16.59986613 | F142: 0.1382326104 | G142: 0.5549717084 | H142: 0.4450282916 | I142: 0.9733430267 | J142: -0.0277660509 | K142: 0.4889243715 | M142: 6.926219105 | N142: 6.029691207 | P142: -0.01426602288 | Q142: -0.01073174353
B143: 247 | D143: 0.9823790109 | E143: 16.56636485 | F143: 0.1379536341 | G143: 0.5548614692 | H143: 0.4451385308 | I143: 0.9734490747 | J143: -0.02771001441 | K143: 0.4889467182 | M143: 6.911953082 | N143: 6.018959464 | P143: -0.01429511462 | Q143: -0.01076018877
B144: 246 | D144: 0.9824497212 | E144: 16.53279569 | F144: 0.1376740925 | G144: 0.5547510022 | H144: 0.4452489978 | I144: 0.9735551343 | J144: -0.02765386438 | K144: 0.4889691103 | M144: 6.897657968 | N144: 6.008199275 | P144: -0.01432437553 | Q144: -0.0107888031
B145: 245 | D145: 0.9825204366 | E145: 16.49915823 | F145: 0.1373939822 | G145: 0.5546403063 | H145: 0.4453596937 | I145: 0.9736612054 | J145: -0.0275976001 | K145: 0.4889915479 | M145: 6.883333592 | N145: 5.997410472 | P145: -0.01435380732 | Q145: -0.01081758822
B146: 244 | D146: 0.9825911571 | E146: 16.46545205 | F146: 0.1371132996 | G146: 0.5545293799 | H146: 0.4454706201 | I146: 0.9737672881 | J146: -0.02754122088 | K146: 0.4890140314 | M146: 6.868979785 | N146: 5.986592884 | P146: -0.01438341171 | Q146: -0.01084654585
B147: 243 | D147: 0.9826618827 | E147: 16.43167673 | F147: 0.1368320412 | G147: 0.5544182217 | H147: 0.4455817783 | I147: 0.9738733823 | J147: -0.02748472601 | K147: 0.4890365611 | M147: 6.854596373 | N147: 5.975746338 | P147: -0.01441319049 | Q147: -0.01087567778
B148: 242 | D148: 0.9827326134 | E148: 16.39783183 | F148: 0.1365502036 | G148: 0.5543068303 | H148: 0.4456931697 | I148: 0.9739794882 | J148: -0.02742811477 | K148: 0.4890591372 | M148: 6.840183183 | N148: 5.96487066 | P148: -0.01444314542 | Q148: -0.01090498577
B149: 241 | D149: 0.9828033491 | E149: 16.36391694 | F149: 0.136267783 | G149: 0.5541952041 | H149: 0.4458047959 | I149: 0.9740856055 | J149: -0.02737138645 | K149: 0.48908176 | M149: 6.825740037 | N149: 5.953965674 | P149: -0.01447327832 | Q149: -0.01093447165
B150: 240 | D150: 0.98287409 | E150: 16.32993162 | F150: 0.1359847759 | G150: 0.5540833419 | H150: 0.4459166581 | I150: 0.9741917344 | J150: -0.02731454031 | K150: 0.4891044299 | M150: 6.811266759 | N150: 5.943031203 | P150: -0.01450359103 | Q150: -0.01096413724
B151: 239 | D151: 0.982944836 | E151: 16.29587542 | F151: 0.1357011785 | G151: 0.553971242 | H151: 0.446028758 | I151: 0.9742978749 | J151: -0.02725757562 | K151: 0.489127147 | M151: 6.796763168 | N151: 5.932067066 | P151: -0.01453408542 | Q151: -0.01099398442
B152: 238 | D152: 0.983015587 | E152: 16.26174789 | F152: 0.1354169873 | G152: 0.553858903 | H152: 0.446141097 | I152: 0.974404027 | J152: -0.02720049162 | K152: 0.4891499118 | M152: 6.782229082 | N152: 5.921073081 | P152: -0.01456476337 | Q152: -0.01102401508
B153: 237 | D153: 0.9830863431 | E153: 16.22754859 | F153: 0.1351321983 | G153: 0.5537463235 | H153: 0.4462536765 | I153: 0.9745101906 | J153: -0.02714328758 | K153: 0.4891727245 | M153: 6.767664319 | N153: 5.910049066 | P153: -0.01459562681 | Q153: -0.01105423113
B154: 236 | D154: 0.9831571044 | E154: 16.19327707 | F154: 0.134846808 | G154: 0.5536335018 | H154: 0.4463664982 | I154: 0.9746163658 | J154: -0.02708596273 | K154: 0.4891955854 | M154: 6.753068692 | N154: 5.898994835 | P154: -0.01462667768 | Q154: -0.01108463453
B155: 235 | D155: 0.9832278707 | E155: 16.15893286 | F155: 0.1345608123 | G155: 0.5535204365 | H155: 0.4464795635 | I155: 0.9747225525 | J155: -0.0270285163 | K155: 0.4892184948 | M155: 6.738442015 | N155: 5.8879102 | P155: -0.01465791797 | Q155: -0.01111522726
B156: 234 | D156: 0.9832986421 | E156: 16.1245155 | F156: 0.1342742075 | G156: 0.553407126 | H156: 0.446592874 | I156: 0.9748287509 | J156: -0.02697094751 | K156: 0.4892414531 | M156: 6.723784097 | N156: 5.876794973 | P156: -0.01468934968 | Q156: -0.01114601131
B157: 233 | D157: 0.9833694186 | E157: 16.09002451 | F157: 0.1339869896 | G157: 0.5532935688 | H157: 0.4467064312 | I157: 0.9749349608 | J157: -0.02691325557 | K157: 0.4892644605 | M157: 6.709094747 | N157: 5.865648962 | P157: -0.01472097485 | Q157: -0.01117698874
B158: 232 | D158: 0.9834402002 | E158: 16.05545944 | F158: 0.1336991547 | G158: 0.5531797632 | H158: 0.4468202368 | I158: 0.9750411822 | J158: -0.02685543971 | K158: 0.4892875173 | M158: =($E$4*D158*G158)-($E$5*I158*K158) -> 6.694373772 | N158: =M158+($E$5*I158)-($E$4*D158) -> 5.854471973 | P158: -0.01475279554 | Q158: -0.0112081616
B159: 231 | D159: =EXP(-$F$6*B159/360) -> 0.9835109869 | E159: =$E$10*SQRT(B159/360) -> 16.02081979 | F159: =((LN($E$4/$E$5))+(($F$7-$F$6+$G$10)*(B159/360)))/(E159/100) -> 0.1334106988 | G159: =NORMSDIST(F159) -> 0.5530657077 | H159: =1-G159 -> 0.4469342923 | I159: =EXP(-$F$7*(B159/360)) -> 0.9751474153 | J159: =F159-(E159/100) -> -0.0267974991 | K159: =NORMSDIST(J159) -> 0.489310624 | M159: 6.679620976 | N159: 5.843263811 | P159: =M160-M159 -> -0.01478481385 | Q159: =N160-N159 -> -0.01123953199
B160: 230 | D160: 0.9835817787 | E160: 15.98610508 | F160: 0.1331216178 | G160: 0.5529514006 | H160: 0.4470485994 | I160: 0.9752536599 | J160: -0.02673943294 | K160: 0.4893337807 | M160: 6.664836163 | N160: 5.832024279 | P160: -0.01481703192 | Q160: -0.01127110205
B161: 229 | D161: 0.9836525756 | E161: 15.95131482 | F161: 0.1328319078 | G161: 0.5528368404 | H161: 0.4471631596 | I161: 0.9753599161 | J161: -0.02668124042 | K161: 0.4893569879 | M161: 6.650019131 | N161: 5.820753177 | P161: -0.01484945191 | Q161: -0.01130287394
B162: 228 | D162: 0.9837233776 | E162: 15.91644852 | F162: 0.1325415645 | G162: 0.5527220253 | H162: 0.4472779747 | I162: 0.9754661838 | J162: -0.0266229207 | K162: 0.4893802458 | M162: 6.635169679 | N162: 5.809450303 | P162: -0.01488207601 | Q162: -0.01133484985
B163: 227 | D163: 0.9837941847 | E163: 15.88150567 | F163: 0.1322505837 | G163: 0.5526069538 | H163: 0.4473930462 | I163: 0.9755724632 | J163: -0.02656447294 | K163: 0.4894035549 | M163: 6.620287603 | N163: 5.798115454 | P163: -0.01491490646 | Q163: -0.01136703202
B164: 226 | D164: 0.9838649968 | E164: 15.84648577 | F164: 0.1319589613 | G164: 0.552491624 | H164: 0.447508376 | I164: 0.9756787541 | J164: -0.02650589631 | K164: 0.4894269153 | M164: 6.605372696 | N164: 5.786748422 | P164: -0.01494794552 | Q164: -0.01139942271
B165: 225 | D165: 0.9839358141 | E165: 15.8113883 | F165: 0.1316666931 | G165: 0.5523760344 | H165: 0.4476239656 | I165: 0.9757850566 | J165: -0.02644718993 | K165: 0.4894503276 | M165: 6.590424751 | N165: 5.775348999 | P165: -0.01498119548 | Q165: -0.01143202422
B166: 224 | D166: 0.9840066365 | E166: 15.77621275 | F166: 0.1313737746 | G166: 0.5522601832 | H166: 0.4477398168 | I166: 0.9758913707 | J166: -0.02638835295 | K166: 0.489473792 | M166: 6.575443555 | N166: 5.763916975 | P166: -0.01501465869 | Q166: -0.01146483888
B167: 223 | D167: 0.984077464 | E167: 15.7409586 | F167: 0.1310802016 | G167: 0.5521440686 | H167: 0.4478559314 | I167: 0.9759976963 | J167: -0.02632938449 | K167: 0.4894973088 | M167: 6.560428897 | N167: 5.752452136 | P167: -0.01504833752 | Q167: -0.01149786908
B168: 222 | D168: 0.9841482965 | E168: 15.70562532 | F168: 0.1307859695 | G168: 0.5520276888 | H168: 0.4479723112 | I168: 0.9761040336 | J168: -0.02627028366 | K168: 0.4895208785 | M168: 6.545380559 | N168: 5.740954267 | P168: -0.01508223438 | Q168: -0.01153111721
B169: 221 | D169: 0.9842191342 | E169: 15.67021236 | F169: 0.1304910741 | G169: 0.5519110422 | H169: 0.4480889578 | I169: 0.9762103824 | J169: -0.02621104958 | K169: 0.4895445013 | M169: 6.530298325 | N169: 5.72942315 | P169: -0.01511635171 | Q169: -0.01156458572
B170: 220 | D170: 0.984289977 | E170: 15.6347192 | F170: 0.1301955107 | G170: 0.5517941268 | H170: 0.4482058732 | I170: 0.9763167429 | J170: -0.02615168133 | K170: 0.4895681777 | M170: 6.515181973 | N170: 5.717858564 | P170: -0.01515069201 | Q170: -0.01159827711
B171: 219 | D171: 0.9843608248 | E171: 15.59914528 | F171: 0.1298992748 | G171: 0.551676941 | H171: 0.448323059 | I171: 0.9764231149 | J171: -0.02609217799 | K171: 0.489591908 | M171: 6.500031281 | N171: 5.706260287 | P171: -0.01518525779 | Q171: -0.0116321939
B172: 218 | D172: 0.9844316778 | E172: 15.56349004 | F172: 0.1296023617 | G172: 0.5515594827 | H172: 0.4484405173 | I172: 0.9765294985 | J172: -0.02603253865 | K172: 0.4896156926 | M172: 6.484846023 | N172: 5.694628093 | P172: -0.01522005162 | Q172: -0.01166633865
B173: 217 | D173: 0.9845025359 | E173: 15.52775293 | F173: 0.129304767 | G173: 0.5514417502 | H173: 0.4485582498 | I173: 0.9766358937 | J173: -0.02597276236 | K173: 0.4896395318 | M173: 6.469625972 | N173: 5.682961754 | P173: -0.01525507612 | Q173: -0.01170071397
B174: 216 | D174: 0.984573399 | E174: 15.49193338 | F174: 0.1290064857 | G174: 0.5513237416 | H174: 0.4486762584 | I174: 0.9767423005 | J174: -0.02591284818 | K174: 0.4896634261 | M174: 6.454370895 | N174: 5.67126104 | P174: -0.01529033393 | Q174: -0.01173532252
B175: 215 | D175: 0.9846442673 | E175: 15.45603083 | F175: 0.1287075131 | G175: 0.5512054549 | H175: 0.4487945451 | I175: 0.9768487188 | J175: -0.02585279515 | K175: 0.4896873757 | M175: 6.439080562 | N175: 5.659525718 | P175: -0.01532582774 | Q175: -0.01177016698
B176: 214 | D176: 0.9847151406 | E176: 15.42004467 | F176: 0.1284078444 | G176: 0.5510868882 | H176: 0.4489131118 | I176: 0.9769551488 | J176: -0.0257926023 | K176: 0.4897113812 | M176: 6.423754734 | N176: 5.647755551 | P176: -0.0153615603 | Q176: -0.01180525009
B177: 213 | D177: 0.9847860191 | E177: 15.38397435 | F177: 0.1281074748 | G177: 0.5509680396 | H177: 0.4490319604 | I177: 0.9770615904 | J177: -0.02573226864 | K177: 0.4897354429 | M177: 6.408393174 | N177: 5.635950301 | P177: -0.01539753438 | Q177: -0.01184057464
B178: 212 | D178: 0.9848569027 | E178: 15.34781924 | F178: 0.1278063992 | G178: 0.5508489071 | H178: 0.4491510929 | I178: 0.9771680435 | J178: -0.02567179319 | K178: 0.4897595611 | M178: 6.392995639 | N178: 5.624109726 | P178: -0.01543375282 | Q178: -0.01187614346
B179: 211 | D179: 0.9849277914 | E179: 15.31157877 | F179: 0.1275046128 | G179: 0.5507294887 | H179: 0.4492705113 | I179: 0.9772745083 | J179: -0.02561117494 | K179: 0.4897837363 | M179: 6.377561886 | N179: 5.612233582 | P179: -0.01547021848 | Q179: -0.01191195941
B180: 210 | D180: 0.9849986851 | E180: 15.27525232 | F180: 0.1272021103 | G180: 0.5506097824 | H180: 0.4493902176 | I180: 0.9773809847 | J180: -0.02555041288 | K180: 0.489807969 | M180: 6.362091668 | N180: 5.600321623 | P180: -0.01550693429 | Q180: -0.01194802541
B181: 209 | D181: 0.985069584 | E181: 15.23883927 | F181: 0.1268988867 | G181: 0.5504897861 | H181: 0.4495102139 | I181: 0.9774874726 | J181: -0.02548950597 | K181: 0.4898322594 | M181: 6.346584734 | N181: 5.588373598 | P181: -0.01554390322 | Q181: -0.01198434445
B182: 208 | D182: 0.985140488 | E182: 15.202339 | F182: 0.1265949368 | G182: 0.5503694977 | H182: 0.4496305023 | I182: 0.9775939722 | J182: -0.02542845317 | K182: 0.489856608 | M182: 6.33104083 | N182: 5.576389253 | P182: -0.01558112829 | Q182: -0.01202091955
B183: 207 | D183: 0.9852113971 | E183: 15.16575089 | F183: 0.1262902554 | G183: 0.5502489152 | H183: 0.4497510848 | I183: 0.9777004834 | J183: -0.02536725343 | K183: 0.4898810153 | M183: 6.315459702 | N183: 5.564368334 | P183: -0.01561861258 | Q183: -0.01205775376
B184: 206 | D184: 0.9852823113 | E184: 15.12907429 | F184: 0.1259848372 | G184: 0.5501280365 | H184: 0.4498719635 | I184: 0.9778070062 | J184: -0.02530590569 | K184: 0.4899054817 | M184: 6.299841089 | N184: 5.55231058 | P184: -0.0156563592 | Q184: -0.01209485023
B185: 205 | D185: 0.9853532305 | E185: 15.09230856 | F185: 0.1256786768 | G185: 0.5500068593 | H185: 0.4499931407 | I185: 0.9779135405 | J185: -0.02524440887 | K185: 0.4899300075 | M185: 6.28418473 | N185: 5.54021573 | P185: -0.01569437134 | Q185: -0.01213221212
B186: 204 | D186: 0.9854241549 | E186: 15.05545305 | F186: 0.1253717687 | G186: 0.5498853815 | H186: 0.4501146185 | I186: 0.9780200865 | J186: -0.02518276187 | K186: 0.4899545933 | M186: 6.268490359 | N186: 5.528083518 | P186: -0.01573265223 | Q186: -0.01216984266
B187: 203 | D187: 0.9854950844 | E187: 15.0185071 | F187: 0.1250641074 | G187: 0.5497636009 | H187: 0.4502363991 | I187: 0.9781266441 | J187: -0.02512096359 | K187: 0.4899792395 | M187: 6.252757707 | N187: 5.515913675 | P187: -0.01577120515 | Q187: -0.01220774516
B188: 202 | D188: 0.985566019 | E188: 14.98147004 | F188: 0.1247556875 | G188: 0.5496415152 | H188: 0.4503584848 | I188: 0.9782332133 | J188: -0.02505901291 | K188: 0.4900039464 | M188: 6.236986502 | N188: 5.50370593 | P188: -0.01581003345 | Q188: -0.01224592294
B189: 201 | D189: 0.9856369588 | E189: 14.94434118 | F189: 0.1244465031 | G189: 0.5495191223 | H189: 0.4504808777 | I189: 0.9783397941 | J189: -0.02499690869 | K189: 0.4900287147 | M189: 6.221176468 | N189: 5.491460007 | P189: -0.01584914053 | Q189: -0.01228437941
B190: 200 | D190: 0.9857079036 | E190: 14.90711985 | F190: 0.1241365487 | G190: 0.5493964199 | H190: 0.4506035801 | I190: 0.9784463866 | J190: -0.02493464979 | K190: 0.4900535446 | M190: 6.205327328 | N190: 5.479175627 | P190: -0.01588852986 | Q190: -0.01232311804
B191: 199 | D191: 0.9857788535 | E191: 14.86980535 | F191: 0.1238258184 | G191: 0.5492734055 | H191: 0.4507265945 | I191: 0.9785529906 | J191: -0.02487223505 | K191: 0.4900784368 | M191: 6.189438798 | N191: 5.466852509 | P191: -0.01592820495 | Q191: -0.01236214234
B192: 198 | D192: 0.9858498085 | E192: 14.83239697 | F192: 0.1235143065 | G192: 0.5491500769 | H192: 0.4508499231 | I192: 0.9786596063 | J192: -0.02480966329 | K192: 0.4901033916 | M192: 6.173510593 | N192: 5.454490367 | P192: -0.01596816939 | Q192: -0.01240145591
B193: 197 | D193: 0.9859207687 | E193: 14.79489401 | F193: 0.1232020068 | G193: 0.5490264318 | H193: 0.4509735682 | I193: 0.9787662336 | J193: -0.02474693332 | K193: 0.4901284096 | M193: 6.157542423 | N193: 5.442088911 | P193: -0.01600842683 | Q193: -0.01244106238
B194: 196 | D194: 0.9859917339 | E194: 14.75729575 | F194: 0.1228889135 | G194: 0.5489024676 | H194: 0.4510975324 | I194: 0.9788728724 | J194: -0.02468404393 | K194: 0.4901534911 | M194: 6.141533997 | N194: 5.429647849 | P194: -0.01604898099 | Q194: -0.01248096548
B195: 195 | D195: 0.9860627043 | E195: 14.71960144 | F195: 0.1225750205 | G195: 0.548778182 | H195: 0.451221818 | I195: 0.978979523 | J195: -0.02462099391 | K195: 0.4901786368 | M195: 6.125485016 | N195: 5.417166883 | P195: -0.01608983563 | Q195: -0.01252116897
B196: 194 | D196: 0.9861336797 | E196: 14.68181036 | F196: 0.1222603216 | G196: 0.5486535725 | H196: 0.4513464275 | I196: 0.9790861851 | J196: -0.02455778201 | K196: 0.4902038471 | M196: 6.10939518 | N196: 5.404645714 | P196: -0.01613099462 | Q196: -0.01256167672
B197: 193 | D197: 0.9862046603 | E197: 14.64392176 | F197: 0.1219448106 | G197: 0.5485286366 | H197: 0.4514713634 | I197: 0.9791928588 | J197: -0.02449440699 | K197: 0.4902291225 | M197: 6.093264185 | N197: 5.392084038 | P197: -0.01617246187 | Q197: -0.01260249264
B198: 192 | D198: 0.986275646 | E198: 14.60593487 | F198: 0.1216284811 | G198: 0.5484033719 | H198: 0.4515966281 | I198: 0.9792995442 | J198: -0.02443086756 | K198: 0.4902544635 | M198: 6.077091723 | N198: 5.379481545 | P198: -0.01621424136 | Q198: -0.01264362072
B199: 191 | D199: 0.9863466368 | E199: 14.56784892 | F199: 0.1213113268 | G199: 0.5482777756 | H199: 0.4517222244 | I199: 0.9794062412 | J199: -0.02436716245 | K199: 0.4902798706 | M199: 6.060877482 | N199: 5.366837924 | P199: -0.01625633716 | Q199: -0.01268506501
B200: 190 | D200: 0.9864176327 | E200: 14.52966315 | F200: 0.1209933411 | G200: 0.5481518453 | H200: 0.4518481547 | I200: 0.9795129498 | J200: -0.02430329036 | K200: 0.4903053443 | M200: 6.044621145 | N200: 5.354152859 | P200: -0.0162987534 | Q200: -0.01272682966
B201: 189 | D201: 0.9864886337 | E201: 14.49137675 | F201: 0.1206745175 | G201: 0.5480255782 | H201: 0.4519744218 | I201: 0.9796196701 | J201: -0.02423924995 | K201: 0.4903308852 | M201: 6.028322391 | N201: 5.34142603 | P201: -0.01634149431 | Q201: -0.01276891888
B202: 188 | D202: 0.9865596398 | E202: 14.45298893 | F202: 0.1203548493 | G202: 0.5478989718 | H202: 0.4521010282 | I202: 0.9797264019 | J202: -0.02417503991 | K202: 0.4903564938 | M202: 6.011980897 | N202: 5.328657111 | P202: -0.01638456416 | Q202: -0.01281133695
B203: 187 | D203: 0.986630651 | E203: 14.41449887 | F203: 0.1200343299 | G203: 0.5477720234 | H203: 0.4522279766 | I203: 0.9798331455 | J203: -0.02411065886 | K203: 0.4903821706 | M203: 5.995596333 | N203: 5.315845774 | P203: -0.01642796734 | Q203: -0.01285408826
B204: 186 | D204: 0.9867016674 | E204: 14.37590577 | F204: 0.1197129522 | G204: 0.5476447301 | H204: 0.4523552699 | I204: 0.9799399006 | J204: -0.02404610544 | K204: 0.4904079163 | M204: 5.979168366 | N204: 5.302991685 | P204: -0.01647170829 | Q204: -0.01289717726
B205: 185 | D205: 0.9867726888 | E205: 14.33720878 | F205: 0.1193907095 | G205: 0.5475170893 | H205: 0.4524829107 | I205: 0.9800466674 | J205: -0.02398137826 | K205: 0.4904337312 | M205: 5.962696657 | N205: 5.290094508 | P205: -0.01651579156 | Q205: -0.01294060848
B206: 184 | D206: 0.9868437154 | E206: 14.29840706 | F206: 0.1190675947 | G206: 0.5473890981 | H206: 0.4526109019 | I206: 0.9801534458 | J206: -0.0239164759 | K206: 0.4904596161 | M206: 5.946180866 | N206: 5.2771539 | P206: -0.01656022176 | Q206: -0.01298438654
B207: 183 | D207: 0.9869147471 | E207: 14.25949976 | F207: 0.1187436006 | G207: 0.5472607537 | H207: 0.4527392463 | I207: 0.9802602358 | J207: -0.02385139693 | K207: 0.4904855714 | M207: 5.929620644 | N207: 5.264169513 | P207: -0.01660500361 | Q207: -0.01302851617
B208: 182 | D208: 0.9869857839 | E208: 14.22048601 | F208: 0.1184187201 | G208: 0.5471320532 | H208: 0.4528679468 | I208: 0.9803670374 | J208: -0.02378613991 | K208: 0.4905115978 | M208: 5.91301564 | N208: 5.251140997 | P208: -0.01665014191 | Q208: -0.01307300216
... 182 more rows

Sheet D CALL-THETA
B1: Daten eingeben/rechnen! | E1: Tabelle Theta | G1: Diagramm Put-Theta | K1: Hauptmenü

Sheet D PUT-THETA
B1: Daten eingeben/rechnen! | E1: Tabelle Theta | G1: Diagramm Call-Theta | K1: Hauptmenü

Sheet T RHO
B1: Daten eingeben/rechnen! | I1: Diagramm Call-Rho | M1: Diagramm Put-Rho | R1: Hauptmenü
B4: Aktienkurs | E4: =EINGABESEITE!C7 -> 100
B5: Ausübungspreis | E5: =EINGABESEITE!C8 -> 100
B6: Dividende | E6: =EINGABESEITE!C11 -> 2.625 | F6: =LN(1+(E6/E4)) -> 0.02591138178 | G6: =EXP(-$F$6*$F$9) -> 0.9871278728
B7: Zinssatz | E7: =EINGABESEITE!C9 -> 4 | F7: =LN(1+(E7/100)) -> 0.03922071315 | G7: =EXP(-$F$7*$F$9) -> 0.9805806757
B8: Abstufung Zinssatz | E8: =EINGABESEITE!F9 -> 1
B9: Restlaufzeit (Tage/360) | E9: =EINGABESEITE!C10 -> 180 | F9: =E9/360 -> 0.5
B10: Volatilität Jahr | E10: =EINGABESEITE!C12 -> 20 | F10: =E10*SQRT(E$9/360) -> 14.14213562 | G10: =((E10/100)^2)/2 -> 0.02
B11: Volatilität Jahr (0.5) | F11: =F10/2 -> 7.071067812
B13: Tabelle Call-/Put-Rho
N14: Options- | O14: Options- | Q14: Rho | R14: Rho
N15: preis | O15: preis | Q15: bei minus | R15: bei minus
D16: Zinssatz | E16: Dividende | F16: d1 | G16: NV-Werte | J16: Zins | K16: d2 | L16: NV-Werte | Q16: =E8 -> 1 | R16: =E8 -> 1
D17: stetig | E17: Faktor | G17: Verteilung | J17: Faktor | L17: Verteilung | Q17: Prozent- | R17: Prozent-
G18: F(x) | L18: F(x) | Q18: punkt/en | R18: punkt/en
G19: Call-Delta | H19: Put-Delta | N19: Call | O19: Put | Q19: Call | R19: Put
B21: =E7 -> 4 | D21: =LN(1+(B21/100)) -> 0.03922071315 | E21: =EXP(-$F$6*$F$9) -> 0.9871278728 | F21: =(LN($E$4/$E$5)+((D21-$F$6+$G$10)*$F$9))/($F$10/100) -> 0.1177662704 | G21: =NORMSDIST(F21) -> 0.5468735721 | H21: =1-G21 -> 0.4531264279 | J21: =EXP(-D21*$F$9) -> 0.9805806757 | K21: =F21-($F$10/100) -> -0.0236550858 | L21: =NORMSDIST(K21) -> 0.4905638662 | N21: =($E$4*E21*G21)-($E$5*J21*L21) -> 5.879669857 | O21: =N21+($E$5*J21)-($E$4*E21) -> 5.224950145 | Q21: =-(N22-N21) -> 0.2297130987 | R21: =O22-O21 -> 0.2451471486
B22: =B21-$E$8 -> 3 | D22: =LN(1+(B22/100)) -> 0.02955880224 | E22: =EXP(-$F$6*$F$9) -> 0.9871278728 | F22: =(LN($E$4/$E$5)+((D22-$F$6+$G$10)*$F$9))/($F$10/100) -> 0.08360625681 | G22: =NORMSDIST(F22) -> 0.5333152539 | H22: =1-G22 -> 0.4666847461 | J22: =EXP(-D22*$F$9) -> 0.9853292782 | K22: =F22-($F$10/100) -> -0.05781509942 | L22: =NORMSDIST(K22) -> 0.4769479553 | N22: =($E$4*E22*G22)-($E$5*J22*L22) -> 5.649956758 | O22: =N22+($E$5*J22)-($E$4*E22) -> 5.470097294 | Q22: =-(N23-N22) -> 0.2264963638 | R22: =O23-O22 -> 0.2553301174
B23: =B22-$E$8 -> 2 | D23: 0.0198026273 | E23: =EXP(-$F$6*$F$9) -> 0.9871278728 | F23: =(LN($E$4/$E$5)+((D23-$F$6+$G$10)*$F$9))/($F$10/100) -> 0.0491129695 | G23: =NORMSDIST(F23) -> 0.5195853661 | H23: =1-G23 -> 0.4804146339 | J23: =EXP(-D23*$F$9) -> 0.990147543 | K23: -0.09230838674 | L23: =NORMSDIST(K23) -> 0.4632265126 | N23: 5.423460394 | O23: 5.725427411
B25: Zinssatz
B29: =B79+5 -> 9 | D29: =LN(1+(B29/100)) -> 0.08617769624 | E29: =EXP(-$F$6*$F$9) -> 0.9871278728 | F29: =(LN($E$4/$E$5)+((D29-$F$6+$G$10)*$F$9))/($F$10/100) -> 0.2837842763 | G29: =NORMSDIST(F29) -> 0.6117121475 | H29: =1-G29 -> 0.3882878525 | J29: =EXP(-D29*$F$9) -> 0.9578262852 | K29: =F29-($F$10/100) -> 0.14236292 | L29: =NORMSDIST(K29) -> 0.5566033252 | N29: =($E$4*E29*G29)-($E$5*J29*L29) -> 7.070881555 | O29: =N29+($E$5*J29)-($E$4*E29) -> 4.140722796 | Q29: =-(N30-N29) -> 0.02444413263 | R29: =O30-O29 -> 0.01952310793 | S29: 0
B30: =B29-(5/50) -> 8.9 | D30: =LN(1+(B30/100)) -> 0.08525984395 | E30: =EXP(-$F$6*$F$9) -> 0.9871278728 | F30: =(LN($E$4/$E$5)+((D30-$F$6+$G$10)*$F$9))/($F$10/100) -> 0.2805391784 | G30: =NORMSDIST(F30) -> 0.6104680642 | H30: =1-G30 -> 0.3895319358 | J30: =EXP(-D30*$F$9) -> 0.9582659576 | K30: =F30-($F$10/100) -> 0.1391178221 | L30: =NORMSDIST(K30) -> 0.5553214774 | N30: =($E$4*E30*G30)-($E$5*J30*L30) -> 7.046437422 | O30: =N30+($E$5*J30)-($E$4*E30) -> 4.160245904 | Q30: =-(N31-N30) -> 0.02442134972 | R30: =O31-O30 -> 0.01960649353 | S30: 1
B31: =B30-(5/50) -> 8.8 | D31: 0.08434114843 | E31: 0.9871278728 | F31: 0.2772910992 | G31: 0.6092217033 | H31: 0.3907782967 | J31: 0.9587062361 | K31: 0.135869743 | L31: 0.5540378724 | N31: 7.022016073 | O31: 4.179852398 | Q31: 0.02439841118 | R31: 0.01969017409 | S31: 2
B32: 8.7 | D32: 0.08342160814 | E32: 0.9871278728 | F32: 0.2740400333 | G32: 0.6079730717 | H32: 0.3920269283 | J32: 0.9591471219 | K32: 0.1326186771 | L32: 0.5527525196 | N32: 6.997617661 | O32: 4.199542572 | Q32: 0.02437531683 | R32: 0.01977415027 | S32: 3
B33: 8.6 | D33: 0.08250122151 | E33: 0.9871278728 | F33: 0.2707859752 | G33: 0.6067221764 | H33: 0.3932778236 | J33: 0.9595886166 | K33: 0.129364619 | L33: 0.5514654288 | N33: 6.973242345 | O33: 4.219316722 | Q33: 0.02435206649 | R33: 0.01985842268 | S33: 4
B34: 8.5 | D34: 0.08157998699 | E34: 0.9871278728 | F34: 0.2675289193 | G34: 0.6054690245 | H34: 0.3945309755 | J34: 0.9600307215 | K34: 0.1261075631 | L34: 0.5501766096 | N34: 6.948890278 | O34: 4.239175145 | Q34: 0.02432865999 | R34: 0.01994299196 | S34: 5
B35: 8.4 | D35: 0.08065790302 | E35: 0.9871278728 | F35: 0.2642688602 | G35: 0.6042136232 | H35: 0.3957863768 | J35: 0.960473438 | K35: 0.1228475039 | L35: 0.5488860718 | N35: 6.924561618 | O35: 4.259118137 | Q35: 0.02430509713 | R35: 0.02002785875 | S35: 6
B36: 8.3 | D36: 0.07973496802 | E36: 0.9871278728 | F36: 0.2610057922 | G36: 0.6029559797 | H36: 0.3970440203 | J36: 0.9609167676 | K36: 0.119584436 | L36: 0.5475938252 | N36: 6.900256521 | O36: 4.279145996 | Q36: 0.02428137776 | R36: 0.02011302366 | S36: 7
B37: 8.2 | D37: 0.07881118042 | E37: 0.9871278728 | F37: 0.2577397098 | G37: 0.6016961014 | H37: 0.3983038986 | J37: 0.9613607116 | K37: 0.1163183536 | L37: 0.5462998799 | N37: 6.875975143 | O37: 4.299259019 | Q37: 0.0242575017 | R37: 0.02019848734 | S37: 8
B38: 8.1 | D38: 0.07788653866 | E38: 0.9871278728 | F38: 0.2544706075 | G38: 0.6004339957 | H38: 0.3995660043 | J38: 0.9618052715 | K38: 0.1130492513 | L38: 0.5450042457 | N38: 6.851717641 | O38: 4.319457507 | Q38: 0.02423346879 | R38: 0.0202842504 | S38: 9
B39: 8 | D39: 0.07696104114 | E39: 0.9871278728 | F39: 0.2511984796 | G39: 0.59916967 | H39: 0.40083033 | J39: 0.9622504486 | K39: 0.1097771234 | L39: 0.5437069329 | N39: 6.827484173 | O39: 4.339741757 | Q39: 0.02420927886 | R39: 0.02037031347 | S39: 10
B40: 7.9 | D40: 0.07603468628 | E40: 0.9871278728 | F40: 0.2479233206 | G40: 0.5979031321 | H40: 0.4020968679 | J40: 0.9626962446 | K40: 0.1065019644 | L40: 0.5424079515 | N40: 6.803274894 | O40: 4.36011207 | Q40: 0.02418493175 | R40: 0.02045667717 | S40: 11
B41: 7.8 | D41: 0.07510747249 | E41: 0.9871278728 | F41: 0.2446451248 | G41: 0.5966343895 | H41: 0.4033656105 | J41: 0.9631426607 | K41: 0.1032237686 | L41: 0.541107312 | N41: 6.779089962 | O41: 4.380568748 | Q41: 0.0241604273 | R41: 0.02054334214 | S41: 12
B42: 7.7 | D42: 0.07417939817 | E42: 0.9871278728 | F42: 0.2413638866 | G42: 0.5953634501 | H42: 0.4046365499 | J42: 0.9635896984 | K42: 0.0999425304 | L42: 0.5398050245 | N42: 6.754929535 | O42: 4.40111209 | Q42: 0.02413576537 | R42: 0.02063030898 | S42: 13
B43: 7.6 | D43: 0.07325046174 | E43: 0.9871278728 | F43: 0.2380796004 | G43: 0.5940903218 | H43: 0.4059096782 | J43: 0.9640373591 | K43: 0.09665824414 | L43: 0.5385010996 | N43: 6.730793769 | O43: 4.421742399 | Q43: 0.0241109458 | R43: 0.02071757832 | S43: 14
B44: 7.5 | D44: 0.07232066158 | E44: 0.9871278728 | F44: 0.2347922604 | G44: 0.5928150124 | H44: 0.4071849876 | J44: 0.9644856443 | K44: 0.09337090415 | L44: 0.5371955477 | N44: 6.706682824 | O44: 4.442459977 | Q44: 0.02408596846 | R44: 0.02080515077 | S44: 15
B45: 7.4 | D45: 0.07138999609 | E45: 0.9871278728 | F45: 0.231501861 | G45: 0.5915375301 | H45: 0.4084624699 | J45: 0.9649345555 | K45: 0.09008050474 | L45: 0.5358883794 | N45: 6.682596855 | O45: 4.463265128 | Q45: 0.02406083318 | R45: 0.02089302696 | S45: 16
B46: 7.3 | D46: 0.07045846365 | E46: 0.9871278728 | F46: 0.2282083965 | G46: 0.5902578829 | H46: 0.4097421171 | J46: 0.9653840941 | K46: 0.08678704022 | L46: 0.5345796054 | N46: 6.658536022 | O46: 4.484158155 | Q46: 0.02403553984 | R46: 0.02098120749 | S46: 17
B47: 7.2 | D47: 0.06952606265 | E47: 0.9871278728 | F47: 0.2249118611 | G47: 0.5889760791 | H47: 0.4110239209 | J47: 0.9658342616 | K47: 0.08349050487 | L47: 0.5332692365 | N47: 6.634500482 | O47: 4.505139362 | Q47: 0.0240100883 | R47: 0.02106969299 | S47: 18
B48: 7.1 | D48: 0.06859279147 | E48: 0.9871278728 | F48: 0.2216122492 | G48: 0.5876921269 | H48: 0.4123078731 | J48: 0.9662850594 | K48: 0.08019089296 | L48: 0.5319572834 | N48: 6.610490394 | O48: 4.526209055 | Q48: 0.02398447843 | R48: 0.02115848406 | S48: 19
B49: 7 | D49: 0.06765864847 | E49: 0.9871278728 | F49: 0.218309555 | G49: 0.5864060349 | H49: 0.4135939651 | J49: 0.966736489 | K49: 0.07688819874 | L49: 0.5306437571 | N49: 6.586505915 | O49: 4.547367539 | Q49: 0.0239587101 | R49: 0.02124758131 | S49: 20
B50: 6.9 | D50: 0.06672363204 | E50: 0.9871278728 | F50: 0.2150037727 | G50: 0.5851178114 | H50: 0.4148821886 | J50: 0.967188552 | K50: 0.07358241645 | L50: 0.5293286686 | N50: 6.562547205 | O50: 4.568615121 | Q50: 0.02393278318 | R50: 0.02133698536 | S50: 21
B51: 6.8 | D51: 0.06578774054 | E51: 0.9871278728 | F51: 0.2116948965 | G51: 0.5838274651 | H51: 0.4161725349 | J51: 0.9676412496 | K51: 0.0702735403 | L51: 0.5280120289 | N51: 6.538614422 | O51: 4.589952106 | Q51: 0.02390669756 | R51: 0.02142669681 | S51: 22
B52: 6.7 | D52: 0.06485097232 | E52: 0.9871278728 | F52: 0.2083829207 | G52: 0.5825350045 | H52: 0.4174649955 | J52: 0.9680945836 | K52: 0.0669615645 | L52: 0.5266938492 | N52: 6.514707725 | O52: 4.611378803 | Q52: 0.0238804531 | R52: 0.02151671626 | S52: 23
B53: 6.6 | D53: 0.06391332574 | E53: 0.9871278728 | F53: 0.2050678395 | G53: 0.5812404386 | H53: 0.4187595614 | J53: 0.9685485553 | K53: 0.06364648324 | L53: 0.5253741408 | N53: 6.490827271 | O53: 4.632895519 | Q53: 0.02385404972 | R53: 0.02160704433 | S53: 24
B54: 6.5 | D54: 0.06297479916 | E54: 0.9871278728 | F54: 0.2017496469 | G54: 0.579943776 | H54: 0.420056224 | J54: 0.9690031662 | K54: 0.06032829069 | L54: 0.5240529149 | N54: 6.466973222 | O54: 4.654502563 | Q54: 0.02382748728 | R54: 0.02169768161 | S54: 25
B55: 6.4 | D55: 0.06203539092 | E55: 0.9871278728 | F55: 0.1984283372 | G55: 0.5786450258 | H55: 0.4213549742 | J55: 0.9694584179 | K55: 0.057006981 | L55: 0.5227301829 | N55: 6.443145734 | O55: 4.676200245 | Q55: 0.02380076568 | R55: 0.0217886287 | S55: 26
B56: 6.3 | D56: 0.06109509936 | E56: 0.9871278728 | F56: 0.1951039045 | G56: 0.577344197 | H56: 0.422655803 | J56: 0.9699143119 | K56: 0.05368254831 | L56: 0.5214059564 | N56: 6.419344969 | O56: 4.697988874 | Q56: 0.02377388483 | R56: 0.0218798862 | S56: 27
B57: 6.2 | D57: 0.06015392282 | E57: 0.9871278728 | F57: 0.191776343 | G57: 0.5760412987 | H57: 0.4239587013 | J57: 0.9703708496 | K57: 0.05035498674 | L57: 0.5200802469 | N57: 6.395571084 | O57: 4.71986876 | Q57: 0.02374684462 | R57: 0.02197145472 | S57: 28
B58: 6.1 | D58: 0.05921185963 | E58: 0.9871278728 | F58: 0.1884456466 | G58: 0.5747363401 | H58: 0.4252636599 | J58: 0.9708280326 | K58: 0.04702429039 | L58: 0.518753066 | N58: 6.371824239 | O58: 4.741840215 | Q58: 0.02371964495 | R58: 0.02206333484 | S58: 29
B59: 6 | D59: 0.05826890812 | E59: 0.9871278728 | F59: 0.1851118096 | G59: 0.5734293305 | H59: 0.4265706695 | J59: 0.9712858624 | K59: 0.04369045337 | L59: 0.5174244255 | N59: 6.348104594 | O59: 4.763903549 | Q59: 0.02369228575 | R59: 0.02215552716 | S59: 30
B60: 5.9 | D60: 0.05732506662 | E60: 0.9871278728 | F60: 0.181774826 | G60: 0.5721202793 | H60: 0.4278797207 | J60: 0.9717443405 | K60: 0.04035346972 | L60: 0.5160943371 | N60: 6.324412309 | O60: 4.786059077 | Q60: 0.02366476691 | R60: 0.02224803228 | S60: 31
B61: 5.8 | D61: 0.05638033344 | E61: 0.9871278728 | F61: 0.1784346898 | G61: 0.570809196 | H61: 0.429190804 | J61: 0.9722034685 | K61: 0.03701333352 | L61: 0.5147628128 | N61: 6.300747542 | O61: 4.808307109 | Q61: 0.02363708835 | R61: 0.02234085077 | S61: 32
B62: 5.7 | D62: 0.05543470689 | E62: 0.9871278728 | F62: 0.175091395 | G62: 0.5694960902 | H62: 0.4305039098 | J62: 0.9726632479 | K62: 0.0336700388 | L62: 0.5134298645 | N62: 6.277110453 | O62: 4.83064796 | Q62: 0.02360925 | R62: 0.02243398324 | S62: 33
B63: 5.6 | D63: 0.05448818528 | E63: 0.9871278728 | F63: 0.1717449358 | G63: 0.5681809715 | H63: 0.4318190285 | J63: 0.9731236802 | K63: 0.03032357958 | L63: 0.5120955043 | N63: 6.253501203 | O63: 4.853081943 | Q63: 0.02358125178 | R63: 0.02252743027 | S63: 34
B64: 5.5 | D64: 0.05354076693 | E64: 0.9871278728 | F64: 0.1683953061 | G64: 0.5668638497 | H64: 0.4331361503 | J64: 0.973584767 | K64: 0.02697394986 | L64: 0.5107597443 | N64: 6.229919952 | O64: 4.875609373 | Q64: 0.02355309362 | R64: 0.02262119245 | S64: 35
B65: 5.4 | D65: 0.05259245012 | E65: 0.9871278728 | F65: 0.1650424999 | G65: 0.5655447347 | H65: 0.4344552653 | J65: 0.9740465099 | K65: 0.02362114363 | L65: 0.5094225967 | N65: 6.206366858 | O65: 4.898230566 | Q65: 0.02352477545 | R65: 0.02271527035 | S65: 36
B66: 5.3 | D66: 0.05164323315 | E66: 0.9871278728 | F66: 0.1616865111 | G66: 0.5642236363 | H66: 0.4357763637 | J66: 0.9745089103 | K66: 0.02026515485 | L66: 0.5080840738 | N66: 6.182842083 | O66: 4.920945836 | Q66: 0.02349629721 | R66: 0.02280966456 | S66: 37
B67: 5.2 | D67: 0.05069311432 | E67: 0.9871278728 | F67: 0.1583273337 | G67: 0.5629005647 | H67: 0.4370994353 | J67: 0.97497197 | K67: 0.01690597749 | L67: 0.506744188 | N67: 6.159345785 | O67: 4.943755501 | Q67: 0.02346765883 | R67: 0.02290437565 | S67: 38
B68: 5.1 | D68: 0.04974209189 | E68: 0.9871278728 | F68: 0.1549649617 | G68: 0.56157553 | H68: 0.43842447 | J68: 0.9754356903 | K68: 0.01354360548 | L68: 0.5054029517 | N68: 6.135878126 | O68: 4.966659876 | Q68: 0.02343886027 | R68: 0.02299940422 | S68: 39
B69: 5 | D69: 0.04879016417 | E69: 0.9871278728 | F69: 0.151599389 | G69: 0.5602485423 | H69: 0.4397514577 | J69: 0.9759000729 | K69: 0.01017803273 | L69: 0.5040603775 | N69: 6.112439266 | O69: 4.98965928 | Q69: 0.02340990147 | R69: 0.02309475082 | S69: 40
B70: 4.9 | D70: 0.04783732941 | E70: 0.9871278728 | F70: 0.1482306094 | G70: 0.5589196121 | H70: 0.4410803879 | J70: 0.9763651195 | K70: 0.006809253146 | L70: 0.502716478 | N70: 6.089029365 | O70: 5.012754031 | Q70: 0.02338078238 | R70: 0.02319041605 | S70: 41
B71: 4.8 | D71: 0.0468835859 | E71: 0.9871278728 | F71: 0.1448586168 | G71: 0.5575887497 | H71: 0.4424112503 | J71: 0.9768308315 | K71: 0.00343726061 | L71: 0.5013712659 | N71: 6.065648582 | O71: 5.035944447 | Q71: 0.02335150296 | R71: 0.02328640046 | S71: 42
B72: 4.7 | D72: 0.04592893189 | E72: 0.9871278728 | F72: 0.1414834052 | G72: 0.5562559656 | H72: 0.4437440344 | J72: 0.9772972105 | K72: 6.204898739e-05 | L72: 0.500024754 | N72: 6.042297079 | O72: 5.059230848 | Q72: 0.02332206318 | R72: 0.02338270463 | S72: 43
B73: 4.6 | D73: 0.04497336564 | E73: 0.9871278728 | F73: 0.1381049684 | G73: 0.5549212704 | H73: 0.4450787296 | J73: 0.9777642582 | K73: -0.003316387874 | L73: 0.4986769551 | N73: 6.018975016 | O73: 5.082613552 | Q73: 0.02329246299 | R73: 0.02347932912 | S73: 44
B74: 4.5 | D74: 0.04401688542 | E74: 0.9871278728 | F74: 0.1347233001 | G74: 0.5535846748 | H74: 0.4464153252 | J74: 0.9782319761 | K74: -0.006698056143 | L74: 0.4973278822 | N74: 5.995682553 | O74: 5.106092881 | Q74: 0.02326270237 | R74: 0.02357627451 | S74: 45
B75: 4.4 | D75: 0.04305948946 | E75: 0.9871278728 | F75: 0.1313383942 | G75: 0.5522461897 | H75: 0.4477538103 | J75: 0.9787003659 | K75: -0.01008296201 | L75: 0.4959775483 | N75: 5.972419851 | O75: 5.129669156 | Q75: 0.0232327813 | R75: 0.02367354135 | S75: 46
B76: 4.3 | D76: 0.04210117602 | E76: 0.9871278728 | F76: 0.1279502446 | G76: 0.5509058258 | H76: 0.4490941742 | J76: 0.9791694291 | K76: -0.01347111167 | L76: 0.4946259665 | N76: 5.94918707 | O76: 5.153342697 | Q76: 0.02320269975 | R76: 0.02377113021 | S76: 47
B77: 4.2 | D77: 0.04114194333 | E77: 0.9871278728 | F77: 0.1245588449 | G77: 0.5495635942 | H77: 0.4504364058 | J77: 0.9796391674 | K77: -0.01686251136 | L77: 0.4932731501 | N77: 5.92598437 | O77: 5.177113828 | Q77: 0.0231724577 | R77: 0.02386904165 | S77: 48
B78: 4.1 | D78: 0.04018178963 | E78: 0.9871278728 | F78: 0.1211641889 | G78: 0.5482195059 | H78: 0.4517804941 | J78: 0.9801095824 | K78: -0.02025716732 | L78: 0.4919191121 | N78: 5.902811912 | O78: 5.200982869 | Q78: 0.02314205514 | R78: 0.02396727622 | S78: 49
B79: =$E$7 -> 4 | D79: 0.03922071315 | E79: 0.9871278728 | F79: 0.1177662704 | G79: 0.5468735721 | H79: 0.4531264279 | J79: 0.9805806757 | K79: -0.0236550858 | L79: 0.4905638662 | N79: 5.879669857 | O79: 5.224950145 | Q79: 0.02311149206 | R79: 0.02406583449 | S79: 50
B80: =B79-(5/50) -> 3.9 | D80: 0.03825871212 | E80: 0.9871278728 | F80: 0.1143650832 | G80: 0.545525804 | H80: 0.454474196 | J80: 0.981052449 | K80: -0.02705627308 | L80: 0.4892074255 | N80: 5.856558365 | O80: 5.24901598 | Q80: 0.02308076847 | R80: 0.024164717 | S80: 51
B81: =B80-(5/50) -> 3.8 | D81: 0.03729578474 | E81: 0.9871278728 | F81: 0.1109606208 | G81: 0.544176213 | H81: 0.455823787 | J81: 0.9815249038 | K81: -0.03046073546 | L81: 0.4878498037 | N81: 5.833477596 | O81: 5.273180697 | Q81: 0.02304988435 | R81: 0.02426392432 | S81: 52
B82: 3.7 | D82: 0.03633192925 | E82: 0.9871278728 | F82: 0.107552877 | G82: 0.5428248106 | H82: 0.4571751894 | J82: 0.9819980419 | K82: -0.03386847925 | L82: 0.4864910143 | N82: 5.810427712 | O82: 5.297444621 | Q82: 0.02301883972 | R82: 0.02436345697 | S82: 53
B83: 3.6 | D83: 0.03536714384 | E83: 0.9871278728 | F83: 0.1041418455 | G83: 0.5414716082 | H83: 0.4585283918 | J83: 0.9824718649 | K83: -0.03727951077 | L83: 0.4851310711 | N83: 5.787408872 | O83: 5.321808078 | Q83: 0.02298763459 | R83: 0.02446331553 | S83: 54
B84: 3.5 | D84: 0.03440142672 | E84: 0.9871278728 | F84: 0.1007275198 | G84: 0.5401166176 | H84: 0.4598833824 | J84: 0.9829463744 | K84: -0.0406938364 | L84: 0.4837699877 | N84: 5.764421238 | O84: 5.346271394 | Q84: 0.02295626896 | R84: 0.02456350052 | S84: 55
B85: 3.4 | D85: 0.03343477609 | E85: 0.9871278728 | F85: 0.09730989376 | G85: 0.5387598504 | H85: 0.4612401496 | J85: 0.9834215721 | K85: -0.04411146248 | L85: 0.482407778 | N85: 5.741464969 | O85: 5.370834894 | Q85: 0.02292474287 | R85: 0.0246640125 | S85: 56
B86: 3.3 | D86: 0.03246719014 | E86: 0.9871278728 | F86: 0.09388896083 | G86: 0.5374013185 | H86: 0.4625986815 | J86: 0.9838974596 | K86: -0.04753239541 | L86: 0.4810444559 | N86: 5.718540226 | O86: 5.395498907 | Q86: 0.02289305632 | R86: 0.024764852 | S86: 57
B87: 3.2 | D87: 0.03149866706 | E87: 0.9871278728 | F87: 0.09046471465 | G87: 0.5360410337 | H87: 0.4639589663 | J87: 0.9843740387 | K87: -0.05095664159 | L87: 0.4796800353 | N87: 5.69564717 | O87: 5.420263759 | Q87: 0.02286120936 | R87: 0.02486601956 | S87: 58
B88: 3.1 | D88: 0.03052920503 | E88: 0.9871278728 | F88: 0.08703714879 | G88: 0.5346790082 | H88: 0.4653209918 | J88: 0.984851311 | K88: -0.05438420745 | L88: 0.4783145304 | N88: 5.67278596 | O88: 5.445129778 | Q88: 0.02282920201 | R88: 0.02496751573 | S88: 59
B89: 3 | D89: 0.02955880224 | E89: 0.9871278728 | F89: 0.08360625681 | G89: 0.5333152539 | H89: 0.4666847461 | J89: 0.9853292782 | K89: -0.05781509942 | L89: 0.4769479553 | N89: 5.649956758 | O89: 5.470097294 | Q89: 0.02279703431 | R89: 0.02506934102 | S89: 60
B90: 2.9 | D90: 0.02858745685 | E90: 0.9871278728 | F90: 0.08017203225 | G90: 0.5319497832 | H90: 0.4680502168 | J90: 0.9858079419 | K90: -0.06124932398 | L90: 0.4755803243 | N90: 5.627159724 | O90: 5.495166635 | Q90: 0.0227647063 | R90: 0.02517149599 | S90: 61
B91: 2.8 | D91: 0.02761516703 | E91: 0.9871278728 | F91: 0.07673446863 | G91: 0.5305826083 | H91: 0.4694173917 | J91: 0.9862873039 | K91: -0.0646868876 | L91: 0.4742116516 | N91: 5.604395018 | O91: 5.520338131 | Q91: 0.02273221804 | R91: 0.02527398115 | S91: 62
B92: 2.7 | D92: 0.02664193095 | E92: 0.9871278728 | F92: 0.07329355945 | G92: 0.5292137416 | H92: 0.4707862584 | J92: 0.9867673659 | K92: -0.06812779679 | L92: 0.4728419516 | N92: 5.5816628 | O92: 5.545612112 | Q92: 0.02269956957 | R92: 0.02537679704 | S92: 63
B93: 2.6 | D93: 0.02566774675 | E93: 0.9871278728 | F93: 0.06984929819 | G93: 0.5278431957 | H93: 0.4721568043 | J93: 0.9872481296 | K93: -0.07157205805 | L93: 0.4714712387 | N93: 5.55896323 | O93: 5.570988909 | Q93: 0.02266676094 | R93: 0.02547994417 | S93: 64
B94: 2.5 | D94: =LN(1+(B94/100)) -> 0.02469261259 | E94: =EXP(-$F$6*$F$9) -> 0.9871278728 | F94: =(LN($E$4/$E$5)+((D94-$F$6+$G$10)*$F$9))/($F$10/100) -> 0.06640167831 | G94: =NORMSDIST(F94) -> 0.526470983 | H94: =1-G94 -> 0.473529017 | J94: =EXP(-D94*$F$9) -> 0.9877295966 | K94: =F94-($F$10/100) -> -0.07501967793 | L94: =NORMSDIST(K94) -> 0.4700995276 | N94: =($E$4*E94*G94)-($E$5*J94*L94) -> 5.536296469 | O94: =N94+($E$5*J94)-($E$4*E94) -> 5.596468853 | Q94: =-(N95-N94) -> 0.02263379223 | R94: =O95-O94 -> 0.02558342308 | S94: 65
B95: 2.4 | D95: 0.02371652662 | E95: 0.9871278728 | F95: 0.06295069326 | G95: 0.5250971163 | H95: 0.4749028837 | J95: 0.9882117688 | K95: -0.07847066298 | L95: 0.4687268329 | N95: 5.513662677 | O95: 5.622052276 | Q95: 0.02260066349 | R95: 0.02568723428 | S95: 66
B96: 2.3 | D96: 0.02273948697 | E96: 0.9871278728 | F96: 0.05949633645 | G96: 0.5237216083 | H96: 0.4762783917 | J96: 0.9886946478 | K96: -0.08192501978 | L96: 0.4673531692 | N96: 5.491062013 | O96: 5.647739511 | Q96: 0.0225673748 | R96: 0.02579137829 | S96: 67
B97: 2.2 | D97: 0.02176149178 | E97: 0.9871278728 | F97: 0.05603860131 | G97: 0.522344472 | H97: 0.477655528 | J97: 0.9891782353 | K97: -0.08538275493 | L97: 0.4659785513 | N97: 5.468494639 | O97: 5.673530889 | Q97: 0.02253392624 | R97: 0.02589585563 | S97: 68
B98: 2.1 | D98: 0.02078253918 | E98: 0.9871278728 | F98: 0.0525774812 | G98: 0.5209657202 | H98: 0.4790342798 | J98: 0.9896625331 | K98: -0.08884387504 | L98: 0.4646029941 | N98: 5.445960712 | O98: 5.699426745 | Q98: 0.02250031788 | R98: 0.02600066681 | S98: 69
B99: 2 | D99: 0.0198026273 | E99: 0.9871278728 | F99: 0.0491129695 | G99: 0.5195853661 | H99: 0.4804146339 | J99: 0.990147543 | K99: -0.09230838674 | L99: 0.4632265126 | N99: 5.423460394 | O99: 5.725427411 | Q99: 0.02246654981 | R99: 0.02610581234 | S99: 70
B100: 1.9 | D100: 0.01882175424 | E100: 0.9871278728 | F100: 0.04564505956 | G100: 0.5182034229 | H100: 0.4817965771 | J100: 0.9906332666 | K100: -0.09577629668 | L100: 0.4618491217 | N100: 5.400993845 | O100: 5.751533224 | Q100: 0.02243262213 | R100: 0.02621129274 | S100: 71
B101: 1.8 | D101: 0.01783991813 | E101: 0.9871278728 | F101: 0.04217374469 | G101: 0.5168199037 | H101: 0.4831800963 | J101: 0.9911197057 | K101: -0.09924761155 | L101: 0.4604708364 | N101: 5.378561223 | O101: 5.777744517 | Q101: 0.02239853492 | R101: 0.02631710851 | S101: 72
B102: 1.7 | D102: 0.01685711707 | E102: 0.9871278728 | F102: 0.03869901821 | G102: 0.5154348219 | H102: 0.4845651781 | J102: 0.9916068622 | K102: -0.102722338 | L102: 0.4590916721 | N102: 5.356162688 | O102: 5.804061625 | Q102: 0.0223642883 | R102: 0.02642326015 | S102: 73
B103: 1.6 | D103: 0.01587334916 | E103: 0.9871278728 | F103: 0.03522087341 | G103: 0.514048191 | H103: 0.485951809 | J103: 0.9920947377 | K103: -0.1062004828 | L103: 0.4577116439 | N103: 5.333798399 | O103: 5.830484885 | Q103: 0.02232988237 | R103: 0.02652974816 | S103: 74
B104: 1.5 | D104: 0.01488861249 | E104: 0.9871278728 | F104: 0.03173930355 | G104: 0.5126600245 | H104: 0.4873399755 | J104: 0.992583334 | K104: -0.1096820527 | L104: 0.4563307672 | N104: 5.311468517 | O104: 5.857014633 | Q104: 0.02229531723 | R104: 0.02663657305 | S104: 75
B105: 1.4 | D105: 0.01390290517 | E105: 0.9871278728 | F105: 0.02825430189 | G105: 0.5112703361 | H105: 0.4887296639 | J105: 0.9930726529 | K105: -0.1131670544 | L105: 0.4549490573 | N105: 5.2891732 | O105: 5.883651206 | Q105: 0.02226059301 | R105: 0.02674373531 | S105: 76
B106: 1.3 | D106: 0.01291622527 | E106: 0.9871278728 | F106: 0.02476586164 | G106: 0.5098791394 | H106: 0.4901208606 | J106: 0.9935626962 | K106: -0.1166554946 | L106: 0.4535665298 | N106: 5.266912607 | O106: 5.910394942 | Q106: 0.02222570982 | R106: 0.02685123544 | S106: 77
B107: 1.2 | D107: 0.01192857087 | E107: 0.9871278728 | F107: 0.02127397601 | G107: 0.5084864484 | H107: 0.4915135516 | J107: 0.9940534656 | K107: -0.1201473802 | L107: 0.4521832001 | N107: 5.244686897 | O107: 5.937246177 | Q107: 0.0221906678 | R107: 0.02695907392 | S107: 78
B108: 1.1 | D108: 0.01093994004 | E108: 0.9871278728 | F108: 0.0177786382 | G108: 0.5070922768 | H108: 0.4929077232 | J108: 0.994544963 | K108: -0.123642718 | L108: 0.4507990839 | N108: 5.222496229 | O108: 5.964205251 | Q108: 0.02215546708 | R108: 0.02706725125 | S108: 79
B109: 1 | D109: 0.009950330853 | E109: 0.9871278728 | F109: 0.01427984138 | G109: 0.5056966389 | H109: 0.4943033611 | J109: 0.9950371902 | K109: -0.1271415149 | L109: 0.449414197 | N109: 5.200340762 | O109: 5.991272502 | Q109: 0.02212010779 | R109: 0.02717576792 | S109: 80
B110: 0.9 | D110: 0.008959741371 | E110: 0.9871278728 | F110: 0.01077757868 | G110: 0.5042995486 | H110: 0.4957004514 | J110: 0.995530149 | K110: -0.1306437776 | L110: 0.448028555 | N110: 5.178220654 | O110: 6.01844827 | Q110: 0.02208459008 | R110: 0.02728462441 | S110: 81
B111: 0.8 | D111: 0.007968169649 | E111: 0.9871278728 | F111: 0.007271843233 | G111: 0.5029010202 | H111: 0.4970989798 | J111: 0.9960238411 | K111: -0.134149513 | L111: 0.4466421739 | N111: 5.156136064 | O111: 6.045732895 | Q111: 0.02204891409 | R111: 0.0273938212 | S111: 82
B112: 0.7 | D112: 0.006975613736 | E112: 0.9871278728 | F112: 0.00376262815 | G112: 0.5015010679 | H112: 0.4984989321 | J112: 0.9965182685 | K112: -0.1376587281 | L112: 0.4452550695 | N112: 5.13408715 | O112: 6.073126716 | Q112: 0.02201307999 | R112: 0.02750335877 | S112: 83
B113: 0.6 | D113: 0.005982071678 | E113: 0.9871278728 | F113: 0.0002499265137 | G113: 0.5000997063 | H113: 0.4999002937 | J113: 0.9970134329 | K113: -0.1411714297 | L113: 0.4438672579 | N113: 5.11207407 | O113: 6.100630075 | Q113: 0.02197708792 | R113: 0.0276132376 | S113: 84
B114: 0.5 | D114: 0.004987541511 | E114: 0.9871278728 | F114: -0.00326626861 | G114: 0.4986969497 | H114: 0.5013030503 | J114: 0.9975093361 | K114: -0.1446876248 | L114: 0.4424787551 | N114: 5.090096982 | O114: 6.128243312 | Q114: 0.02194093805 | R114: 0.02772345816 | S114: 85
B115: 0.4 | D115: 0.00399202127 | E115: 0.9871278728 | F115: -0.006785964178 | G115: 0.4972928128 | H115: 0.5027071872 | J115: 0.9980059801 | K115: -0.1482073204 | L115: 0.4410895774 | N115: 5.068156044 | O115: 6.15596677 | Q115: 0.02190463055 | R115: 0.02783402093 | S115: 86
B116: 0.3 | D116: 0.00299550898 | E116: 0.9871278728 | F116: -0.01030916717 | G116: 0.4958873102 | H116: 0.5041126898 | J116: 0.9985033666 | K116: -0.1517305234 | L116: 0.4396997408 | N116: 5.046251414 | O116: 6.183800791 | Q116: 0.0218681656 | R116: 0.02794492638 | S116: 87
B117: 0.2 | D117: 0.001998002663 | E117: 0.9871278728 | F117: -0.01383588457 | G117: 0.4944804568 | H117: 0.5055195432 | J117: 0.9990014975 | K117: -0.1552572408 | L117: 0.4383092618 | N117: 5.024383248 | O117: 6.211745718 | Q117: 0.02183154338 | R117: 0.02805617496 | S117: 88
B118: 0.1 | D118: 0.0009995003331 | E118: 0.9871278728 | F118: -0.01736612341 | G118: 0.4930722673 | H118: 0.5069277327 | J118: 0.9995003747 | K118: -0.1587874797 | L118: 0.4369181567 | N118: 5.002551705 | O118: 6.239801893 | Q118: 0.02179476407 | R118: 0.02816776716 | S118: 89
B119: -2.414735079e-15 | D119: 0 | E119: 0.9871278728 | F119: -0.02089989073 | G119: 0.4916627569 | H119: 0.5083372431 | J119: 1 | K119: -0.162321247 | L119: 0.4355264419 | N119: 4.98075694 | O119: 6.26796966 | Q119: 0.02175782786 | R119: 0.02827970342 | S119: 90
B120: -0.1 | D120: -0.001000500334 | E120: 0.9871278728 | F120: -0.02443719358 | G120: 0.4902519405 | H120: 0.5097480595 | J120: 1.000500375 | K120: -0.1658585498 | L120: 0.434134134 | N120: 4.958999113 | O120: 6.296249363 | Q120: 0.02172073496 | R120: 0.0283919842 | S120: 91
B121: -0.2 | D121: -0.002002002671 | E121: 0.9871278728 | F121: -0.02797803905 | G121: 0.4888398333 | H121: 0.5111601667 | J121: 1.001001503 | K121: -0.1693993953 | L121: 0.4327412496 | N121: 4.937278378 | O121: 6.324641347 | Q121: 0.02168348556 | R121: 0.02850460998 | S121: 92
B122: -0.3 | D122: -0.00300450902 | E122: 0.9871278728 | F122: -0.03152243424 | G122: 0.4874264505 | H122: 0.5125735495 | J122: 1.001503383 | K122: -0.1729437905 | L122: 0.4313478052 | N122: 4.915594892 | O122: 6.353145957 | Q122: 0.02164607987 | R122: 0.02861758118 | S122: 93
B123: -0.4 | D123: -0.004008021398 | E123: 0.9871278728 | F123: -0.03507038628 | G123: 0.4860118076 | H123: 0.5139881924 | J123: 1.00200602 | K123: -0.1764917425 | L123: 0.4299538177 | N123: 4.893948812 | O123: 6.381763539 | Q123: 0.02160851811 | R123: 0.02873089828 | S123: 94
B124: -0.5 | D124: -0.005012541824 | E124: 0.9871278728 | F124: -0.0386219023 | G124: 0.4845959199 | H124: 0.5154040801 | J124: 1.002509414 | K124: -0.1800432585 | L124: 0.4285593038 | N124: 4.872340294 | O124: 6.410494437 | Q124: 0.02157080049 | R124: 0.02884456172 | S124: 95
B125: -0.6 | D125: -0.006018072326 | E125: 0.9871278728 | F125: -0.04217698949 | G125: 0.483178803 | H125: 0.516821197 | J125: 1.003013568 | K125: -0.1835983457 | L125: 0.4271642805 | N125: 4.850769494 | O125: 6.439338999 | Q125: 0.02153292725 | R125: 0.02895857194 | S125: 96
B126: -0.7 | D126: -0.007024614937 | E126: 0.9871278728 | F126: -0.04573565502 | G126: 0.4817604725 | H126: 0.5182395275 | J126: 1.003518483 | K126: -0.1871570113 | L126: 0.4257687646 | N126: 4.829236566 | O126: 6.468297571 | Q126: 0.02149489861 | R126: 0.02907292939 | S126: 97
B127: -0.8 | D127: -0.008032171697 | E127: 0.9871278728 | F127: -0.0492979061 | G127: 0.4803409441 | H127: 0.5196590559 | J127: 1.004024161 | K127: -0.1907192623 | L127: 0.4243727733 | N127: 4.807741668 | O127: 6.4973705 | Q127: 0.0214567148 | R127: 0.0291876345 | S127: 98
B128: -0.9 | D128: -0.009040744652 | E128: 0.9871278728 | F128: -0.05286374998 | G128: 0.4789202337 | H128: 0.5210797663 | J128: 1.004530605 | K128: -0.1942851062 | L128: 0.4229763235 | N128: 4.786284953 | O128: 6.526558134 | Q128: 0.02141837608 | R128: 0.02930268773 | S128: 99
B129: -1 | D129: -0.01005033585 | E129: 0.9871278728 | F129: -0.05643319391 | G129: 0.4774983571 | H129: 0.5225016429 | J129: 1.005037815 | K129: -0.1978545501 | L129: 0.4215794324 | N129: 4.764866577 | O129: =N129+($E$5*J129)-($E$4*E129) -> 6.555860822 | Q129: 0.02137988268 | R129: 0.02941808949 | S129: 100
B130: -1.1 | D130: -0.01106094736 | E130: 0.9871278728 | F130: -0.06000624515 | G130: 0.4760753304 | H130: 0.5239246696 | J130: 1.005545795 | K130: -0.2014276014 | L130: 0.4201821173 | N130: 4.743486694 | O130: 6.585278912

Sheet D CALL-RHO
B1: Daten eingeben/rechnen! | F1: Tabelle Rho | H1: Diagramm Put-Rho | K1: Hauptmenü

Sheet D PUT-RHO
B1: Daten eingeben/rechnen! | F1: Tabelle Rho | H1: Diagramm Call-Rho | K1: Hauptmenü

Sheet T VEGA
B1: Daten eingeben/rechnen! | K1: Diagramm Call-Vega | N1: Diagramm Put-Vega | Q1: Hauptmenü
B4: Aktienkurs | E4: =EINGABESEITE!C7 -> 100
B5: Ausübungspreis | E5: =EINGABESEITE!C8 -> 100
B6: Dividende | E6: =EINGABESEITE!C11 -> 2.625 | F6: =LN(1+(E6/E4)) -> 0.02591138178 | G6: =EXP(-$F$6*$F$8) -> 0.9871278728
B7: Zinssatz | E7: =EINGABESEITE!C9 -> 4 | F7: =LN(1+(E7/100)) -> 0.03922071315 | G7: =EXP(-$F$7*$F$8) -> 0.9805806757
B8: Restlaufzeit (Tage/360) | E8: =EINGABESEITE!C10 -> 180 | F8: =E8/360 -> 0.5
B9: Volatilität Jahr | E9: =EINGABESEITE!C12 -> 20 | F9: =E9*SQRT(E$8/360) -> 14.14213562 | G9: =(($E$9/100)^2)/2 -> 0.02
B10: Abstufung Volatilität | E10: =EINGABESEITE!F12 -> 1
B11: Volatilität Jahr (0.5) | F11: =F9/2 -> 7.071067812
B13: Tabella Vega
M15: Options- | N15: Options- | P15: Vega | Q15: Vega
M16: preis | N16: preis | P16: bei +/- | Q16: bei +/-
D17: Volatilität | E17: Volatilität | F17: d1 | G17: NV-Werte | J17: d2 | K17: NV-Werte | P17: =E10 -> 1 | Q17: =E10 -> 1
D18: RLZ | E18: +/- 0.5 | G18: Verteilung | K18: Verteilung | P18: Prozent- | Q18: Prozent-
G19: F(x) | K19: F(x) | P19: punkt/en | Q19: punkt/en
G20: Call-Delta | H20: Put-Delta | M20: Call | N20: Put | P20: Call | Q20: Put
B22: =E9 -> 20 | D22: =B22*SQRT(E$8/360) -> 14.14213562 | E22: =((B22/100)^2)/2 -> 0.02 | F22: =(LN($E$4/$E$5)+(($F$7-$F$6+E22)*$F$8))/(D22/100) -> 0.1177662704 | G22: =NORMSDIST(F22) -> 0.5468735721 | H22: =1-G22 -> 0.4531264279 | J22: =F22-(D22/100) -> -0.0236550858 | K22: =NORMSDIST(J22) -> 0.4905638662 | M22: =($E$4*$G$6*G22)-($E$5*$G$7*K22) -> 5.879669857 | N22: =M22+($E$5*$G$7)-($E$4*$G$6) -> 5.224950145 | P22: =M23-M22 -> 0.2765187567 | Q22: =N23-N22 -> 0.2765187567
B23: =B22+$E$10 -> 21 | D23: =B23*SQRT(E$8/360) -> 14.8492424 | E23: =((B23/100)^2)/2 -> 0.02205 | F23: =(LN($E$4/$E$5)+(($F$7-$F$6+E23)*$F$8))/(D23/100) -> 0.1190610619 | G23: =NORMSDIST(F23) -> 0.5473865103 | H23: =1-G23 -> 0.4526134897 | J23: =F23-(D23/100) -> -0.0294313622 | K23: =NORMSDIST(J23) -> 0.4882602801 | M23: =($E$4*$G$6*G23)-($E$5*$G$7*K23) -> 6.156188614 | N23: =M23+($E$5*$G$7)-($E$4*$G$6) -> 5.501468902 | P23: =M24-M23 -> 0.2764726799 | Q23: =N24-N23 -> 0.2764726799
B24: =B23+$E$10 -> 22 | D24: =B24*SQRT(E$8/360) -> 15.55634919 | E24: =((B24/100)^2)/2 -> 0.0242 | F24: =(LN($E$4/$E$5)+(($F$7-$F$6+E24)*$F$8))/(D24/100) -> 0.1205595571 | G24: =NORMSDIST(F24) -> 0.5479800481 | H24: =1-G24 -> 0.4520199519 | J24: =F24-(D24/100) -> -0.03500393473 | K24: =NORMSDIST(J24) -> 0.4860383017 | M24: =($E$4*$G$6*G24)-($E$5*$G$7*K24) -> 6.432661294 | N24: =M24+($E$5*$G$7)-($E$4*$G$6) -> 5.777941582 | R24: =P24*SQRT(S$8/360) -> 0
B26: Volatlität
B30: 40 | D30: =B30*SQRT(E$8/360) -> 28.28427125 | E30: =((B30/100)^2)/2 -> 0.08 | F30: =(LN($E$4/$E$5)+(($F$7-$F$6+E30)*$F$8))/(D30/100) -> 0.1649491524 | G30: =NORMSDIST(F30) -> 0.5655079979 | H30: =1-G30 -> 0.4344920021 | J30: =F30-(D30/100) -> -0.1178935601 | K30: =NORMSDIST(J30) -> 0.453075998 | M30: =($E$4*$G$6*G30)-($E$5*$G$7*K30) -> 11.39511388 | N30: =M30+($E$5*$G$7)-($E$4*$G$6) -> 10.74039417 | P30: =(M31-M30)*(1/(B31-B30)) -> 0.274754062 | Q30: =(N31-N30)*(1/(B31-B30)) -> 0.274754062
B31: =B30-($B$30/50) -> 39.2 | D31: =B31*SQRT(E$8/360) -> 27.71858582 | E31: =((B31/100)^2)/2 -> 0.076832 | F31: =(LN($E$4/$E$5)+(($F$7-$F$6+E31)*$F$8))/(D31/100) -> 0.1626008844 | G31: =NORMSDIST(F31) -> 0.5645836547 | H31: =1-G31 -> 0.4354163453 | J31: =F31-(D31/100) -> -0.1145849738 | K31: =NORMSDIST(J31) -> 0.4543870452 | M31: =($E$4*$G$6*G31)-($E$5*$G$7*K31) -> 11.17531063 | N31: =M31+($E$5*$G$7)-($E$4*$G$6) -> 10.52059092 | P31: =(M32-M31)*(1/(B32-B31)) -> 0.2748585521 | Q31: =(N32-N31)*(1/(B32-B31)) -> 0.2748585521
B32: =B31-($B$30/50) -> 38.4 | D32: 27.1529004 | E32: 0.073728 | F32: 0.160272623 | G32: 0.5636668381 | H32: 0.4363331619 | J32: -0.111256381 | K32: 0.4557065218 | M32: 10.95542379 | N32: 10.30070407 | P32: 0.2749606758 | Q32: 0.2749606758
B33: =B32-($B$30/50) -> 37.6 | D33: 26.58721497 | E33: 0.070688 | F33: 0.1579656452 | G33: 0.5627580651 | H33: 0.4372419349 | J33: -0.1079065045 | K33: 0.4570349287 | M33: 10.73545524 | N33: 10.08073553 | P33: 0.2750604123 | Q33: 0.2750604123
B34: 36.8 | D34: 26.02152955 | E34: 0.067712 | F34: 0.1556813392 | G34: 0.5618578965 | H34: 0.4381421035 | J34: -0.1045339563 | K34: 0.4583728113 | M34: 10.51540692 | N34: 9.860687203 | P34: 0.2751577391 | Q34: 0.2751577391
B35: 36 | D35: 25.45584412 | E35: 0.0648 | F35: 0.1534212163 | G35: 0.5609669426 | H35: 0.4390330574 | J35: -0.1011372249 | K35: 0.4597207642 | M35: 10.29528072 | N35: 9.640561012 | P35: 0.2752526313 | Q35: 0.2752526313
B36: 35.2 | D36: 24.8901587 | E36: 0.061952 | F36: 0.1511869255 | G36: 0.5600858682 | H36: 0.4399141318 | J36: -0.09771466149 | K36: 0.4610794365 | M36: 10.07507862 | N36: 9.420358907 | P36: 0.2753450617 | Q36: 0.2753450617
B37: 34.4 | D37: 24.32447327 | E37: 0.059168 | F37: 0.1489802689 | G37: 0.5592153988 | H37: 0.4407846012 | J37: -0.09426446385 | K37: 0.462449539 | M37: 9.854802569 | N37: 9.200082858 | P37: 0.2754349997 | Q37: 0.2754349997
B38: 33.6 | D38: 23.75878785 | E38: 0.056448 | F38: 0.1468032204 | G38: 0.5583563286 | H38: 0.4416436714 | J38: -0.0907846581 | K38: 0.4638318504 | M38: 9.63445457 | N38: 8.979734858 | P38: 0.2755224119 | Q38: 0.2755224119
B39: 32.8 | D39: 23.19310242 | E39: 0.053792 | F39: 0.1446579465 | G39: 0.5575095282 | H39: 0.4424904718 | J39: -0.08727307777 | K39: 0.4652272266 | M39: 9.41403664 | N39: 8.759316928 | P39: 0.2756072606 | Q39: 0.2756072606
B40: 32 | D40: 22.627417 | E40: 0.0512 | F40: 0.1425468302 | G40: 0.5566759541 | H40: 0.4433240459 | J40: -0.08372733979 | K40: 0.4666366097 | M40: 9.193550832 | N40: 8.53883112 | P40: 0.2756895039 | Q40: 0.2756895039
B41: 31.2 | D41: 22.06173157 | E41: 0.048672 | F41: 0.1404724991 | G41: 0.5558566602 | H41: 0.4441433398 | J41: -0.08014481663 | K41: 0.4680610394 | M41: 8.972999228 | N41: 8.318279517 | P41: 0.2757690945 | Q41: 0.2757690945
B42: 30.4 | D42: 21.49604615 | E42: 0.046208 | F42: 0.1384378573 | G42: 0.5550528104 | H42: 0.4449471896 | J42: -0.07652260421 | K42: 0.4695016656 | M42: 8.752383953 | N42: 8.097664241 | P42: 0.2758459791 | Q42: 0.2758459791
B43: 29.6 | D43: 20.93036072 | E43: 0.043808 | F43: 0.1364461228 | G43: 0.554265693 | H43: 0.445734307 | J43: -0.07285748448 | K43: 0.4709597632 | M43: 8.53170717 | N43: 7.876987458 | P43: 0.2759200975 | Q43: 0.2759200975
B44: 28.8 | D44: 20.3646753 | E44: 0.041472 | F44: 0.1345008712 | G44: 0.5534967389 | H44: 0.4465032611 | J44: -0.06914588182 | K44: 0.47243675 | M44: 8.310971092 | N44: 7.65625138 | P44: 0.2759913811 | Q44: 0.2759913811
B45: 28 | D45: 19.79898987 | E45: 0.0392 | F45: 0.1326060867 | G45: 0.5527475408 | H45: 0.4472524592 | J45: -0.06538381199 | K45: 0.4739342063 | M45: 8.090177987 | N45: 7.435458275 | P45: 0.2760597515 | Q45: 0.2760597515
B46: 27.2 | D46: 19.23330445 | E46: 0.036992 | F46: 0.1307662225 | G46: 0.552019878 | H46: 0.447980122 | J46: -0.06156682201 | K46: 0.4754538995 | M46: 7.869330185 | N46: 7.214610474 | P46: 0.276125119 | Q46: 0.276125119
B47: 26.4 | D47: 18.66761902 | E47: 0.034848 | F47: 0.1289862711 | G47: 0.5513157439 | H47: 0.4486842561 | J47: -0.05768991912 | K47: 0.4769978119 | M47: 7.64843009 | N47: 6.993710379 | P47: 0.2761873799 | Q47: 0.2761873799
B48: 25.6 | D48: 18.1019336 | E48: 0.032768 | F48: 0.1272718495 | G48: 0.55063738 | H48: 0.44936262 | J48: -0.05374748649 | K48: 0.4785681744 | M48: 7.427480186 | N48: 6.772760475 | P48: 0.2762464145 | Q48: 0.2762464145
B49: 24.8 | D49: 17.53624817 | E49: 0.030752 | F49: 0.1256292992 | G49: 0.5499873154 | H49: 0.4500126846 | J49: -0.04973318254 | K49: 0.4801675067 | M49: 7.206483055 | N49: 6.551763343 | P49: 0.2763020832 | Q49: 0.2763020832
B50: 24 | D50: 16.97056275 | E50: 0.0288 | F50: 0.1240658073 | G50: 0.5493684146 | H50: 0.4506315854 | J50: -0.04563982014 | K50: 0.4817986652 | M50: 6.985441388 | N50: 6.330721677 | P50: 0.2763542229 | Q50: 0.2763542229
B51: 23.2 | D51: 16.40487732 | E51: 0.026912 | F51: 0.1225895524 | G51: 0.548783936 | H51: 0.451216064 | J51: -0.04145922082 | K51: 0.483464901 | M51: 6.76435801 | N51: 6.109638298 | P51: 0.2764026415 | Q51: 0.2764026415
B52: 22.4 | D52: 15.8391919 | E52: 0.025088 | F52: 0.1212098812 | G52: 0.5482376011 | H52: 0.4517623989 | J52: -0.03718203778 | K52: 0.4851699302 | M52: 6.543235897 | N52: 5.888516185 | P52: 0.2764471121 | Q52: 0.2764471121
B53: 21.6 | D53: 15.27350647 | E53: 0.023328 | F53: 0.1199375253 | G53: 0.5477336809 | H53: 0.4522663191 | J53: -0.03279753948 | K53: 0.4869180202 | M53: 6.322078207 | N53: 5.667358495 | P53: 0.2764873641 | Q53: 0.2764873641
B54: 20.8 | D54: 14.70782105 | E54: 0.021632 | F54: 0.1187848671 | G54: 0.5472771009 | H54: 0.4527228991 | J54: -0.0282933434 | K54: 0.4887140948 | M54: 6.100888316 | N54: 5.446168604 | P54: 0.2765230735 | Q54: 0.2765230735
B55: 20 | D55: 14.14213562 | E55: 0.02 | F55: 0.1177662704 | G55: 0.5468735721 | H55: 0.4531264279 | J55: -0.0236550858 | K55: 0.4905638662 | M55: 5.879669857 | N55: 5.224950145 | P55: =(M56-M55)*(1/(B56-B55)) -> 0.2765538491 | Q55: 0.2765538491
B56: 19.2 | D56: 13.5764502 | E56: 0.018432 | F56: 0.116898493 | G56: 0.5465297538 | H56: 0.4534702462 | J56: -0.01886600899 | K56: 0.4924739978 | M56: 5.658426778 | N56: 5.003707066 | P56: 0.2765792152 | Q56: 0.2765792152
B57: 18.4 | D57: 13.01076477 | E57: 0.016928 | F57: 0.1162012068 | G57: 0.5462534598 | H57: 0.4537465402 | J57: -0.01390644091 | K57: 0.4944523116 | M57: 5.437163406 | N57: 4.782443694 | P57: 0.2765985883 | Q57: 0.2765985883
B58: 17.6 | D58: 12.44507935 | E58: 0.015488 | F58: 0.1156976607 | G58: 0.5460539199 | H58: 0.4539460801 | J58: -0.008753132745 | K58: 0.4965080499 | M58: 5.215884535 | N58: 4.561164823 | P58: 0.2766112467 | Q58: 0.2766112467
B59: 16.8 | D59: 11.87939392 | E59: 0.014112 | F59: 0.1154155319 | G59: 0.5459421157 | H59: 0.4540578843 | J59: -0.003378407334 | K59: 0.498652213 | M59: 4.994595538 | N59: 4.339875826 | P59: 0.2766162888 | Q59: 0.2766162888
B60: 16 | D60: 11.3137085 | E60: 0.0128 | F60: 0.1153880329 | G60: 0.545931218 | H60: 0.454068782 | J60: 0.002250947905 | K60: 0.5008979975 | M60: 4.773302507 | N60: 4.118582795 | P60: 0.2766125766 | Q60: 0.2766125766
B61: 15.2 | D61: 10.74802307 | E61: 0.011552 | F61: 0.1156553684 | G61: 0.5460371602 | H61: 0.4539628398 | J61: 0.008175137682 | K61: 0.5032613717 | M61: 4.552012445 | N61: 3.897292734 | P61: 0.2765986568 | Q61: 0.2765986568
B62: 14.4 | D62: 10.18233765 | E62: 0.010368 | F62: 0.1162666776 | G62: 0.546279403 | H62: 0.453720597 | J62: 0.01444330109 | K62: 0.5057618431 | M62: 4.33073352 | N62: 3.676013808 | P62: 0.2765726502 | Q62: 0.2765726502
B63: 13.6 | D63: 9.616652224 | E63: 0.009248 | F63: 0.1172826616 | G63: 0.5466819679 | H63: 0.4533180321 | J63: 0.02111613935 | K63: 0.5084234948 | M63: 4.1094754 | N63: 3.454755688 | P63: 0.2765320919 | Q63: 0.2765320919
B64: 12.8 | D64: 9.050966799 | E64: 0.008192 | F64: 0.118779197 | G64: 0.5472748548 | H64: 0.4527251452 | J64: 0.028269529 | K64: 0.5112764084 | M64: 3.888249726 | N64: 3.233530015 | P64: 0.2764736977 | Q64: 0.2764736977
B65: 12 | D65: 8.485281374 | E65: 0.0072 | F65: 0.1208523941 | G65: 0.5480960251 | H65: 0.4519039749 | J65: 0.03599958033 | K65: 0.5143586532 | M65: 3.667070768 | N65: 3.012351056 | P65: 0.2763930149 | Q65: 0.2763930149
B66: 11.2 | D66: 7.919595949 | E66: 0.006272 | F66: 0.1236258232 | G66: 0.5491942273 | H66: 0.4508057727 | J66: 0.04442986368 | K66: 0.5177191213 | M66: 3.445956356 | N66: 2.791236644 | P66: 0.2762838843 | Q66: 0.2762838843
B67: 10.4 | D67: 7.353910524 | E67: 0.005408 | F67: 0.1272610763 | G67: 0.5506331168 | H67: 0.4493668832 | J67: 0.05372197107 | K67: 0.5214216612 | M67: 3.224929249 | N67: 2.570209537 | P67: 0.276137591 | Q67: 0.276137591
B68: 9.6 | D68: 6.788225099 | E68: 0.004608 | F68: 0.1319736095 | G68: 0.5524974171 | H68: 0.4475025829 | J68: 0.0640913585 | K68: 0.5255512587 | M68: 3.004019176 | N68: 2.349299464 | P68: 0.2759414782 | Q68: 0.2759414782
B69: 8.8 | D69: 6.222539674 | E69: 0.003872 | F69: 0.1380572264 | G69: 0.5549024048 | H69: 0.4450975952 | J69: 0.07583182963 | K69: 0.5302235537 | M69: 2.783265993 | N69: 2.128546282 | P69: 0.2756765967 | Q69: 0.2756765967
B70: 8 | D70: 5.656854249 | E70: 0.0032 | F70: 0.145923252 | G70: 0.5580090122 | H70: 0.4419909878 | J70: 0.08935470955 | K70: 0.535599992 | M70: 2.562724716 | N70: 1.908005004 | P70: 0.2753135427 | Q70: 0.2753135427
B71: 7.2 | D71: 5.091168825 | E71: 0.002592 | F71: 0.1561658228 | G71: 0.5620488422 | H71: 0.4379511578 | J71: 0.1052541345 | K71: 0.541912922 | M71: 2.342473882 | N71: 1.68775417 | P71: 0.2748046912 | Q71: 0.2748046912
B72: 6.4 | D72: 4.5254834 | E72: 0.002048 | F72: 0.169676143 | G72: 0.5673675814 | H72: 0.4326324186 | J72: 0.124421309 | K72: 0.5495091489 | M72: 2.122630129 | N72: 1.467910417 | P72: 0.2740687669 | Q72: 0.2740687669
B73: 5.6 | D73: 3.959797975 | E73: 0.001568 | F73: 0.1878546767 | G73: 0.5745047136 | H73: 0.4254952864 | J73: 0.148256697 | K73: 0.5589299058 | M73: 1.903375115 | N73: 1.248655404 | P73: 0.272957727 | Q73: 0.272957727
B74: 4.8 | D74: 3.39411255 | E74: 0.001152 | F74: 0.2130355307 | G74: 0.5843503754 | H74: 0.4156496246 | J74: 0.1790944052 | K74: 0.5710682125 | M74: 1.685008934 | N74: 1.030289222 | P74: 0.2711783818 | Q74: 0.2711783818
B75: 4 | D75: 2.828427125 | E75: 0.0008 | F75: 0.2494200972 | G75: 0.5984820795 | H75: 0.4015179205 | J75: 0.221135826 | K75: 0.5875066622 | M75: 1.468066228 | N75: 0.8133465166 | P75: 0.2680815966 | Q75: 0.2680815966
B76: 3.2 | D76: 2.2627417 | E76: 0.000512 | F76: 0.3054111605 | G76: 0.6199734886 | H76: 0.3800265114 | J76: 0.2827837435 | K76: 0.6113286916 | M76: 1.253600951 | N76: 0.5988812393 | P76: 0.2619869384 | Q76: 0.2619869384
B77: 2.4 | D77: 1.697056275 | E77: 0.000288 | F77: 0.4006152174 | G77: 0.6556482799 | H77: 0.3443517201 | J77: 0.3836446546 | K77: 0.6493790808 | M77: 1.0440114 | N77: 0.3892916886 | P77: 0.2473930147 | Q77: 0.2473930147
B78: 1.6 | D78: 1.13137085 | E78: 0.000128 | F78: 0.5938517582 | G78: 0.7236943663 | H78: 0.2763056337 | J78: 0.5825380497 | K78: 0.7198978401 | M78: 0.8460969884 | N78: 0.1913772768 | P78: 0.1982639447 | Q78: 0.1982639447
B79: 0.8 | D79: 0.5656854249 | E79: 3.2e-05 | F79: 1.179218235 | G79: 0.8808443566 | H79: 0.1191556434 | J79: 1.173561381 | K79: 0.8797146212 | M79: 0.6874858326 | N79: 0.03276612105 | P79: 0.04095816329 | Q79: 0.04095816329
B80: 1e-05 | D80: 7.071067812e-06 | E80: 5e-15 | F80: 94111.18464 | G80: 1 | H80: 0 | J80: 94111.18464 | K80: 1 | M80: 0.6547197116 | N80: 0 | Q80: 0
D82: =B82*(SQRT(E$8/360)) -> 0 | E82: =D82/2 -> 0

Sheet T IMPLIZITE VOLATILITÄT
N1: Hauptmenü
B4: Aktienkurs | E4: =EINGABESEITE!C7 -> 100
B5: Ausübungspreis | E5: =EINGABESEITE!C8 -> 100
B6: Dividende | E6: =EINGABESEITE!C11 -> 2.625 | F6: =LN(1+(E6/E4)) -> 0.02591138178 | G6: =EXP(-$F$6*$F$8) -> 0.9871278728
B7: Zinssatz | E7: =EINGABESEITE!C9 -> 4 | F7: =LN(1+(E7/100)) -> 0.03922071315 | G7: =EXP(-$F$7*$F$8) -> 0.9805806757
B8: Restlaufzeit (Tage/360) | E8: =EINGABESEITE!C10 -> 180 | F8: =E8/360 -> 0.5
B9: Barwert Ausübungspreis | F9: =E5*(EXP(F8*-F7)) -> 98.05806757
B10: Volatilität Jahr | E10: =EINGABESEITE!C12 -> 20 | F10: =E10*SQRT(E$8/360) -> 14.14213562 | G10: =((E10/100)^2)/2 -> 0.02
B11: Step Volatilität | E11: =EINGABESEITE!F12 -> 1
B12: Volatilität Jahr (0.5) | F12: =F10/2 -> 7.071067812
B14: Hilfstabelle implizite Volatilität
M16: Options- | N16: Options- | P16: Vega | Q16: Vega
M17: preis | N17: preis | P17: bei +/- | Q17: bei +/-
D18: Volatilität | E18: Volatilität | F18: d1 | G18: NV-Werte | J18: d2 | K18: NV-Werte | P18: =E11 -> 1 | Q18: =E11 -> 1 | S18: Hilfstabelle | T18: Hilfstabelle | U18: Implizite
D19: RLZ | E19: +/- 0.5 | G19: Verteilung | K19: Verteilung | P19: Prozent- | Q19: Prozent- | S19: Call Preis | T19: Put Preis | U19: Volatilität
G20: F(x) | K20: F(x) | P20: punkt/en | Q20: punkt/en
G21: Call-Delta | H21: Put-Delta | M21: Call | N21: Put | P21: Call | Q21: Put
B23: =E10 -> 20 | D23: =B23*SQRT(E$8/360) -> 14.14213562 | E23: =((B23/100)^2)/2 -> 0.02 | F23: =(LN($E$4/$E$5)+(($F$7-$F$6+E23)*$F$8))/(D23/100) -> 0.1177662704 | G23: =NORMSDIST(F23) -> 0.5468735721 | H23: =1-G23 -> 0.4531264279 | J23: =F23-(D23/100) -> -0.0236550858 | K23: =NORMSDIST(J23) -> 0.4905638662 | M23: =($E$4*$G$6*G23)-($E$5*$G$7*K23) -> 5.879669857 | N23: =M23+($E$5*$G$7)-($E$4*$G$6) -> 5.224950145 | P23: =M24-M23 -> 0.2765187567 | Q23: =N24-N23 -> 0.2765187567
B24: =B23+$E$11 -> 21 | D24: =B24*SQRT(E$8/360) -> 14.8492424 | E24: =((B24/100)^2)/2 -> 0.02205 | F24: =(LN($E$4/$E$5)+(($F$7-$F$6+E24)*$F$8))/(D24/100) -> 0.1190610619 | G24: =NORMSDIST(F24) -> 0.5473865103 | H24: =1-G24 -> 0.4526134897 | J24: =F24-(D24/100) -> -0.0294313622 | K24: =NORMSDIST(J24) -> 0.4882602801 | M24: =($E$4*$G$6*G24)-($E$5*$G$7*K24) -> 6.156188614 | N24: =M24+($E$5*$G$7)-($E$4*$G$6) -> 5.501468902 | P24: =M25-M24 -> 0.2764726799 | Q24: =N25-N24 -> 0.2764726799
B25: =B24+$E$11 -> 22 | D25: 15.55634919 | E25: 0.0242 | F25: 0.1205595571 | G25: 0.5479800481 | H25: 0.4520199519 | J25: -0.03500393473 | K25: 0.4860383017 | M25: 6.432661294 | N25: 5.777941582
B27: Volatlität
S30: 0 | T30: 0 | U30: 0
B31: 5.698552741e-12 | D31: =B31*SQRT(E$8/360) -> 4.029485286e-12 | E31: =((B31/100)^2)/2 -> 1.623675167e-27 | F31: =(LN($E$4/$E$5)+(($F$7-$F$6+E31)*$F$8))/(D31/100) -> 1.651492737e+11 | G31: =NORMSDIST(F31) -> 1 | H31: =1-G31 -> 0 | J31: =F31-(D31/100) -> 1.651492737e+11 | K31: =NORMSDIST(J31) -> 1 | M31: =($E$4*$G$6*G31)-($E$5*$G$7*K31) -> 0.6547197116 | N31: =M31+($E$5*$G$7)-($E$4*$G$6) -> 0 | P31: =M32-M31 -> 0 | Q31: =-(N32-N31) -> 0 | S31: =M31 -> 0.6547197116 | T31: =N31 -> 0 | U31: =B31 -> 5.698552741e-12
B32: 0.1 | D32: =B32*SQRT(E$8/360) -> 0.07071067812 | E32: =((B32/100)^2)/2 -> 5e-07 | F32: =(LN($E$4/$E$5)+(($F$7-$F$6+E32)*$F$8))/(D32/100) -> 9.411472017 | G32: =NORMSDIST(F32) -> 1 | H32: =1-G32 -> 0 | J32: =F32-(D32/100) -> 9.410764911 | K32: =NORMSDIST(J32) -> 1 | M32: =($E$4*$G$6*G32)-($E$5*$G$7*K32) -> 0.6547197116 | N32: =M32+($E$5*$G$7)-($E$4*$G$6) -> 0 | P32: =M33-M32 -> 3.463071607e-08 | Q32: =-(N33-N32) -> -3.463071607e-08 | S32: =M32 -> 0.6547197116 | T32: =N32 -> 0 | U32: =B32 -> 0.1
B33: 0.2 | D33: 0.1414213562 | E33: 2e-06 | F33: 4.706266339 | G33: 0.9999987385 | H33: 1.261474289e-06 | J33: 4.704852125 | K33: 0.9999987297 | M33: 0.6547197462 | N33: 3.463071607e-08 | P33: 4.871212016e-05 | Q33: -4.871212016e-05 | S33: 0.6547197462 | T33: 3.463071607e-08 | U33: 0.2
B34: 0.3 | D34: 0.2121320343 | E34: 4.5e-06 | F34: 3.138100148 | G34: 0.9991497662 | H34: 0.0008502338309 | J34: 3.135978828 | K34: 0.9991435922 | M34: 0.6547684583 | N34: 4.874675088e-05 | P34: 0.0008232165958 | Q34: -0.0008232165958 | S34: 0.6547684583 | T34: 4.874675088e-05 | U34: 0.3
B35: 0.4 | D35: 0.2828427125 | E35: 7.999999999e-06 | F35: 2.35419383 | G35: 0.9907185356 | H35: 0.00928146438 | J35: 2.351365403 | K35: 0.9906476723 | M35: 0.6555916749 | N35: 0.0008719633467 | P35: 0.003154423426 | Q35: -0.003154423426 | S35: 0.6555916749 | T35: 0.0008719633467 | U35: 0.4
B36: 0.5 | D36: 0.3535533906 | E36: 1.25e-05 | F36: 1.88399146 | G36: 0.9702169347 | H36: 0.02978306533 | J36: 1.880455926 | K36: 0.9699770161 | M36: 0.6587460983 | N36: 0.004026386773 | P36: 0.006418470421 | Q36: -0.006418470421 | S36: 0.6587460983 | T36: 0.004026386773 | U36: 0.5
B37: 0.6 | D37: 0.4242640687 | E37: 1.8e-05 | F37: 1.570641064 | G37: 0.9418669771 | H37: 0.05813302293 | J37: 1.566398424 | K37: 0.9413723141 | M37: 0.6651645688 | N37: 0.01044485719 | P37: 0.009712012634 | Q37: -0.009712012634 | S37: 0.6651645688 | T37: 0.01044485719 | U37: 0.6
B38: 0.7 | D38: 0.4949747468 | E38: 2.45e-05 | F38: 1.346920369 | G38: 0.9109970597 | H38: 0.08900294034 | J38: 1.341970621 | K38: 0.9101972392 | M38: 0.6748765814 | N38: 0.02015686983 | P38: 0.01260925122 | Q38: -0.01260925122 | S38: 0.6748765814 | T38: 0.02015686983 | U38: 0.7
B39: 0.8 | D39: 0.5656854249 | E39: 3.2e-05 | F39: 1.179218235 | G39: 0.8808443566 | H39: 0.1191556434 | J39: 1.173561381 | K39: 0.8797146212 | M39: 0.6874858326 | N39: 0.03276612104 | P39: 0.01501697178 | Q39: -0.01501697178 | S39: 0.6874858326 | T39: 0.03276612104 | U39: 0.8
B40: 0.9 | D40: 0.636396103 | E40: 4.05e-05 | F40: 1.04886181 | G40: 0.8528791377 | H40: 0.1471208623 | J40: 1.042497849 | K40: 0.8514095389 | M40: 0.7025028044 | N40: 0.04778309282 | P40: 0.01697541931 | Q40: -0.01697541931 | S40: 0.7025028044 | T40: 0.04778309282 | U40: 0.9
B41: 0.9999999999 | D41: 0.7071067812 | E41: 4.999999999e-05 | F41: 0.9446473803 | G41: 0.8275805354 | H41: 0.1724194646 | J41: 0.9375763125 | K41: 0.8257689054 | M41: 0.7194782237 | N41: 0.06475851213 | P41: 0.0185603292 | Q41: -0.0185603292 | S41: 0.7194782237 | T41: 0.06475851213 | U41: 0.9999999999
B42: 1.1 | D42: 0.7778174593 | E42: 6.049999999e-05 | F42: 0.8594453113 | G42: 0.80495256 | H42: 0.19504744 | J42: 0.8516671367 | K42: 0.8028005673 | M42: 0.7380385529 | N42: 0.08331884133 | P42: 0.01984633965 | Q42: -0.01984633965 | S42: 0.7380385529 | T42: 0.08331884133 | U42: 1.1
B43: 1.2 | D43: 0.8485281374 | E43: 7.199999999e-05 | F43: 0.7885025127 | G43: 0.7847985853 | H43: 0.2152014147 | J43: 0.7800172313 | K43: 0.7823096337 | M43: 0.7578848925 | N43: 0.103165181 | P43: 0.02089637798 | Q43: -0.02089637798 | S43: 0.7578848925 | T43: 0.103165181 | U43: 1.2
B44: 1.3 | D44: 0.9192388155 | E44: 8.449999999e-05 | F44: 0.7285283836 | G44: 0.7668548999 | H44: 0.2331451001 | J44: 0.7193359955 | K44: 0.7640330387 | M44: 0.7787812705 | N44: 0.124061559 | P44: 0.02176049125 | Q44: -0.02176049125 | S44: 0.7787812705 | T44: 0.124061559 | U44: 1.3
B45: 1.4 | D45: 0.9899494936 | E45: 9.799999999e-05 | F45: 0.6771724949 | G45: 0.7508517416 | H45: 0.2491482584 | J45: 0.667273 | K45: 0.7477011153 | M45: 0.8005417618 | N45: 0.1458220502 | P45: 0.02247757722 | Q45: -0.02247757722 | S45: 0.8005417618 | T45: 0.1458220502 | U45: 1.4
B46: 1.5 | D46: 1.060660172 | E46: 0.0001125 | F46: 0.6327111985 | G46: 0.7365388722 | H46: 0.2634611278 | J46: 0.6221045968 | K46: 0.7330634537 | M46: 0.823019339 | N46: 0.1682996274 | P46: 0.02307764939 | Q46: -0.02307764939 | S46: 0.823019339 | T46: 0.1682996274 | U46: 1.5
B47: 1.6 | D47: 1.13137085 | E47: 0.000128 | F47: 0.5938517583 | G47: 0.7236943663 | H47: 0.2763056337 | J47: 0.5825380498 | K47: 0.7198978401 | M47: 0.8460969884 | N47: 0.1913772768 | P47: 0.02358387736 | Q47: -0.02358387736 | S47: 0.8460969884 | T47: 0.1913772768 | U47: 1.6
B48: 1.7 | D48: 1.202081528 | E48: 0.0001445 | F48: 0.5596056114 | G48: 0.7121257617 | H48: 0.2878742383 | J48: 0.5475847962 | K48: 0.7080114843 | M48: 0.8696808657 | N48: 0.2149611542 | P48: 0.02401422737 | Q48: -0.02401422737 | S48: 0.8696808657 | T48: 0.2149611542 | U48: 1.7
B49: 1.8 | D49: 1.272792206 | E49: 0.000162 | F49: 0.5292038757 | G49: 0.7016679858 | H49: 0.2983320142 | J49: 0.5164759537 | K49: 0.6972389853 | M49: =($E$4*$G$6*G49)-($E$5*$G$7*K49) -> 0.8936950931 | N49: 0.2389753815 | P49: 0.02438272154 | Q49: -0.02438272154 | S49: 0.8936950931 | T49: 0.2389753815 | U49: 1.8
B50: 1.9 | D50: 1.343502884 | E50: 0.0001805 | F50: 0.5020395389 | G50: 0.6921801457 | H50: 0.3078198543 | J50: 0.48860451 | K50: 0.6874391403 | M50: 0.9180778147 | N50: 0.2633581031 | P50: 0.02470038586 | Q50: -0.02470038586 | S50: 0.9180778147 | T50: 0.2633581031 | U50: 1.9
B51: 2 | D51: 1.414213562 | E51: 0.0002 | F51: 0.477626991 | G51: 0.6835421417 | H51: 0.3164578583 | J51: 0.4634848554 | K51: 0.6784915661 | M51: 0.9427782005 | N51: 0.288058489 | P51: 0.02497595874 | Q51: -0.02497595874 | S51: 0.9427782005 | T51: 0.288058489 | U51: 2
B52: 2.1 | D52: 1.48492424 | E52: 0.0002205 | F52: 0.4555731195 | G52: 0.6756515118 | H52: 0.3243484882 | J52: 0.4407238771 | K52: 0.6702935457 | M52: 0.9677541593 | N52: 0.3130344477 | P52: 0.02521642067 | Q52: -0.02521642067 | S52: 0.9677541593 | T52: 0.3130344477 | U52: 2.1
B53: 2.2 | D53: 1.555634919 | E53: 0.000242 | F53: 0.4355562866 | G53: 0.6684206538 | H53: 0.3315793462 | J53: 0.4199999374 | K53: 0.6627572503 | M53: 0.9929705799 | N53: 0.3382508684 | P53: 0.02542739129 | Q53: -0.02542739129 | S53: 0.9929705799 | T53: 0.3382508684 | U53: 2.2
B54: 2.3 | D54: 1.626345597 | E54: 0.0002645 | F54: 0.4173107917 | G54: 0.661774452 | H54: 0.338225548 | J54: 0.4010473357 | K54: 0.6558073632 | M54: 1.018397971 | N54: 0.3636782597 | P54: 0.02561342888 | Q54: -0.02561342888 | S54: 1.018397971 | T54: 0.3636782597 | U54: 2.3
B55: 2.4 | D55: 1.697056275 | E55: 0.000288 | F55: 0.4006152174 | G55: 0.6556482799 | H55: 0.3443517201 | J55: 0.3836446546 | K55: 0.6493790808 | M55: 1.0440114 | N55: 0.3892916885 | P55: 0.0257782575 | Q55: -0.0257782575 | S55: 1.0440114 | T55: 0.3892916885 | U55: 2.4
B56: 2.5 | D56: 1.767766953 | E56: 0.0003125 | F56: 0.3852835733 | G56: 0.6499863347 | H56: 0.3500136653 | J56: 0.3676059038 | K56: 0.643416444 | M56: 1.069789658 | N56: 0.415069946 | P56: 0.02592494067 | Q56: -0.02592494067 | S56: 1.069789658 | T56: 0.415069946 | U56: 2.5
B57: 2.6 | D57: 1.838477631 | E57: 0.000338 | F57: 0.3711584829 | G57: 0.6447402531 | H57: 0.3552597469 | J57: 0.3527737066 | K57: 0.6378709514 | M57: 1.095714598 | N57: 0.4409948867 | P57: 0.02605601505 | Q57: -0.02605601505 | S57: 1.095714598 | T57: 0.4409948867 | U57: 2.6
B58: 2.7 | D58: 1.909188309 | E58: 0.0003645 | F58: 0.3581058847 | G58: 0.6398679623 | H58: 0.3601320377 | J58: 0.3390140016 | K58: 0.6327004088 | M58: 1.121770613 | N58: 0.4670509017 | P58: 0.02617359407 | Q58: -0.02617359407 | S58: 1.121770613 | T58: 0.4670509017 | U58: 2.7
B59: 2.8 | D59: 1.979898987 | E59: 0.000392 | F59: 0.3460108687 | G59: 0.6353327267 | H59: 0.3646672733 | J59: 0.3262118788 | K59: 0.6278679727 | M59: 1.147944207 | N59: 0.4932244958 | P59: 0.02627944889 | Q59: -0.02627944889 | S59: 1.147944207 | T59: 0.4932244958 | U59: 2.8
B60: 2.9 | D60: 2.050609665 | E60: 0.0004205 | F60: 0.3347743747 | G60: 0.6311023539 | H60: 0.3688976461 | J60: 0.314268278 | K60: 0.6233413555 | M60: 1.174223656 | N60: 0.5195039447 | P60: 0.02637507215 | Q60: -0.02637507215 | S60: 1.174223656 | T60: 0.5195039447 | U60: 2.9
B61: 3 | D61: 2.121320343 | E61: 0.00045 | F61: 0.3243105505 | G61: 0.6271485336 | H61: 0.3728514664 | J61: 0.3030973471 | K61: 0.6190921621 | M61: 1.200598728 | N61: 0.5458790169 | P61: 0.02646172833 | Q61: -0.02646172833 | S61: 1.200598728 | T61: 0.5458790169 | U61: 3
B62: 3.1 | D62: 2.192031022 | E62: 0.0004804999999 | F62: 0.3145446217 | G62: 0.6234462842 | H62: 0.3765537158 | J62: 0.2926243115 | K62: 0.6150953355 | M62: 1.227060457 | N62: 0.5723407452 | P62: 0.02654049402 | Q62: -0.02654049402 | S62: 1.227060457 | T62: 0.5723407452 | U62: 3.1
B63: 3.2 | D63: 2.2627417 | E63: 0.0005119999999 | F63: 0.3054111605 | G63: 0.6199734886 | H63: 0.3800265114 | J63: 0.2827837435 | K63: 0.6113286916 | M63: 1.253600951 | N63: 0.5988812392 | P63: 0.02661229012 | Q63: -0.02661229012 | S63: 1.253600951 | T63: 0.5988812392 | U63: 3.2
B64: 3.3 | D64: 2.333452378 | E64: 0.0005444999999 | F64: 0.2968526699 | G64: 0.616710504 | H64: 0.383289496 | J64: 0.2735181461 | K64: 0.6077725273 | M64: 1.280213241 | N64: 0.6254935293 | P64: 0.02667790794 | Q64: -0.02667790794 | S64: 1.280213241 | T64: 0.6254935293 | U64: 3.3
B65: 3.4 | D65: 2.404163056 | E65: 0.0005779999999 | F65: 0.2888184172 | G65: 0.6136398312 | H65: 0.3863601688 | J65: 0.2647767866 | K65: 0.6044092898 | M65: 1.306891149 | N65: 0.6521714373 | P65: 0.02673803028 | Q65: -0.02673803028 | S65: 1.306891149 | T65: 0.6521714373 | U65: 3.4
B66: 3.5 | D66: 2.474873734 | E66: 0.0006124999999 | F66: 0.2812634677 | G66: 0.6107458358 | H66: 0.3892541642 | J66: 0.2565147303 | K66: 0.6012232961 | M66: 1.333629179 | N66: 0.6789094675 | P66: 0.02679324871 | Q66: -0.02679324871 | S66: 1.333629179 | T66: 0.6789094675 | U66: 3.5
B67: 3.6 | D67: 2.545584412 | E67: 0.0006479999999 | F67: 0.2741478794 | G67: 0.6080145099 | H67: 0.3919854901 | J67: 0.2486920353 | K67: 0.5982004949 | M67: 1.360422428 | N67: 0.7057027163 | P67: 0.02684407771 | Q67: -0.02684407771 | S67: 1.360422428 | T67: 0.7057027163 | U67: 3.6
B68: 3.7 | D68: 2.61629509 | E68: 0.0006844999999 | F68: 0.2674360285 | G68: 0.6054332687 | H68: 0.3945667313 | J68: 0.2412730776 | K68: 0.5953282622 | M68: 1.387266506 | N68: 0.732546794 | P68: 0.02689096635 | Q68: -0.02689096635 | S68: 1.387266506 | T68: 0.732546794 | U68: 3.7
B69: 3.8 | D69: 2.687005768 | E69: 0.0007219999999 | F69: 0.2610960411 | G69: 0.6029907777 | H69: 0.3970092223 | J69: 0.2342259834 | K69: 0.5925952279 | M69: 1.414157472 | N69: 0.7594377603 | P69: 0.02693430796 | Q69: -0.02693430796 | S69: 1.414157472 | T69: 0.7594377603 | U69: 3.8
B70: 3.9 | D70: 2.757716446 | E70: 0.0007604999999 | F70: 0.2550993121 | G70: 0.6006768023 | H70: 0.3993231977 | J70: 0.2275221476 | K70: 0.5899911253 | M70: 1.44109178 | N70: 0.7863720683 | P70: 0.0269744482 | Q70: -0.0269744482 | S70: 1.44109178 | T70: 0.7863720683 | U70: 3.9
B71: 4 | D71: 2.828427125 | E71: 0.0007999999999 | F71: 0.2494200972 | G71: 0.5984820795 | H71: 0.4015179205 | J71: 0.221135826 | K71: 0.5875066622 | M71: 1.468066228 | N71: 0.8133465165 | P71: 0.02701169179 | Q71: -0.02701169179 | S71: 1.468066228 | T71: 0.8133465165 | U71: 4
B72: 4.1 | D72: 2.899137803 | E72: 0.0008404999999 | F72: 0.2440351638 | G72: 0.5963982069 | H72: 0.4036017931 | J72: 0.2150437857 | K72: 0.5851334095 | M72: 1.49507792 | N72: 0.8403582083 | P72: 0.02704630815 | Q72: -0.02704630815 | S72: 1.49507792 | T72: 0.8403582083 | U72: 4.1
B73: 4.2 | D73: 2.969848481 | E73: 0.0008819999999 | F73: 0.2389234916 | G73: 0.5944175453 | H73: 0.4055824547 | J73: 0.2092250067 | K73: 0.5828637041 | M73: 1.522124228 | N73: 0.8674045164 | P73: 0.0270785362 | Q73: -0.0270785362 | S73: 1.522124228 | T73: 0.8674045164 | U73: 4.2
B74: 4.3 | D74: 3.040559159 | E74: 0.0009244999999 | F74: 0.2340660159 | G74: 0.5925331357 | H74: 0.4074668643 | J74: 0.2036604243 | K74: 0.5806905646 | M74: 1.549202764 | N74: 0.8944830526 | P74: 0.02710858837 | Q74: -0.02710858837 | S74: 1.549202764 | T74: 0.8944830526 | U74: 4.3
B75: 4.4 | D75: 3.111269837 | E75: 0.0009679999999 | F75: 0.2294454052 | G75: 0.5907386255 | H75: 0.4092613745 | J75: 0.1983327068 | K75: 0.5786076182 | M75: 1.576311353 | N75: 0.921591641 | P75: 0.02713665406 | Q75: -0.02713665406 | S75: 1.576311353 | T75: 0.921591641 | U75: 4.4
B76: 4.5 | D76: 3.181980515 | E76: 0.0010125 | F76: 0.2250458685 | G76: 0.5890282043 | H76: 0.4109717957 | J76: 0.1932260633 | K76: 0.5766090361 | M76: 1.603448007 | N76: 0.9487282951 | P76: 0.02716290252 | Q76: -0.02716290252 | S76: 1.603448007 | T76: 0.9487282951 | U76: 4.5
B77: 4.6 | D77: 3.252691193 | E77: 0.001058 | F77: 0.2208529878 | G77: 0.5873965481 | H77: 0.4126034519 | J77: 0.1883260759 | K77: 0.5746894773 | M77: 1.630610909 | N77: 0.9758911976 | P77: 0.02718748542 | Q77: -0.02718748542 | S77: 1.630610909 | T77: 0.9758911976 | U77: 4.6
B78: 4.7 | D78: 3.323401871 | E78: 0.0011045 | F78: 0.2168535724 | G78: 0.5858387698 | H78: 0.4141612302 | J78: 0.1836195537 | K78: 0.5728440389 | M78: 1.657798395 | N78: 1.003078683 | P78: 0.02721053891 | Q78: -0.02721053891 | S78: 1.657798395 | T78: 1.003078683 | U78: 4.7
B79: 4.8 | D79: 3.39411255 | E79: 0.001152 | F79: 0.2130355308 | G79: 0.5843503754 | H79: 0.4156496246 | J79: 0.1790944053 | K79: 0.5710682125 | M79: 1.685008933 | N79: 1.030289222 | P79: 0.02723218557 | Q79: -0.02723218557 | S79: 1.685008933 | T79: 1.030289222 | U79: 4.8
B80: 4.9 | D80: 3.464823228 | E80: 0.0012005 | F80: 0.2093877583 | G80: 0.5829272258 | H80: 0.4170727742 | J80: 0.174739526 | K80: 0.5693578458 | M80: 1.712241119 | N80: 1.057521407 | P80: 0.02725253591 | Q80: -0.02725253591 | S80: 1.712241119 | T80: 1.057521407 | U80: 4.9
B81: 5 | D81: 3.535533906 | E81: 0.00125 | F81: 0.2059000388 | G81: 0.5815655024 | H81: 0.4184344976 | J81: 0.1705446998 | K81: 0.5677091081 | M81: 1.739493655 | N81: 1.084773943 | P81: 0.02727168984 | Q81: -0.02727168984 | S81: 1.739493655 | T81: 1.084773943 | U81: 5
B82: 5.1 | D82: 3.606244584 | E82: 0.0013005 | F82: 0.2025629575 | G82: 0.5802616773 | H82: 0.4197383227 | J82: 0.1665005117 | K82: 0.5661184597 | M82: 1.766765345 | N82: 1.112045633 | P82: 0.02728973781 | Q82: -0.02728973781 | S82: 1.766765345 | T82: 1.112045633 | U82: 5.1
B83: 5.2 | D83: 3.676955262 | E83: 0.001352 | F83: 0.1993678237 | G83: 0.5790124859 | H83: 0.4209875141 | J83: 0.1625982711 | K83: 0.5645826258 | M83: 1.794055083 | N83: 1.139335371 | P83: 0.02730676188 | Q83: -0.02730676188 | S83: 1.794055083 | T83: 1.139335371 | U83: 5.2
B84: 5.3 | D84: 3.74766594 | E84: 0.0014045 | F84: 0.1963066026 | G84: 0.5778149031 | H84: 0.4221850969 | J84: 0.1588299432 | K84: 0.5630985715 | M84: 1.821361845 | N84: 1.166642133 | P84: 0.02732283665 | Q84: -0.02732283665 | S84: 1.821361845 | T84: 1.166642133 | U84: 5.3
B85: 5.4 | D85: 3.818376618 | E85: 0.001458 | F85: 0.1933718547 | G85: 0.5766661219 | H85: 0.4233338781 | J85: 0.1551880885 | K85: 0.5616634807 | M85: 1.848684681 | N85: 1.19396497 | P85: 0.02733803001 | Q85: -0.02733803001 | S85: 1.848684681 | T85: 1.19396497 | U85: 5.4
B86: 5.5 | D86: 3.889087296 | E86: 0.0015125 | F86: 0.1905566813 | G86: 0.5755635342 | H86: 0.4244364658 | J86: 0.1516658083 | K86: 0.5602747369 | M86: 1.876022711 | N86: 1.221303 | P86: 0.02735240392 | Q86: -0.02735240392 | S86: 1.876022711 | T86: 1.221303 | U86: 5.5
B87: 5.6 | D87: 3.959797974 | E87: 0.001568 | F87: 0.1878546767 | G87: 0.5745047136 | H87: 0.4254952864 | J87: 0.148256697 | K87: 0.5589299058 | M87: 1.903375115 | N87: 1.248655404 | P87: 0.02736601496 | Q87: -0.02736601496 | S87: 1.903375115 | T87: 1.248655404 | U87: 5.6
B88: 5.7 | D88: 4.030508653 | E88: 0.0016245 | F88: 0.1852598847 | G88: 0.5734873997 | H88: 0.4265126003 | J88: 0.1449547982 | K88: 0.5576267197 | M88: 1.93074113 | N88: 1.276021418 | P88: 0.02737891491 | Q88: -0.02737891491 | S88: 1.93074113 | T88: 1.276021418 | U88: 5.7
B89: 5.8 | D89: 4.101219331 | E89: 0.001682 | F89: 0.1827667598 | G89: 0.5725094845 | H89: 0.4274905155 | J89: 0.1417545665 | K89: 0.5563630639 | M89: 1.958120045 | N89: 1.303400333 | P89: 0.0273911512 | Q89: -0.0273911512 | S89: 1.958120045 | T89: 1.303400333 | U89: 5.8
B90: 5.9 | D90: 4.171930009 | E90: 0.0017405 | F90: 0.1803701325 | G90: 0.5715689997 | H90: 0.4284310003 | J90: 0.1386508324 | K90: 0.5551369636 | M90: 1.985511196 | N90: 1.330791485 | P90: 0.02740276739 | Q90: -0.02740276739 | S90: 1.985511196 | T90: 1.330791485 | U90: 5.9
B91: 6 | D91: 4.242640687 | E91: 0.0018 | F91: 0.1780651778 | G91: 0.5706641055 | H91: 0.4293358945 | J91: 0.135638771 | K91: 0.5539465731 | M91: 2.012913964 | N91: 1.358194252 | P91: 0.02741380349 | Q91: -0.02741380349 | S91: 2.012913964 | T91: 1.358194252 | U91: 6
B92: 6.1 | D92: 4.313351365 | E92: 0.0018605 | F92: 0.1758473874 | G92: 0.56979308 | H92: 0.43020692 | J92: 0.1327138737 | K92: 0.5527901649 | M92: 2.040327767 | N92: 1.385608055 | P92: 0.02742429633 | Q92: -0.02742429633 | S92: 2.040327767 | T92: 1.385608055 | U92: 6.1
B93: 6.2 | D93: 4.384062043 | E93: 0.001922 | F93: 0.1737125435 | G93: 0.5689543104 | H93: 0.4310456896 | J93: 0.1298719231 | K93: 0.5516661209 | M93: 2.067752063 | N93: 1.413032352 | P93: 0.02743427986 | Q93: -0.02743427986 | S93: 2.067752063 | T93: 1.413032352 | U93: 6.2
B94: 6.3 | D94: 4.454772721 | E94: 0.0019845 | F94: 0.1716566964 | G94: 0.5681462842 | H94: 0.4318537158 | J94: 0.1271089692 | K94: 0.5505729237 | M94: 2.095186343 | N94: 1.440466632 | P94: 0.02744378539 | Q94: -0.02744378539 | S94: 2.095186343 | T94: 1.440466632 | U94: 6.3
B95: 6.4 | D95: 4.525483399 | E95: 0.002048 | F95: 0.169676143 | G95: 0.5673675814 | H95: 0.4326324186 | J95: 0.124421309 | K95: 0.5495091489 | M95: 2.122630129 | N95: 1.467910417 | P95: 0.02745284187 | Q95: -0.02745284187 | S95: 2.122630129 | T95: 1.467910417 | U95: =B95 -> 6.4
B96: 6.5 | D96: =B96*SQRT(E$8/360) -> 4.596194077 | E96: =((B96/100)^2)/2 -> 0.0021125 | F96: =(LN($E$4/$E$5)+(($F$7-$F$6+E96)*$F$8))/(D96/100) -> 0.1677674083 | G96: =NORMSDIST(F96) -> 0.5666168683 | H96: =1-G96 -> 0.4333831317 | J96: =F96-(D96/100) -> 0.1218054675 | K96: =NORMSDIST(J96) -> 0.5484734581 | M96: =($E$4*$G$6*G96)-($E$5*$G$7*K96) -> 2.150082971 | N96: =M96+($E$5*$G$7)-($E$4*$G$6) -> 1.495363259 | P96: =M97-M96 -> 0.02746147606 | Q96: =-(N97-N96) -> -0.02746147606 | S96: =M96 -> 2.150082971 | T96: =N96 -> 1.495363259 | U96: 6.5
B97: 6.6 | D97: 4.666904756 | E97: 0.002178 | F97: 0.1659272278 | G97: 0.5658928901 | H97: 0.4341071099 | J97: 0.1192581802 | K97: 0.5474645928 | M97: 2.177544447 | N97: 1.522824735 | P97: 0.02746971275 | Q97: -0.02746971275 | S97: 2.177544447 | T97: 1.522824735 | U97: 6.6
B98: 6.7 | D98: 4.737615434 | E98: 0.0022445 | F98: 0.1641525319 | G98: 0.5651944659 | H98: 0.4348055341 | J98: 0.1167763775 | K98: 0.5464813682 | M98: 2.205014159 | N98: 1.550294448 | P98: 0.02747757493 | Q98: -0.02747757493 | S98: 2.205014159 | T98: 1.550294448 | U98: 6.7
B99: 6.8 | D99: 4.808326112 | E99: 0.002312 | F99: 0.1624404315 | G99: 0.5645204831 | H99: 0.4354795169 | J99: 0.1143571704 | K99: 0.5455226679 | M99: 2.232491734 | N99: 1.577772023 | P99: 0.02748508395 | Q99: -0.02748508395 | S99: 2.232491734 | T99: 1.577772023 | U99: 6.8
B100: 6.9 | D100: 4.87903679 | E100: 0.0023805 | F100: 0.1607882052 | G100: 0.5638698924 | H100: 0.4361301076 | J100: 0.1119978373 | K100: 0.5445874393 | M100: 2.259976818 | N100: 1.605257107 | P100: 0.02749225961 | Q100: -0.02749225961 | S100: 2.259976818 | T100: 1.605257107 | U100: 6.9
B101: 7 | D101: 4.949747468 | E101: 0.00245 | F101: 0.1591932868 | G101: 0.5632417036 | H101: 0.4367582964 | J101: 0.1096958122 | K101: 0.5436746891 | M101: 2.287469078 | N101: 1.632749366 | P101: 0.02749912038 | Q101: -0.02749912038 | S101: 2.287469078 | T101: 1.632749366 | U101: 7
B102: 7.1 | D102: 5.020458146 | E102: 0.0025205 | F102: 0.157653255 | G102: 0.5626349816 | H102: 0.4373650184 | J102: 0.1074486736 | K102: 0.542783479 | M102: 2.314968198 | N102: 1.660248487 | P102: 0.02750568342 | Q102: -0.02750568342 | S102: 2.314968198 | T102: 1.660248487 | U102: 7.1
B103: 7.2 | D103: 5.091168824 | E103: 0.002592 | F103: 0.1561658228 | G103: 0.5620488422 | H103: 0.4379511578 | J103: 0.1052541346 | K103: 0.541912922 | M103: 2.342473882 | N103: 1.68775417 | P103: 0.02751196475 | Q103: -0.02751196475 | S103: 2.342473882 | T103: 1.68775417 | U103: 7.2
B104: 7.3 | D104: 5.161879502 | E104: 0.0026645 | F104: 0.1547288285 | G104: 0.5614824491 | H104: 0.4385175509 | J104: 0.1031100335 | K104: 0.5410621791 | M104: 2.369985846 | N104: 1.715266135 | P104: 0.0275179793 | Q104: -0.0275179793 | S104: 2.369985846 | T104: 1.715266135 | U104: 7.3
B105: 7.4 | D105: 5.23259018 | E105: 0.002738 | F105: 0.1533402274 | G105: 0.5609350106 | H105: 0.4390649894 | J105: 0.1010143256 | K105: 0.5402304559 | M105: 2.397503826 | N105: 1.742784114 | P105: 0.02752374101 | Q105: -0.02752374101 | S105: 2.397503826 | T105: 1.742784114 | U105: 7.4
B106: 7.5 | D106: 5.303300859 | E106: 0.0028125 | F106: 0.1519980838 | G106: 0.5604057765 | H106: 0.4395942235 | J106: 0.09896507523 | K106: 0.5394170001 | M106: 2.425027567 | N106: 1.770307855 | P106: 0.02752926294 | Q106: -0.02752926294 | S106: 2.425027567 | T106: 1.770307855 | U106: 7.5
B107: 7.6 | D107: 5.374011537 | E107: 0.002888 | F107: 0.1507005638 | G107: 0.5598940358 | H107: 0.4401059642 | J107: 0.09696044843 | K107: 0.538621098 | M107: 2.45255683 | N107: 1.797837118 | P107: 0.02753455727 | Q107: -0.02753455727 | S107: 2.45255683 | T107: 1.797837118 | U107: 7.6
B108: 7.7 | D108: 5.444722215 | E108: 0.0029645 | F108: 0.1494459288 | G108: 0.5593991137 | H108: 0.4406008863 | J108: 0.09499870665 | K108: 0.5378420729 | M108: 2.480091387 | N108: 1.825371675 | P108: 0.02753963542 | Q108: -0.02753963542 | S108: 2.480091387 | T108: 1.825371675 | U108: 7.7
B109: 7.8 | D109: 5.515432893 | E109: 0.003042 | F109: 0.1482325294 | G109: 0.5589203697 | H109: 0.4410796303 | J109: 0.09307820046 | K109: 0.5370792821 | M109: 2.507631022 | N109: 1.852911311 | P109: 0.02754450811 | Q109: -0.02754450811 | S109: 2.507631022 | T109: 1.852911311 | U109: 7.8
B110: 7.9 | D110: 5.586143571 | E110: 0.0031205 | F110: 0.1470587997 | G110: 0.5584571953 | H110: 0.4415428047 | J110: 0.09119736397 | K110: 0.5363321153 | M110: 2.53517553 | N110: 1.880455819 | P110: 0.02754918537 | Q110: -0.02754918537 | S110: 2.53517553 | T110: 1.880455819 | U110: 7.9
B111: 8 | D111: 5.656854249 | E111: 0.0032 | F111: 0.1459232521 | G111: 0.5580090122 | H111: 0.4419909878 | J111: 0.08935470956 | K111: 0.535599992 | M111: 2.562724716 | N111: 1.908005004 | P111: 0.02755367663 | Q111: -0.02755367663 | S111: 2.562724716 | T111: 1.908005004 | U111: 8
B112: 8.1 | D112: 5.727564927 | E112: 0.0032805 | F112: 0.1448244723 | G112: 0.5575752701 | H112: 0.4424247299 | J112: 0.08754882307 | K112: 0.5348823604 | M112: 2.590278392 | N112: 1.935558681 | P112: 0.02755799073 | Q112: -0.02755799073 | S112: 2.590278392 | T112: 1.935558681 | U112: 8.1
B113: 8.2 | D113: 5.798275605 | E113: 0.003362 | F113: 0.1437611154 | G113: 0.5571554454 | H113: 0.4428445546 | J113: 0.08577835934 | K113: 0.5341786951 | M113: 2.617836383 | N113: 1.963116672 | P113: 0.02756213602 | Q113: -0.02756213602 | S113: 2.617836383 | T113: 1.963116672 | U113: 8.2
B114: 8.3 | D114: 5.868986284 | E114: 0.0034445 | F114: 0.1427319009 | G114: 0.5567490393 | H114: 0.4432509607 | J114: 0.08404203803 | K114: 0.5334884958 | M114: 2.645398519 | N114: 1.990678808 | P114: 0.02756612031 | Q114: -0.02756612031 | S114: 2.645398519 | T114: 1.990678808 | U114: 8.3
B115: 8.4 | D115: 5.939696962 | E115: 0.003528 | F115: 0.1417356094 | G115: 0.5563555767 | H115: 0.4436444233 | J115: 0.08233863977 | K115: 0.5328112857 | M115: 2.672964639 | N115: 2.018244928 | P115: 0.02756995098 | Q115: -0.02756995098 | S115: 2.672964639 | T115: 2.018244928 | U115: 8.4
B116: 8.5 | D116: 6.01040764 | E116: 0.0036125 | F116: 0.140771079 | G116: 0.5559746044 | H116: 0.4440253956 | J116: 0.08066700256 | K116: 0.5321466103 | M116: 2.70053459 | N116: 2.045814879 | P116: 0.02757363499 | Q116: -0.02757363499 | S116: 2.70053459 | T116: 2.045814879 | U116: 8.5
B117: 8.6 | D117: 6.081118318 | E117: 0.003698 | F117: 0.1398372016 | G117: 0.5556056903 | H117: 0.4443943097 | J117: 0.07902601846 | K117: 0.531494036 | M117: 2.728108225 | N117: 2.073388514 | P117: 0.02757717887 | Q117: -0.02757717887 | S117: 2.728108225 | T117: 2.073388514 | U117: 8.6
B118: 8.7 | D118: 6.151828996 | E118: 0.0037845 | F118: 0.1389329204 | G118: 0.5552484218 | H118: 0.4447515782 | J118: 0.07741463047 | K118: 0.5308531489 | M118: 2.755685404 | N118: 2.100965693 | P118: 0.02758058882 | Q118: -0.02758058882 | S118: 2.755685404 | T118: 2.100965693 | U118: 8.7
B119: 8.8 | D119: 6.222539674 | E119: 0.003872 | F119: 0.1380572264 | G119: 0.5549024048 | H119: 0.4450975952 | J119: 0.07583182963 | K119: 0.5302235537 | M119: 2.783265993 | N119: 2.128546282 | P119: 0.02758387067 | Q119: -0.02758387067 | S119: 2.783265993 | T119: 2.128546282 | U119: 8.8
B120: 8.899999999 | D120: 6.293250352 | E120: 0.0039605 | F120: 0.1372091559 | G120: 0.554567263 | H120: 0.445432737 | J120: 0.07427665233 | K120: 0.5296048728 | M120: 2.810849864 | N120: 2.156130152 | P120: 0.02758702993 | Q120: -0.02758702993 | S120: 2.810849864 | T120: 2.156130152 | U120: 8.899999999
B121: 8.999999999 | D121: 6.36396103 | E121: 0.00405 | F121: 0.1363877881 | G121: 0.5542426364 | H121: 0.4457573636 | J121: 0.07274817779 | K121: 0.5289967451 | M121: 2.838436894 | N121: 2.183717182 | P121: 0.02759007182 | Q121: -0.02759007182 | S121: 2.838436894 | T121: 2.183717182 | U121: 8.999999999
B122: 9.099999999 | D122: 6.434671708 | E122: 0.0041405 | F122: 0.1355922428 | G122: 0.5539281809 | H122: 0.4460718191 | J122: 0.07124552568 | K122: 0.5283988254 | M122: 2.866026966 | N122: 2.211307254 | P122: 0.02759300126 | Q122: -0.02759300126 | S122: 2.866026966 | T122: 2.211307254 | U122: 9.099999999
B123: 9.199999999 | D123: 6.505382387 | E123: 0.004232 | F123: 0.1348216779 | G123: 0.5536235671 | H123: 0.4463764329 | J123: 0.06976785399 | K123: 0.5278107832 | M123: 2.893619967 | N123: 2.238900255 | P123: 0.02759582293 | Q123: -0.02759582293 | S123: 2.893619967 | T123: 2.238900255 | U123: 9.199999999
B124: 9.299999999 | D124: 6.576093065 | E124: 0.0043245 | F124: 0.1340752875 | G124: 0.5533284796 | H124: 0.4466715204 | J124: 0.06831435688 | K124: 0.5272323022 | M124: 2.92121579 | N124: 2.266496078 | P124: 0.02759854123 | Q124: -0.02759854123 | S124: 2.92121579 | T124: 2.266496078 | U124: 9.299999999
B125: 9.399999999 | D125: 6.646803743 | E125: 0.004418 | F125: 0.1333523003 | G125: 0.5530426164 | H125: 0.4469573836 | J125: 0.06688426282 | K125: 0.5266630793 | M125: 2.948814331 | N125: 2.294094619 | P125: 0.02760116037 | Q125: -0.02760116037 | S125: 2.948814331 | T125: 2.294094619 | U125: 9.399999999
B126: 9.499999999 | D126: 6.717514421 | E126: 0.004512499999 | F126: 0.132651977 | G126: 0.552765688 | H126: 0.447234312 | J126: 0.06547683278 | K126: 0.5261028242 | M126: 2.976415491 | N126: 2.32169578 | P126: 0.02760368431 | Q126: -0.02760368431 | S126: 2.976415491 | T126: 2.32169578 | U126: 9.499999999
B127: 9.599999999 | D127: 6.788225099 | E127: 0.004607999999 | F127: 0.1319736095 | G127: 0.5524974171 | H127: 0.4475025829 | J127: 0.06409135851 | K127: 0.5255512587 | M127: 3.004019176 | N127: 2.349299464 | P127: 0.02760611682 | Q127: -0.02760611682 | S127: 3.004019176 | T127: 2.349299464 | U127: 9.599999999
B128: 9.699999999 | D128: 6.858935777 | E128: 0.004704499999 | F128: 0.1313165187 | G128: 0.5522375376 | H128: 0.4477624624 | J128: 0.06272716095 | K128: 0.5250081157 | M128: 3.031625292 | N128: 2.376905581 | P128: 0.02760846148 | Q128: -0.02760846148 | S128: 3.031625292 | T128: 2.376905581 | U128: 9.699999999
B129: 9.799999999 | D129: 6.929646455 | E129: 0.004801999999 | F129: 0.1306800533 | G129: 0.5519857939 | H129: 0.4480142061 | J129: 0.06138358879 | K129: 0.524473139 | M129: 3.059233754 | N129: 2.404514042 | P129: 0.02761072168 | Q129: -0.02761072168 | S129: 3.059233754 | T129: 2.404514042 | U129: 9.799999999
B130: 9.899999999 | D130: 7.000357133 | E130: 0.004900499999 | F130: 0.1300635883 | G130: 0.5517419412 | H130: 0.4482580588 | J130: 0.060060017 | K130: 0.5239460829 | M130: 3.086844476 | N130: 2.432124764 | P130: 0.02761290066 | Q130: -0.02761290066 | S130: 3.086844476 | T130: 2.432124764 | U130: 9.899999999
B131: 9.999999999 | D131: 7.071067811 | E131: 0.004999999999 | F131: 0.1294665237 | G131: 0.5515057439 | H131: 0.4484942561 | J131: 0.05875584559 | K131: 0.5234267111 | M131: 3.114457376 | N131: 2.459737665 | P131: 0.02761500147 | Q131: -0.02761500147 | S131: 3.114457376 | T131: 2.459737665 | U131: 9.999999999
B132: 10.1 | D132: 7.14177849 | E132: 0.005100499999 | F132: 0.1288882832 | G132: 0.551276976 | H132: 0.448723024 | J132: 0.05747049829 | K132: 0.5229147969 | M132: 3.142072378 | N132: 2.487352666 | P132: 0.02761702705 | Q132: -0.02761702705 | S132: 3.142072378 | T132: 2.487352666 | U132: 10.1
B133: 10.2 | D133: 7.212489168 | E133: 0.005201999999 | F133: 0.1283283131 | G133: 0.5510554202 | H133: 0.4489445798 | J133: 0.05620342146 | K133: 0.5224101222 | M133: 3.169689405 | N133: 2.514969693 | P133: 0.02761898015 | Q133: -0.02761898015 | S133: 3.169689405 | T133: 2.514969693 | U133: 10.2
B134: 10.3 | D134: 7.283199846 | E134: 0.005304499999 | F134: 0.1277860814 | G134: 0.5508408674 | H134: 0.4491591326 | J134: 0.05495408295 | K134: 0.5219124775 | M134: 3.197308385 | N134: 2.542588673 | P134: 0.02762086345 | Q134: -0.02762086345 | S134: 3.197308385 | T134: 2.542588673 | U134: 10.3
B135: 10.4 | D135: 7.353910524 | E135: 0.005407999999 | F135: 0.1272610763 | G135: 0.5506331168 | H135: 0.4493668832 | J135: 0.05372197108 | K135: 0.5214216612 | M135: 3.224929248 | N135: 2.570209537 | P135: 0.02762267944 | Q135: -0.02762267944 | S135: 3.224929248 | T135: 2.570209537 | U135: 10.4
B136: 10.5 | D136: 7.424621202 | E136: 0.005512499999 | F136: 0.1267528057 | G136: 0.550431975 | H136: 0.449568025 | J136: 0.05250659365 | K136: 0.5209374792 | M136: 3.252551928 | N136: 2.597832216 | P136: 0.02762443053 | Q136: -0.02762443053 | S136: 3.252551928 | T136: 2.597832216 | U136: 10.5
B137: 10.6 | D137: 7.49533188 | E137: 0.005617999999 | F137: 0.1262607959 | G137: 0.5502372559 | H137: 0.4497627441 | J137: 0.05130747706 | K137: 0.5204597449 | M137: 3.280176358 | N137: 2.625456647 | P137: 0.02762611901 | Q137: -0.02762611901 | S137: 3.280176358 | T137: 2.625456647 | U137: 10.6
B138: 10.7 | D138: 7.566042558 | E138: 0.005724499999 | F138: 0.125784591 | G138: 0.5500487802 | H138: 0.4499512198 | J138: 0.05012416538 | K138: 0.5199882786 | M138: 3.307802477 | N138: 2.653082766 | P138: 0.02762774707 | Q138: -0.02762774707 | S138: 3.307802477 | T138: 2.653082766 | U138: 10.7
B139: 10.8 | D139: 7.636753236 | E139: 0.005831999999 | F139: 0.125323752 | G139: 0.5498663755 | H139: 0.4501336245 | J139: 0.0489562196 | K139: 0.5195229071 | M139: 3.335430224 | N139: 2.680710513 | P139: 0.02762931679 | Q139: -0.02762931679 | S139: 3.335430224 | T139: 2.680710513 | U139: 10.8
B140: 10.9 | D140: 7.707463914 | E140: 0.005940499999 | F140: 0.1248778559 | G140: 0.5496898752 | H140: 0.4503101248 | J140: 0.0478032168 | K140: 0.5190634636 | M140: 3.363059541 | N140: 2.70833983 | P140: 0.02763083015 | Q140: -0.02763083015 | S140: 3.363059541 | T140: 2.70833983 | U140: 10.9
B141: 11 | D141: 7.778174593 | E141: 0.006049999999 | F141: 0.1244464954 | G141: 0.5495191193 | H141: 0.4504808807 | J141: 0.04666474944 | K141: 0.5186097872 | M141: 3.390690371 | N141: 2.73597066 | P141: 0.02763228907 | Q141: -0.02763228907 | S141: 3.390690371 | T141: 2.73597066 | U141: 11
B142: 11.1 | D142: 7.848885271 | E142: 0.006160499999 | F142: 0.1240292774 | G142: 0.549353953 | H142: 0.450646047 | J142: 0.04554042468 | K142: 0.518161723 | M142: 3.41832266 | N142: 2.763602949 | P142: 0.02763369534 | Q142: -0.02763369534 | S142: 3.41832266 | T142: 2.763602949 | U142: 11.1
B143: 11.2 | D143: 7.919595949 | E143: 0.006271999999 | F143: 0.1236258232 | G143: 0.5491942273 | H143: 0.4508057727 | J143: 0.04442986369 | K143: 0.5177191213 | M143: 3.445956356 | N143: 2.791236644 | P143: 0.02763505072 | Q143: -0.02763505072 | S143: 3.445956356 | T143: 2.791236644 | U143: 11.2
B144: 11.3 | D144: 7.990306627 | E144: 0.006384499999 | F144: 0.1232357673 | G144: 0.5490397984 | H144: 0.4509602016 | J144: 0.04333270106 | K144: 0.517281838 | M144: 3.473591407 | N144: 2.818871695 | P144: 0.02763635686 | Q144: -0.02763635686 | S144: 3.473591407 | T144: 2.818871695 | U144: 11.3
B145: 11.4 | D145: 8.061017305 | E145: 0.006497999999 | F145: 0.1228587573 | G145: 0.5488905275 | H145: 0.4511094725 | J145: 0.04224858422 | K145: 0.5168497337 | M145: 3.501227763 | N145: 2.846508052 | P145: 0.02763761534 | Q145: -0.02763761534 | S145: 3.501227763 | T145: 2.846508052 | U145: 11.4
B146: 11.5 | D146: 8.131727983 | E146: 0.006612499999 | F146: 0.1224944527 | G146: 0.5487462805 | H146: 0.4512537195 | J146: 0.04117717282 | K146: 0.5164226742 | M146: 3.528865379 | N146: 2.874145667 | P146: 0.02763882769 | Q146: -0.02763882769 | S146: 3.528865379 | T146: 2.874145667 | U146: 11.5
B147: 11.6 | D147: 8.202438661 | E147: 0.006727999999 | F147: 0.1221425249 | G147: 0.548606928 | H147: 0.451393072 | J147: 0.04011813828 | K147: 0.5160005294 | M147: 3.556504206 | N147: 2.901784495 | P147: 0.02763999537 | Q147: -0.02763999537 | S147: 3.556504206 | T147: 2.901784495 | U147: 11.6
B148: 11.7 | D148: 8.273149339 | E148: 0.006844499999 | F148: 0.1218026566 | G148: 0.548472345 | H148: 0.451527655 | J148: 0.03907116326 | K148: 0.5155831741 | M148: 3.584144202 | N148: 2.92942449 | P148: 0.02764111976 | Q148: -0.02764111976 | S148: 3.584144202 | T148: 2.92942449 | U148: 11.7
B149: 11.8 | D149: 8.343860018 | E149: 0.006961999999 | F149: 0.1214745413 | G149: 0.5483424108 | H149: 0.4516575892 | J149: 0.03803594114 | K149: 0.5151704871 | M149: 3.611785322 | N149: 2.95706561 | P149: 0.0276422022 | Q149: -0.0276422022 | S149: 3.611785322 | T149: 2.95706561 | U149: 11.8
B150: 11.9 | D150: 8.414570696 | E150: 0.007080499999 | F150: 0.1211578826 | G150: 0.5482170084 | H150: 0.4517829916 | J150: 0.03701217563 | K150: 0.5147623512 | M150: 3.639427524 | N150: 2.984707812 | P150: 0.02764324397 | Q150: -0.02764324397 | S150: 3.639427524 | T150: 2.984707812 | U150: 11.9
B151: 12 | D151: 8.485281374 | E151: 0.007199999999 | F151: 0.1208523941 | G151: 0.5480960251 | H151: 0.4519039749 | J151: 0.03599958033 | K151: 0.5143586532 | M151: 3.667070768 | N151: 3.012351056 | P151: 0.0276442463 | Q151: -0.0276442463 | S151: 3.667070768 | T151: 3.012351056 | U151: 12
B152: 12.1 | D152: 8.555992052 | E152: 0.007320499999 | F152: 0.1205577988 | G152: 0.5479793517 | H152: 0.4520206483 | J152: 0.03499787829 | K152: 0.5139592836 | M152: 3.694715014 | N152: 3.039995303 | P152: 0.02764521037 | Q152: -0.02764521037 | S152: 3.694715014 | T152: 3.039995303 | U152: 12.1
B153: 12.2 | D153: 8.62670273 | E153: 0.007441999999 | F153: 0.1202738289 | G153: 0.5478668825 | H153: 0.4521331175 | J153: 0.03400680163 | K153: 0.5135641365 | M153: 3.722360224 | N153: 3.067640513 | P153: 0.0276461373 | Q153: -0.0276461373 | S153: 3.722360224 | T153: 3.067640513 | U153: 12.2
B154: 12.3 | D154: 8.697413408 | E154: 0.007564499999 | F154: 0.1200002253 | G154: 0.5477585153 | H154: 0.4522414847 | J154: 0.03302609121 | K154: 0.5131731094 | M154: 3.750006362 | N154: 3.09528665 | P154: 0.02764702818 | Q154: -0.02764702818 | S154: 3.750006362 | T154: 3.09528665 | U154: 12.3
B155: 12.4 | D155: 8.768124086 | E155: 0.007687999999 | F155: 0.1197367371 | G155: 0.5476541511 | H155: 0.4523458489 | J155: 0.03205549622 | K155: 0.512786103 | M155: 3.77765339 | N155: 3.122933678 | P155: 0.02764788404 | Q155: -0.02764788404 | S155: 3.77765339 | T155: 3.122933678 | U155: 12.4
B156: 12.5 | D156: 8.838834764 | E156: 0.007812499999 | F156: 0.1194831215 | G156: 0.5475536943 | H156: 0.4524463057 | J156: 0.03109477389 | K156: 0.5124030213 | M156: 3.805301274 | N156: 3.150581562 | P156: 0.0276487059 | Q156: -0.0276487059 | S156: 3.805301274 | T156: 3.150581562 | U156: 12.5
B157: 12.6 | D157: 8.909545442 | E157: 0.007937999999 | F157: 0.1192391436 | G157: 0.5474570521 | H157: 0.4525429479 | J157: 0.03014368917 | K157: 0.5120237712 | M157: 3.83294998 | N157: 3.178230268 | P157: 0.0276494947 | Q157: -0.0276494947 | S157: 3.83294998 | T157: 3.178230268 | U157: 12.6
B158: 12.7 | D158: 8.980256121 | E158: 0.008064499999 | F158: 0.1190045756 | G158: 0.5473641346 | H158: 0.4526358654 | J158: 0.02920201439 | K158: 0.5116482627 | M158: 3.860599475 | N158: 3.205879763 | P158: 0.02765025137 | Q158: -0.02765025137 | S158: 3.860599475 | T158: 3.205879763 | U158: 12.7
B159: 12.8 | D159: 9.050966799 | E159: 0.008191999999 | F159: 0.118779197 | G159: 0.5472748548 | H159: 0.4527251452 | J159: 0.02826952901 | K159: 0.5112764084 | M159: 3.888249726 | N159: 3.233530014 | P159: 0.0276509768 | Q159: -0.0276509768 | S159: 3.888249726 | T159: 3.233530014 | U159: =B159 -> 12.8
B160: 12.9 | D160: =B160*SQRT(E$8/360) -> 9.121677477 | E160: =((B160/100)^2)/2 -> 0.008320499999 | F160: =(LN($E$4/$E$5)+(($F$7-$F$6+E160)*$F$8))/(D160/100) -> 0.1185627941 | G160: =NORMSDIST(F160) -> 0.5471891283 | H160: =1-G160 -> 0.4528108717 | J160: =F160-(D160/100) -> 0.02734601932 | K160: =NORMSDIST(J160) -> 0.5109081238 | M160: =($E$4*$G$6*G160)-($E$5*$G$7*K160) -> 3.915900703 | N160: =M160+($E$5*$G$7)-($E$4*$G$6) -> 3.261180991 | P160: =M161-M160 -> 0.02765167185 | Q160: =-(N161-N160) -> -0.02765167185 | S160: =M160 -> 3.915900703 | T160: =N160 -> 3.261180991 | U160: 12.9
B161: 13 | D161: 9.192388155 | E161: 0.008449999999 | F161: 0.1183551597 | G161: 0.5471068733 | H161: 0.4528931267 | J161: 0.02643127818 | K161: 0.5105433268 | M161: 3.943552375 | N161: 3.288832663 | P161: 0.02765233732 | Q161: -0.02765233732 | S161: 3.943552375 | T161: 3.288832663 | U161: 13
B162: 13.1 | D162: 9.263098833 | E162: 0.008580499999 | F162: 0.1181560931 | G162: 0.5470280106 | H162: 0.4529719894 | J162: 0.0255251048 | K162: 0.5101819379 | M162: 3.971204712 | N162: 3.316485 | P162: 0.02765297402 | Q162: -0.02765297402 | S162: 3.971204712 | T162: 3.316485 | U162: 13.1
B163: 13.2 | D163: 9.333809511 | E163: 0.008711999999 | F163: 0.1179653996 | G163: 0.5469524632 | H163: 0.4530475368 | J163: 0.02462730445 | K163: 0.5098238799 | M163: 3.998857686 | N163: 3.344137974 | P163: 0.0276535827 | Q163: -0.0276535827 | S163: 3.998857686 | T163: 3.344137974 | U163: 13.2
B164: 13.3 | D164: 9.404520189 | E164: 0.008844499999 | F164: 0.1177828902 | G164: 0.5468801566 | H164: 0.4531198434 | J164: 0.02373768826 | K164: 0.5094690782 | M164: 4.026511269 | N164: 3.371791557 | P164: 0.02765416409 | Q164: -0.02765416409 | S164: 4.026511269 | T164: 3.371791557 | U164: 13.3
B165: 13.4 | D165: 9.475230867 | E165: 0.008977999999 | F165: 0.1176083817 | G165: 0.5468110183 | H165: 0.4531889817 | J165: 0.02285607301 | K165: 0.5091174601 | M165: 4.054165433 | N165: 3.399445721 | P165: 0.0276547189 | Q165: -0.0276547189 | S165: 4.054165433 | T165: 3.399445721 | U165: 13.4
B166: 13.5 | D166: 9.545941545 | E166: 0.009112499999 | F166: 0.1174416964 | G166: 0.5467449781 | H166: 0.4532550219 | J166: 0.0219822809 | K166: 0.508768955 | M166: 4.081820152 | N166: 3.42710044 | P166: 0.0276552478 | Q166: -0.0276552478 | S166: 4.081820152 | T166: 3.42710044 | U166: 13.5
B167: 13.6 | D167: 9.616652224 | E167: 0.009247999999 | F167: 0.1172826616 | G167: 0.5466819679 | H167: 0.4533180321 | J167: 0.02111613936 | K167: 0.5084234948 | M167: 4.109475399 | N167: 3.454755688 | P167: 0.02765575146 | Q167: -0.02765575146 | S167: 4.109475399 | T167: 3.454755688 | U167: 13.6
B168: 13.7 | D168: 9.687362902 | E168: 0.009384499999 | F168: 0.1171311099 | G168: 0.5466219213 | H168: 0.4533780787 | J168: 0.02025748085 | K168: 0.5080810129 | M168: 4.137131151 | N168: 3.482411439 | P168: 0.0276562305 | Q168: -0.0276562305 | S168: 4.137131151 | T168: 3.482411439 | U168: 13.7
B169: 13.8 | D169: 9.75807358 | E169: 0.009521999999 | F169: 0.1169868785 | G169: 0.5465647742 | H169: 0.4534352258 | J169: 0.01940614271 | K169: 0.5077414449 | M169: 4.164787381 | N169: 3.51006767 | P169: 0.02765668553 | Q169: -0.02765668553 | S169: 4.164787381 | T169: 3.51006767 | U169: 13.8
B170: 13.9 | D170: 9.828784258 | E170: 0.009660499999 | F170: 0.1168498095 | G170: 0.5465104641 | H170: 0.4534895359 | J170: 0.01856196694 | K170: 0.5074047282 | M170: 4.192444067 | N170: 3.537724355 | P170: 0.02765711714 | Q170: -0.02765711714 | S170: 4.192444067 | T170: 3.537724355 | U170: 13.9
B171: 14 | D171: 9.899494936 | E171: 0.009799999999 | F171: 0.1167197494 | G171: 0.5464589303 | H171: 0.4535410697 | J171: 0.01772480007 | K171: 0.5070708019 | M171: 4.220101184 | N171: 3.565381472 | P171: 0.02765752589 | Q171: -0.02765752589 | S171: 4.220101184 | T171: 3.565381472 | U171: 14
B172: 14.1 | D172: 9.970205614 | E172: 0.009940499999 | F172: 0.1165965491 | G172: 0.5464101138 | H172: 0.4535898862 | J172: 0.01689449295 | K172: 0.5067396069 | M172: 4.24775871 | N172: 3.593038998 | P172: 0.02765791233 | Q172: -0.02765791233 | S172: 4.24775871 | T172: 3.593038998 | U172: 14.1
B173: 14.2 | D173: 10.04091629 | E173: 0.010082 | F173: 0.1164800636 | G173: 0.5463639573 | H173: 0.4536360427 | J173: 0.01607090068 | K173: 0.5064110858 | M173: 4.275416622 | N173: 3.620696911 | P173: 0.02765827698 | Q173: -0.02765827698 | S173: 4.275416622 | T173: 3.620696911 | U173: 14.2
B174: 14.3 | D174: 10.11162697 | E174: 0.0102245 | F174: 0.1163701521 | G174: 0.5463204051 | H174: 0.4536795949 | J174: 0.01525388238 | K174: 0.5060851826 | M174: 4.303074899 | N174: 3.648355188 | P174: 0.02765862035 | Q174: -0.02765862035 | S174: 4.303074899 | T174: 3.648355188 | U174: 14.3
B175: 14.4 | D175: 10.18233765 | E175: 0.010368 | F175: 0.1162666776 | G175: 0.546279403 | H175: 0.453720597 | J175: 0.01444330109 | K175: 0.5057618431 | M175: 4.33073352 | N175: 3.676013808 | P175: 0.02765894293 | Q175: -0.02765894293 | S175: 4.33073352 | T175: 3.676013808 | U175: 14.4
B176: 14.5 | D176: 10.25304833 | E176: 0.0105125 | F176: 0.1161695069 | G176: 0.5462408985 | H176: 0.4537591015 | J176: 0.01363902364 | K176: 0.5054410145 | M176: 4.358392463 | N176: 3.703672751 | P176: 0.02765924521 | Q176: -0.02765924521 | S176: 4.358392463 | T176: 3.703672751 | U176: 14.5
B177: 14.6 | D177: 10.323759 | E177: 0.010658 | F177: 0.1160785105 | G177: 0.5462048401 | H177: 0.4537951599 | J177: 0.01284092049 | K177: 0.5051226453 | M177: 4.386051708 | N177: 3.731331996 | P177: 0.02765952763 | Q177: -0.02765952763 | S177: 4.386051708 | T177: 3.731331996 | U177: 14.6
B178: 14.7 | D178: 10.39446968 | E178: 0.0108045 | F178: 0.1159935625 | G178: 0.5461711781 | H178: 0.4538288219 | J178: 0.01204886563 | K178: 0.5048066856 | M178: 4.413711235 | N178: 3.758991524 | P178: 0.02765979063 | Q178: -0.02765979063 | S178: 4.413711235 | T178: 3.758991524 | U178: 14.7
B179: 14.8 | D179: 10.46518036 | E179: 0.010952 | F179: 0.1159145401 | G179: 0.546139864 | H179: 0.453860136 | J179: 0.01126273647 | K179: 0.5044930868 | M179: 4.441371026 | N179: 3.786651314 | P179: 0.02766003466 | Q179: -0.02766003466 | S179: 4.441371026 | T179: 3.786651314 | U179: 14.8
B180: 14.9 | D180: 10.53589104 | E180: 0.0111005 | F180: 0.1158413241 | G180: 0.5461108505 | H180: 0.4538891495 | J180: 0.01048241369 | K180: 0.5041818014 | M180: 4.469031061 | N180: 3.814311349 | P180: 0.02766026011 | Q180: -0.02766026011 | S180: 4.469031061 | T180: 3.814311349 | U180: 14.9
B181: 15 | D181: 10.60660172 | E181: 0.01125 | F181: 0.1157737983 | G181: 0.5460840916 | H181: 0.4539159084 | J181: 0.009707781177 | K181: 0.5038727835 | M181: 4.496691321 | N181: 3.841971609 | P181: 0.0276604674 | Q181: -0.0276604674 | S181: 4.496691321 | T181: 3.841971609 | U181: 15
B182: 15.1 | D182: 10.6773124 | E182: 0.0114005 | F182: 0.1157118498 | G182: 0.5460595427 | H182: 0.4539404573 | J182: 0.008938725868 | K182: 0.5035659882 | M182: 4.524351788 | N182: 3.869632077 | P182: 0.0276606569 | Q182: -0.0276606569 | S182: 4.524351788 | T182: 3.869632077 | U182: 15.1
B183: 15.2 | D183: 10.74802307 | E183: 0.011552 | F183: 0.1156553684 | G183: 0.5460371602 | H183: 0.4539628398 | J183: 0.008175137688 | K183: 0.5032613717 | M183: 4.552012445 | N183: 3.897292733 | P183: 0.02766082899 | Q183: -0.02766082899 | S183: 4.552012445 | T183: 3.897292733 | U183: 15.2
B184: 15.3 | D184: 10.81873375 | E184: 0.0117045 | F184: 0.115604247 | G184: 0.5460169016 | H184: 0.4539830984 | J184: 0.007416909441 | K184: 0.5029588916 | M184: 4.579673274 | N184: 3.924953562 | P184: 0.02766098403 | Q184: -0.02766098403 | S184: 4.579673274 | T184: 3.924953562 | U184: 15.3
B185: 15.4 | D185: 10.88944443 | E185: 0.011858 | F185: 0.115558381 | G185: 0.5459987255 | H185: 0.4540012745 | J185: 0.006663936712 | K185: 0.5026585064 | M185: 4.607334258 | N185: 3.952614546 | P185: 0.02766112238 | Q185: -0.02766112238 | S185: 4.607334258 | T185: 3.952614546 | U185: 15.4
B186: 15.5 | D186: 10.96015511 | E186: 0.0120125 | F186: 0.1155176689 | G186: 0.5459825917 | H186: 0.4540174083 | J186: 0.00591611778 | K186: 0.5023601758 | M186: 4.63499538 | N186: 3.980275669 | P186: 0.02766124437 | Q186: -0.02766124437 | S186: 4.63499538 | T186: 3.980275669 | U186: 15.5
B187: 15.6 | D187: 11.03086579 | E187: 0.012168 | F187: 0.1154820114 | G187: 0.545968461 | H187: 0.454031539 | J187: 0.005173353535 | K187: 0.5020638603 | M187: 4.662656625 | N187: 4.007936913 | P187: 0.02766135033 | Q187: -0.02766135033 | S187: 4.662656625 | T187: 4.007936913 | U187: 15.6
B188: 15.7 | D188: 11.10157646 | E188: 0.0123245 | F188: 0.115451312 | G188: 0.5459562951 | H188: 0.4540437049 | J188: 0.00443554739 | K188: 0.5017695216 | M188: 4.690317975 | N188: 4.035598264 | P188: 0.02766144058 | Q188: -0.02766144058 | S188: 4.690317975 | T188: 4.035598264 | U188: 15.7
B189: 15.8 | D189: 11.17228714 | E189: 0.012482 | F189: 0.1154254766 | G189: 0.5459460568 | H189: 0.4540539432 | J189: 0.003702605204 | K189: 0.5014771224 | M189: 4.717979416 | N189: 4.063259704 | P189: 0.02766151542 | Q189: -0.02766151542 | S189: 4.717979416 | T189: 4.063259704 | U189: 15.8
B190: 15.9 | D190: 11.24299782 | E190: 0.0126405 | F190: 0.1154044134 | G190: 0.5459377095 | H190: 0.4540622905 | J190: 0.002974435204 | K190: 0.5011866262 | M190: 4.745640931 | N190: 4.09092122 | P190: 0.02766157516 | Q190: -0.02766157516 | S190: 4.745640931 | T190: 4.09092122 | U190: 15.9
B191: 16 | D191: 11.3137085 | E191: 0.0128 | F191: 0.1153880329 | G191: 0.545931218 | H191: 0.454068782 | J191: 0.002250947911 | K191: 0.5008979975 | M191: 4.773302506 | N191: 4.118582795 | P191: 0.02766162009 | Q191: -0.02766162009 | S191: 4.773302506 | T191: 4.118582795 | U191: 16
B192: 16.1 | D192: 11.38441918 | E192: 0.0129605 | F192: 0.1153762478 | G192: 0.5459265476 | H192: 0.4540734524 | J192: 0.001532056071 | K192: 0.5006112017 | M192: 4.800964126 | N192: 4.146244415 | P192: 0.02766165048 | Q192: -0.02766165048 | S192: 4.800964126 | T192: 4.146244415 | U192: 16.1
B193: 16.2 | D193: 11.45512985 | E193: 0.013122 | F193: 0.1153689731 | G193: 0.5459236647 | H193: 0.4540763353 | J193: 0.0008176745818 | K193: 0.5003262049 | M193: 4.828625777 | N193: 4.173906065 | P193: 0.02766166661 | Q193: -0.02766166661 | S193: 4.828625777 | T193: 4.173906065 | U193: 16.2
B194: 16.3 | D194: 11.52584053 | E194: 0.0132845 | F194: 0.1153661258 | G194: 0.5459225363 | H194: 0.4540774637 | J194: 0.0001077204314 | K194: 0.5000429742 | M194: 4.856287443 | N194: 4.201567732 | P194: 0.02766166874 | Q194: -0.02766166874 | S194: 4.856287443 | T194: 4.201567732 | U194: 16.3
B195: 16.4 | D195: 11.59655121 | E195: 0.013448 | F195: 0.1153676247 | G195: 0.5459231303 | H195: 0.4540768697 | J195: -0.0005978873683 | K195: 0.4997614775 | M195: 4.883949112 | N195: 4.229229401 | P195: 0.02766165713 | Q195: -0.02766165713 | S195: 4.883949112 | T195: 4.229229401 | U195: 16.4
B196: 16.5 | D196: 11.66726189 | E196: 0.0136125 | F196: 0.115373391 | G196: 0.5459254155 | H196: 0.4540745845 | J196: -0.001299227842 | K196: 0.4994816832 | M196: 4.911610769 | N196: 4.256891058 | P196: 0.02766163202 | Q196: -0.02766163202 | S196: 4.911610769 | T196: 4.256891058 | U196: 16.5
B197: 16.6 | D197: 11.73797257 | E197: 0.013778 | F197: 0.1153833476 | G197: 0.5459293612 | H197: 0.4540706388 | J197: -0.00199637811 | K197: 0.4992035609 | M197: 4.939272401 | N197: 4.28455269 | P197: 0.02766159366 | Q197: -0.02766159366 | S197: 4.939272401 | T197: 4.28455269 | U197: 16.6
B198: 16.7 | D198: 11.80868325 | E198: 0.0139445 | F198: 0.115397419 | G198: 0.5459349377 | H198: 0.4540650623 | J198: -0.002689413445 | K198: 0.4989270806 | M198: 4.966933995 | N198: 4.312214283 | P198: 0.02766154227 | Q198: -0.02766154227 | S198: 4.966933995 | T198: 4.312214283 | U198: 16.7
B199: 16.8 | D199: 11.87939392 | E199: 0.014112 | F199: 0.1154155319 | G199: 0.5459421157 | H199: 0.4540578843 | J199: -0.003378407328 | K199: 0.498652213 | M199: 4.994595537 | N199: 4.339875826 | P199: 0.02766147809 | Q199: -0.02766147809 | S199: 4.994595537 | T199: 4.339875826 | U199: 16.8
B200: 16.9 | D200: 11.9501046 | E200: 0.0142805 | F200: 0.1154376145 | G200: 0.5459508669 | H200: 0.4540491331 | J200: -0.004063431501 | K200: 0.4983789298 | M200: 5.022257015 | N200: 4.367537304 | P200: 0.02766140133 | Q200: -0.02766140133 | S200: 5.022257015 | T200: 4.367537304 | U200: 16.9
B201: 17 | D201: 12.02081528 | E201: 0.01445 | F201: 0.1154635968 | G201: 0.5459611635 | H201: 0.4540388365 | J201: -0.004744556018 | K201: 0.4981072031 | M201: 5.049918417 | N201: 4.395198705 | P201: 0.02766131221 | Q201: -0.02766131221 | S201: 5.049918417 | T201: 4.395198705 | U201: 17
B202: 17.1 | D202: 12.09152596 | E202: 0.0146205 | F202: 0.1154934103 | G202: 0.5459729783 | H202: 0.4540270217 | J202: -0.005421849294 | K202: 0.4978370057 | M202: 5.077579729 | N202: 4.422860017 | P202: 0.02766121093 | Q202: -0.02766121093 | S202: 5.077579729 | T202: 4.422860017 | U202: 17.1
B203: 17.2 | D203: 12.16223664 | E203: 0.014792 | F203: 0.1155269882 | G203: 0.5459862849 | H203: 0.4540137151 | J203: -0.006095378153 | K203: 0.497568311 | M203: 5.10524094 | N203: 4.450521228 | P203: 0.0276610977 | Q203: -0.0276610977 | S203: 5.10524094 | T203: 4.450521228 | U203: 17.2
B204: 17.3 | D204: 12.23294731 | E204: 0.0149645 | F204: 0.1155642653 | G204: 0.5460010574 | H204: 0.4539989426 | J204: -0.006765207873 | K204: 0.4973010931 | M204: 5.132902038 | N204: 4.478182326 | P204: 0.02766097271 | Q204: -0.02766097271 | S204: 5.132902038 | T204: 4.478182326 | U204: 17.3
B205: 17.4 | D205: 12.30365799 | E205: 0.015138 | F205: 0.1156051777 | G205: 0.5460172704 | H205: 0.4539827296 | J205: -0.007431402233 | K205: 0.4970353267 | M205: 5.16056301 | N205: 4.505843299 | P205: 0.02766083615 | Q205: -0.02766083615 | S205: 5.16056301 | T205: 4.505843299 | U205: 17.4
B206: 17.5 | D206: 12.37436867 | E206: 0.0153125 | F206: 0.1156496631 | G206: 0.5460348993 | H206: 0.4539651007 | J206: -0.008094023553 | K206: 0.496770987 | M206: 5.188223846 | N206: 4.533504135 | P206: 0.02766068821 | Q206: -0.02766068821 | S206: 5.188223846 | T206: 4.533504135 | U206: 17.5
B207: 17.6 | D207: 12.44507935 | E207: 0.015488 | F207: 0.1156976607 | G207: 0.5460539199 | H207: 0.4539460801 | J207: -0.008753132738 | K207: 0.4965080499 | M207: 5.215884535 | N207: 4.561164823 | P207: 0.02766052906 | Q207: -0.02766052906 | S207: 5.215884535 | T207: 4.561164823 | U207: 17.6
B208: 17.7 | D208: 12.51579003 | E208: 0.0156645 | F208: 0.1157491109 | G208: 0.5460743086 | H208: 0.4539256914 | J208: -0.009408789315 | K208: 0.4962464915 | M208: 5.243545064 | N208: 4.588825352 | P208: 0.02766035889 | Q208: -0.02766035889 | S208: 5.243545064 | T208: 4.588825352 | U208: 17.7
... 823 more rows

Sheet D CALL-VEGA
B1: Daten eingeben/rechnen! | F1: Tabelle Vega (Call/Put) | H1: Diagramm Put-Vega | K1: Hauptmenü

Sheet D PUT-VEGA
B1: Daten eingeben/rechnen! | F1: Tabelle Vega (Call/Put) | H1: Diagramm Call-Vega | K1: Hauptmenü
